Body Name,Body,Service Area Catergorisation,Service Division Catergorisation,Responsible Unit,Expenses Type,Detailed Expenses Type,Expenses Code,Date,Transaction Number,Amount,Capital / Revenue,Supplier Name,Supplier ID
NORTH EAST LINCOLNSHIRE COUNCIL,http://statistics.data.gov.uk/id/local-authority/00FC,People,Schools,Cap Alloc Devolved To Schools,Cap Veh Plt Eqp-Purchase,Cap Veh Plt Eqp-Purchase,YB101,6/30/2014,288914,1923.75,CAPITAL,SYLVESTER-KEAL LTD,100593
NORTH EAST LINCOLNSHIRE COUNCIL,http://statistics.data.gov.uk/id/local-authority/00FC,People,Schools,Cap Alloc Devolved To Schools,Cap Veh Plt Eqp-Purchase,Cap Veh Plt Eqp-Purchase,YB101,6/2/2014,282997,11961,CAPITAL,TECHNOLOGY SUPPORT SOLUTIONS LTD,119571
NORTH EAST LINCOLNSHIRE COUNCIL,http://statistics.data.gov.uk/id/local-authority/00FC,People,Schools,Cap Alloc Devolved To Schools,Cap Land/Build-Build Enh Wrk,Cap Land/Build-Build Enh Wrk,YA102,6/19/2014,287463,2495,CAPITAL,J W PLATER LTD,100555
NORTH EAST LINCOLNSHIRE COUNCIL,http://statistics.data.gov.uk/id/local-authority/00FC,People,Schools,Cap Alloc Devolved To Schools,Cap Land/Build-Build Enh Wrk,Cap Land/Build-Build Enh Wrk,YA102,6/5/2014,284405,5950,CAPITAL,ETON-LINCS LIMITED,101510
NORTH EAST LINCOLNSHIRE COUNCIL,http://statistics.data.gov.uk/id/local-authority/00FC,People,Schools,Cap Alloc Devolved To Schools,Cap Land/Build-Build Enh Wrk,Cap Land/Build-Build Enh Wrk,YA102,6/9/2014,285312,67022.27,CAPITAL,G S KELSEY LIMITED,101154
NORTH EAST LINCOLNSHIRE COUNCIL,http://statistics.data.gov.uk/id/local-authority/00FC,People,Schools,Backlog Mainteneance Schools,Cap Land/Build-Build Enh Wrk,Cap Land/Build-Build Enh Wrk,YA102,6/17/2014,286251,-140,CAPITAL,SYLVESTER-KEAL LTD,100593
NORTH EAST LINCOLNSHIRE COUNCIL,http://statistics.data.gov.uk/id/local-authority/00FC,People,Schools,Backlog Mainteneance Schools,Cap Land/Build-Build Enh Wrk,Cap Land/Build-Build Enh Wrk,YA102,6/17/2014,286256,452.8,CAPITAL,SYLVESTER-KEAL LTD,100593
NORTH EAST LINCOLNSHIRE COUNCIL,http://statistics.data.gov.uk/id/local-authority/00FC,People,Schools,Backlog Mainteneance Schools,Cap Land/Build-Build Enh Wrk,Cap Land/Build-Build Enh Wrk,YA102,6/17/2014,286592,2790,CAPITAL,UNIBUILD BUILDING CONT LTD,101469
NORTH EAST LINCOLNSHIRE COUNCIL,http://statistics.data.gov.uk/id/local-authority/00FC,People,Schools,Backlog Mainteneance Schools,Cap Land/Build-Build Enh Wrk,Cap Land/Build-Build Enh Wrk,YA102,6/26/2014,288978,3397,CAPITAL,JAMES BRATTON & CO LTD,100714
NORTH EAST LINCOLNSHIRE COUNCIL,http://statistics.data.gov.uk/id/local-authority/00FC,People,Schools,Backlog Mainteneance Schools,Cap Land/Build-Build Enh Wrk,Cap Land/Build-Build Enh Wrk,YA102,6/19/2014,287433,60326.61,CAPITAL,SANGWIN,104041
NORTH EAST LINCOLNSHIRE COUNCIL,http://statistics.data.gov.uk/id/local-authority/00FC,People,Schools,Backlog Mainteneance Schools,Cap Land/Build-Prof Fees,Cap Land/Build-Prof Fees,YA103,6/5/2014,283941,3000,CAPITAL,COFELY WORKPLACE LIMITED,123983
NORTH EAST LINCOLNSHIRE COUNCIL,http://statistics.data.gov.uk/id/local-authority/00FC,People,Schools,Sufficiency Of School Places,Cap Land/Build-Build Enh Wrk,Cap Land/Build-Build Enh Wrk,YA102,6/26/2014,288979,5234.63,CAPITAL,MANTA BRC LTD,102230
NORTH EAST LINCOLNSHIRE COUNCIL,http://statistics.data.gov.uk/id/local-authority/00FC,People,Schools,Sufficiency Of School Places,Cap Land/Build-Build Enh Wrk,Cap Land/Build-Build Enh Wrk,YA102,6/19/2014,287356,1350,CAPITAL,MANTA BRC LTD,102230
NORTH EAST LINCOLNSHIRE COUNCIL,http://statistics.data.gov.uk/id/local-authority/00FC,People,Schools,Sufficiency Of School Places,Cap Land/Build-Build Enh Wrk,Cap Land/Build-Build Enh Wrk,YA102,6/17/2014,286560,1538.33,CAPITAL,TOPCON CONSTRUCTION LTD,108462
NORTH EAST LINCOLNSHIRE COUNCIL,http://statistics.data.gov.uk/id/local-authority/00FC,People,Schools,Sufficiency Of School Places,Cap Land/Build-Build Enh Wrk,Cap Land/Build-Build Enh Wrk,YA102,6/17/2014,286558,2020,CAPITAL,REDHILL ANALYSTS LTD,109169
NORTH EAST LINCOLNSHIRE COUNCIL,http://statistics.data.gov.uk/id/local-authority/00FC,People,Schools,Sufficiency Of School Places,Cap Land/Build-Build Enh Wrk,Cap Land/Build-Build Enh Wrk,YA102,6/23/2014,287596,768,CAPITAL,REDHILL ANALYSTS LTD,109169
NORTH EAST LINCOLNSHIRE COUNCIL,http://statistics.data.gov.uk/id/local-authority/00FC,People,Schools,Sufficiency Of School Places,Cap Land/Build-Build Enh Wrk,Cap Land/Build-Build Enh Wrk,YA102,6/19/2014,287610,107722.87,CAPITAL,F PARKINSON LTD,123944
NORTH EAST LINCOLNSHIRE COUNCIL,http://statistics.data.gov.uk/id/local-authority/00FC,People,Schools,Sufficiency Of School Places,Cap Land/Build-Prof Fees,Cap Land/Build-Prof Fees,YA103,6/5/2014,283938,5000,CAPITAL,COFELY WORKPLACE LIMITED,123983
NORTH EAST LINCOLNSHIRE COUNCIL,http://statistics.data.gov.uk/id/local-authority/00FC,People,Schools,Sufficiency Of School Places,Cap Land/Build-Prof Fees,Cap Land/Build-Prof Fees,YA103,6/9/2014,283939,2000,CAPITAL,COFELY WORKPLACE LIMITED,123983
NORTH EAST LINCOLNSHIRE COUNCIL,http://statistics.data.gov.uk/id/local-authority/00FC,People,Schools,Sufficiency Of School Places,Cap Land/Build-Build Enh Wrk,Cap Land/Build-Build Enh Wrk,YA102,6/17/2014,286584,550,CAPITAL,CLEE TREE SERVICES,124776
NORTH EAST LINCOLNSHIRE COUNCIL,http://statistics.data.gov.uk/id/local-authority/00FC,People,Schools,Sufficiency Of School Places,Cap Land/Build-Build Enh Wrk,Cap Land/Build-Build Enh Wrk,YA102,6/17/2014,286780,810.75,CAPITAL,EXCELL ELECTRICAL CONTRACTORS,100601
NORTH EAST LINCOLNSHIRE COUNCIL,http://statistics.data.gov.uk/id/local-authority/00FC,People,Schools,Sufficiency Of School Places,Cap Land/Build-Prof Fees,Cap Land/Build-Prof Fees,YA103,6/9/2014,283935,15000,CAPITAL,COFELY WORKPLACE LIMITED,123983
NORTH EAST LINCOLNSHIRE COUNCIL,http://statistics.data.gov.uk/id/local-authority/00FC,People,Schools,Sufficiency Of School Places,Cap Land/Build-Prof Fees,Cap Land/Build-Prof Fees,YA103,6/5/2014,283940,10000,CAPITAL,COFELY WORKPLACE LIMITED,123983
NORTH EAST LINCOLNSHIRE COUNCIL,http://statistics.data.gov.uk/id/local-authority/00FC,People,Schools,Surplus Place Removal,Cap Land/Build-Build Enh Wrk,Cap Land/Build-Build Enh Wrk,YA102,6/12/2014,285302,14012.49,CAPITAL,E S RUDKIN LTD,100632
NORTH EAST LINCOLNSHIRE COUNCIL,http://statistics.data.gov.uk/id/local-authority/00FC,People,Schools,Woodlands Primary New Build,Cap Land/Build-Build Enh Wrk,Cap Land/Build-Build Enh Wrk,YA102,6/17/2014,286559,122614.86,CAPITAL,BUILT OFFSITE LIMITED,123685
NORTH EAST LINCOLNSHIRE COUNCIL,http://statistics.data.gov.uk/id/local-authority/00FC,People,Schools,Woodlands Primary New Build,Cap Land/Build-Prof Fees,Cap Land/Build-Prof Fees,YA103,6/5/2014,283933,3000,CAPITAL,COFELY WORKPLACE LIMITED,123983
NORTH EAST LINCOLNSHIRE COUNCIL,http://statistics.data.gov.uk/id/local-authority/00FC,People,Schools,Woodlands Primary New Build,Cap Veh Plt Eqp-Build Enh Wrk,Cap Veh Plt Eqp-Build Enh Wrk,YB102,6/3/2014,283909,7500,CAPITAL,GAIA TECHNOLOGIES PLC,102572
NORTH EAST LINCOLNSHIRE COUNCIL,http://statistics.data.gov.uk/id/local-authority/00FC,People,Schools,Woodlands Primary New Build,Cap Veh Plt Eqp-Build Enh Wrk,Cap Veh Plt Eqp-Build Enh Wrk,YB102,6/3/2014,283908,24000,CAPITAL,GAIA TECHNOLOGIES PLC,102572
NORTH EAST LINCOLNSHIRE COUNCIL,http://statistics.data.gov.uk/id/local-authority/00FC,People,Schools,Woodlands Primary New Build,Cap Veh Plt Eqp-Build Enh Wrk,Cap Veh Plt Eqp-Build Enh Wrk,YB102,6/3/2014,283907,8000,CAPITAL,GAIA TECHNOLOGIES PLC,102572
NORTH EAST LINCOLNSHIRE COUNCIL,http://statistics.data.gov.uk/id/local-authority/00FC,People,Schools,Woodlands Primary New Build,Cap Veh Plt Eqp-Build Enh Wrk,Cap Veh Plt Eqp-Build Enh Wrk,YB102,6/3/2014,283906,8000,CAPITAL,GAIA TECHNOLOGIES PLC,102572
NORTH EAST LINCOLNSHIRE COUNCIL,http://statistics.data.gov.uk/id/local-authority/00FC,People,Schools,Woodlands Primary New Build,Cap Land/Build-Build Enh Wrk,Cap Land/Build-Build Enh Wrk,YA102,6/2/2014,282818,10183.43,CAPITAL,BRITISH GAS TRADING LTD,101507
NORTH EAST LINCOLNSHIRE COUNCIL,http://statistics.data.gov.uk/id/local-authority/00FC,People,Schools,Targeted Basic Need,Cap Land/Build-Build Enh Wrk,Cap Land/Build-Build Enh Wrk,YA102,6/5/2014,283934,15000,CAPITAL,COFELY WORKPLACE LIMITED,123983
NORTH EAST LINCOLNSHIRE COUNCIL,http://statistics.data.gov.uk/id/local-authority/00FC,People,Schools,Targeted Basic Need,Cap Land/Build-Build Enh Wrk,Cap Land/Build-Build Enh Wrk,YA102,6/17/2014,286556,1200,CAPITAL,BB7 FIRE LIMITED,126278
NORTH EAST LINCOLNSHIRE COUNCIL,http://statistics.data.gov.uk/id/local-authority/00FC,Resources,Commission & Business Support,Isms Project,Cap Land/Build-Build Enh Wrk,Cap Land/Build-Build Enh Wrk,YA102,6/23/2014,288064,2510,CAPITAL,BORRI LTD ( SYSTEMS HOUSE ),112737
NORTH EAST LINCOLNSHIRE COUNCIL,http://statistics.data.gov.uk/id/local-authority/00FC,Resources,Commission & Business Support,New Ict Framework,Cap Intangible Assets,Cap Intangible Assets,YH101,6/3/2014,283396,4675,CAPITAL,VISIONWARE LTD,103028
NORTH EAST LINCOLNSHIRE COUNCIL,http://statistics.data.gov.uk/id/local-authority/00FC,Resources,Cap Governance & Bus Support,Ice Project - Capital,Cap Land/Build-Build Enh Wrk,Cap Land/Build-Build Enh Wrk,YA102,6/19/2014,287514,1795,CAPITAL,LINCS ELECTRICAL SERVICES LTD,102044
NORTH EAST LINCOLNSHIRE COUNCIL,http://statistics.data.gov.uk/id/local-authority/00FC,Place,Environment,Cremator Replacement,Cap Land/Build-Build Enh Wrk,Cap Land/Build-Build Enh Wrk,YA102,6/23/2014,288141,3562,CAPITAL,INN-FRESCO / OMEGA SIGNS LTD,126350
NORTH EAST LINCOLNSHIRE COUNCIL,http://statistics.data.gov.uk/id/local-authority/00FC,Place,Environment,Fleet Replacement Programme,Cap Veh Plt Eqp-Purchase,Cap Veh Plt Eqp-Purchase,YB101,6/3/2014,282946,7793,CAPITAL,DGEM SOLUTIONS LTD,125265
NORTH EAST LINCOLNSHIRE COUNCIL,http://statistics.data.gov.uk/id/local-authority/00FC,Place,Environment,Fleet Replacement Programme,Cap Veh Plt Eqp-Purchase,Cap Veh Plt Eqp-Purchase,YB101,6/16/2014,286376,6247.4,CAPITAL,LAWNMOWER SERVICE(LINCOLN)LTD,100544
NORTH EAST LINCOLNSHIRE COUNCIL,http://statistics.data.gov.uk/id/local-authority/00FC,Place,Environment,Fleet Replacement Programme,Cap Veh Plt Eqp-Purchase,Cap Veh Plt Eqp-Purchase,YB101,6/17/2014,266846,66810,CAPITAL,ENZA MOTORS LTD,107976
NORTH EAST LINCOLNSHIRE COUNCIL,http://statistics.data.gov.uk/id/local-authority/00FC,Place,Environment,Fleet Replacement Programme,Cap Veh Plt Eqp-Purchase,Cap Veh Plt Eqp-Purchase,YB101,6/18/2014,283400,17970,CAPITAL,F G ADAMSON & SON,100752
NORTH EAST LINCOLNSHIRE COUNCIL,http://statistics.data.gov.uk/id/local-authority/00FC,Place,Environment,Fleet Replacement Programme,Cap Veh Plt Eqp-Purchase,Cap Veh Plt Eqp-Purchase,YB101,6/18/2014,286048,17970,CAPITAL,F G ADAMSON & SON,100752
NORTH EAST LINCOLNSHIRE COUNCIL,http://statistics.data.gov.uk/id/local-authority/00FC,Place,Environment,Fleet Replacement Programme,Cap Veh Plt Eqp-Purchase,Cap Veh Plt Eqp-Purchase,YB101,6/19/2014,286347,3399,CAPITAL,DGEM SOLUTIONS LTD,125265
NORTH EAST LINCOLNSHIRE COUNCIL,http://statistics.data.gov.uk/id/local-authority/00FC,Place,Environment,Fleet Replacement Programme,Cap Veh Plt Eqp-Purchase,Cap Veh Plt Eqp-Purchase,YB101,6/20/2014,286848,28995,CAPITAL,LAWNMOWER SERVICE(LINCOLN)LTD,100544
NORTH EAST LINCOLNSHIRE COUNCIL,http://statistics.data.gov.uk/id/local-authority/00FC,Place,Environment,Fleet Replacement Programme,Cap Veh Plt Eqp-Purchase,Cap Veh Plt Eqp-Purchase,YB101,6/3/2014,284166,166168,CAPITAL,DENNIS EAGLE LTD,100627
NORTH EAST LINCOLNSHIRE COUNCIL,http://statistics.data.gov.uk/id/local-authority/00FC,Place,Environment,Fleet Replacement Programme,Cap Veh Plt Eqp-Purchase,Cap Veh Plt Eqp-Purchase,YB101,6/20/2014,286846,3206,CAPITAL,LAWNMOWER SERVICE(LINCOLN)LTD,100544
NORTH EAST LINCOLNSHIRE COUNCIL,http://statistics.data.gov.uk/id/local-authority/00FC,Place,Environment,Fleet Replacement Programme,Cap Veh Plt Eqp-Purchase,Cap Veh Plt Eqp-Purchase,YB101,6/18/2014,286847,612.3,CAPITAL,LAWNMOWER SERVICE(LINCOLN)LTD,100544
NORTH EAST LINCOLNSHIRE COUNCIL,http://statistics.data.gov.uk/id/local-authority/00FC,Place,Environment,Fleet Replacement Programme,Cap Veh Plt Eqp-Purchase,Cap Veh Plt Eqp-Purchase,YB101,6/18/2014,286849,7229.64,CAPITAL,LAWNMOWER SERVICE(LINCOLN)LTD,100544
NORTH EAST LINCOLNSHIRE COUNCIL,http://statistics.data.gov.uk/id/local-authority/00FC,Place,Environment,Fleet Replacement Programme,Cap Veh Plt Eqp-Purchase,Cap Veh Plt Eqp-Purchase,YB101,6/18/2014,284024,705,CAPITAL,DENNIS EAGLE LTD,100627
NORTH EAST LINCOLNSHIRE COUNCIL,http://statistics.data.gov.uk/id/local-authority/00FC,Place,Environment,Fleet Replacement Programme,Cap Veh Plt Eqp-Purchase,Cap Veh Plt Eqp-Purchase,YB101,6/20/2014,286846,428.1,CAPITAL,LAWNMOWER SERVICE(LINCOLN)LTD,100544
NORTH EAST LINCOLNSHIRE COUNCIL,http://statistics.data.gov.uk/id/local-authority/00FC,Place,Environment,Fleet Replacement Programme,Cap Veh Plt Eqp-Purchase,Cap Veh Plt Eqp-Purchase,YB101,6/9/2014,284016,9720.83,CAPITAL,STONEACRE MOTOR GROUP,125074
NORTH EAST LINCOLNSHIRE COUNCIL,http://statistics.data.gov.uk/id/local-authority/00FC,Place,Environment,Fleet Replacement Programme,Cap Veh Plt Eqp-Purchase,Cap Veh Plt Eqp-Purchase,YB101,6/16/2014,286346,5995,CAPITAL,LAWNMOWER SERVICE(LINCOLN)LTD,100544
NORTH EAST LINCOLNSHIRE COUNCIL,http://statistics.data.gov.uk/id/local-authority/00FC,Place,Environment,Fleet Replacement Programme,Cap Veh Plt Eqp-Purchase,Cap Veh Plt Eqp-Purchase,YB101,6/3/2014,281948,17200,CAPITAL,FAIRVIEW FARM AGRICULTURAL ENGINEERING LTD,125269
NORTH EAST LINCOLNSHIRE COUNCIL,http://statistics.data.gov.uk/id/local-authority/00FC,Place,Environment,Fleet Replacement Programme,Cap Veh Plt Eqp-Purchase,Cap Veh Plt Eqp-Purchase,YB101,6/20/2014,287382,11115,CAPITAL,DENNIS EAGLE LTD,100627
NORTH EAST LINCOLNSHIRE COUNCIL,http://statistics.data.gov.uk/id/local-authority/00FC,Place,Environment,Waste Obc (Rev B),Cap Land/Build-Build Enh Wrk,Cap Land/Build-Build Enh Wrk,YA102,6/23/2014,277436,23842,CAPITAL,EGBERT H TAYLOR & CO LTD,100625
NORTH EAST LINCOLNSHIRE COUNCIL,http://statistics.data.gov.uk/id/local-authority/00FC,Place,Environment,Waste Obc (Rev B),Cap Land/Build-Build Enh Wrk,Cap Land/Build-Build Enh Wrk,YA102,6/18/2014,286417,11921,CAPITAL,EGBERT H TAYLOR & CO LTD,100625
NORTH EAST LINCOLNSHIRE COUNCIL,http://statistics.data.gov.uk/id/local-authority/00FC,Place,Economy,Hps-Disabled Fac. Grants,Cap Grants To O/Side Sources,Cap Grants To O/Side Sources,YJ101,6/9/2014,283693,2035,CAPITAL,TOTAL HYGIENE LTD,100849
NORTH EAST LINCOLNSHIRE COUNCIL,http://statistics.data.gov.uk/id/local-authority/00FC,Place,Economy,Hps-Disabled Fac. Grants,Cap Grants To O/Side Sources,Cap Grants To O/Side Sources,YJ101,6/17/2014,286766,2317,CAPITAL,STANNAH LIFT SERVICES LTD,100622
NORTH EAST LINCOLNSHIRE COUNCIL,http://statistics.data.gov.uk/id/local-authority/00FC,Place,Economy,Hps-Disabled Fac. Grants,Cap Grants To O/Side Sources,Cap Grants To O/Side Sources,YJ101,6/4/2014,282436,2027,CAPITAL,STANNAH LIFT SERVICES LTD,100622
NORTH EAST LINCOLNSHIRE COUNCIL,http://statistics.data.gov.uk/id/local-authority/00FC,Place,Economy,Hps-Disabled Fac. Grants,Cap Grants To O/Side Sources,Cap Grants To O/Side Sources,YJ101,6/4/2014,282437,3330,CAPITAL,DOLPHIN MOBILITY EAST MIDLANDS LTD,101317
NORTH EAST LINCOLNSHIRE COUNCIL,http://statistics.data.gov.uk/id/local-authority/00FC,Place,Economy,Hps-Disabled Fac. Grants,Cap Grants To O/Side Sources,Cap Grants To O/Side Sources,YJ101,6/3/2014,283704,1380,CAPITAL,TOTAL HYGIENE LTD,100849
NORTH EAST LINCOLNSHIRE COUNCIL,http://statistics.data.gov.uk/id/local-authority/00FC,Place,Economy,Hps-Disabled Fac. Grants,Cap Grants To O/Side Sources,Cap Grants To O/Side Sources,YJ101,6/20/2014,286924,2082,CAPITAL,STANNAH LIFT SERVICES LTD,100622
NORTH EAST LINCOLNSHIRE COUNCIL,http://statistics.data.gov.uk/id/local-authority/00FC,Place,Economy,Hps-Disabled Fac. Grants,Cap Grants To O/Side Sources,Cap Grants To O/Side Sources,YJ101,6/18/2014,286571,2384,CAPITAL,HANDICARE ACCESSIIBILITY LTD,102647
NORTH EAST LINCOLNSHIRE COUNCIL,http://statistics.data.gov.uk/id/local-authority/00FC,Place,Economy,Hps-Disabled Fac. Grants,Cap Grants To O/Side Sources,Cap Grants To O/Side Sources,YJ101,6/26/2014,288564,2352.23,CAPITAL,OBAM LIFT SERVICES LTD,112666
NORTH EAST LINCOLNSHIRE COUNCIL,http://statistics.data.gov.uk/id/local-authority/00FC,Place,Economy,Hps-Disabled Fac. Grants,Cap Grants To O/Side Sources,Cap Grants To O/Side Sources,YJ101,6/4/2014,283687,6639,CAPITAL,VIC HANSEN BUILDING & JOINERY LTD,103981
NORTH EAST LINCOLNSHIRE COUNCIL,http://statistics.data.gov.uk/id/local-authority/00FC,Place,Economy,Hps-Disabled Fac. Grants,Cap Grants To O/Side Sources,Cap Grants To O/Side Sources,YJ101,6/24/2014,288097,10719.6,CAPITAL,VIC HANSEN BUILDING & JOINERY LTD,103981
NORTH EAST LINCOLNSHIRE COUNCIL,http://statistics.data.gov.uk/id/local-authority/00FC,Place,Economy,Hps-Disabled Fac. Grants,Cap Grants To O/Side Sources,Cap Grants To O/Side Sources,YJ101,6/4/2014,283702,2546.71,CAPITAL,M J QUICKFALL,102499
NORTH EAST LINCOLNSHIRE COUNCIL,http://statistics.data.gov.uk/id/local-authority/00FC,Place,Economy,Hps-Disabled Fac. Grants,Cap Grants To O/Side Sources,Cap Grants To O/Side Sources,YJ101,6/20/2014,286863,10010,CAPITAL,DOLPHIN MOBILITY EAST MIDLANDS LTD,101317
NORTH EAST LINCOLNSHIRE COUNCIL,http://statistics.data.gov.uk/id/local-authority/00FC,Place,Economy,Hps-Disabled Fac. Grants,Cap Grants To O/Side Sources,Cap Grants To O/Side Sources,YJ101,6/4/2014,284131,8190,CAPITAL,MARK BENNETT,101838
NORTH EAST LINCOLNSHIRE COUNCIL,http://statistics.data.gov.uk/id/local-authority/00FC,Place,Economy,Hps-Disabled Fac. Grants,Cap Grants To O/Side Sources,Cap Grants To O/Side Sources,YJ101,6/18/2014,286861,1585,CAPITAL,MARK BENNETT,101838
NORTH EAST LINCOLNSHIRE COUNCIL,http://statistics.data.gov.uk/id/local-authority/00FC,Place,Economy,Hps-Disabled Fac. Grants,Cap Grants To O/Side Sources,Cap Grants To O/Side Sources,YJ101,6/18/2014,286737,674.8,CAPITAL,STEVE BENNETT ARCHITECTURAL DESIGN,103819
NORTH EAST LINCOLNSHIRE COUNCIL,http://statistics.data.gov.uk/id/local-authority/00FC,Place,Economy,Hps-Disabled Fac. Grants,Cap Grants To O/Side Sources,Cap Grants To O/Side Sources,YJ101,6/19/2014,286758,712.8,CAPITAL,STEVE BENNETT ARCHITECTURAL DESIGN,103819
NORTH EAST LINCOLNSHIRE COUNCIL,http://statistics.data.gov.uk/id/local-authority/00FC,Place,Economy,Local Transport Plan Schemes,Cap Infrastr-Purchase,Cap Infrastr-Purchase,YC101,6/16/2014,283641,2394,CAPITAL,TIM PHEBY CYCLING MATTERS,107997
NORTH EAST LINCOLNSHIRE COUNCIL,http://statistics.data.gov.uk/id/local-authority/00FC,Place,Economy,Local Transport Plan Schemes,Cap Land/Build-Build Enh Wrk,Cap Land/Build-Build Enh Wrk,YA102,6/9/2014,283395,1622.63,CAPITAL,J MCCANN & CO LTD,100841
NORTH EAST LINCOLNSHIRE COUNCIL,http://statistics.data.gov.uk/id/local-authority/00FC,Place,Economy,Local Transport Plan Schemes,Cap Land/Build-Build Enh Wrk,Cap Land/Build-Build Enh Wrk,YA102,6/5/2014,284428,612.48,CAPITAL,NORTHERN POWERGRID (YORKSHIRE) PLC,108328
NORTH EAST LINCOLNSHIRE COUNCIL,http://statistics.data.gov.uk/id/local-authority/00FC,Place,Economy,Local Transport Plan Schemes,Cap Infrastr-Prof Fees,Cap Infrastr-Prof Fees,YC103,6/11/2014,285666,13758.46,CAPITAL,PARSONS BRINCKERHOFF,122408
NORTH EAST LINCOLNSHIRE COUNCIL,http://statistics.data.gov.uk/id/local-authority/00FC,Place,Economy,Local Transport Plan Schemes,Cap Infrastr-Prof Fees,Cap Infrastr-Prof Fees,YC103,6/11/2014,285666,7916.53,CAPITAL,PARSONS BRINCKERHOFF,122408
NORTH EAST LINCOLNSHIRE COUNCIL,http://statistics.data.gov.uk/id/local-authority/00FC,Place,Economy,Local Transport Plan Schemes,Cap Land/Build-Build Enh Wrk,Cap Land/Build-Build Enh Wrk,YA102,6/9/2014,284407,1584.62,CAPITAL,NORTHERN POWERGRID (YORKSHIRE) PLC,108328
NORTH EAST LINCOLNSHIRE COUNCIL,http://statistics.data.gov.uk/id/local-authority/00FC,Place,Economy,Local Transport Plan Schemes,Cap Land/Build-Build Enh Wrk,Cap Land/Build-Build Enh Wrk,YA102,6/9/2014,284415,348.21,CAPITAL,NORTHERN POWERGRID (YORKSHIRE) PLC,108328
NORTH EAST LINCOLNSHIRE COUNCIL,http://statistics.data.gov.uk/id/local-authority/00FC,Place,Economy,Local Transport Plan Schemes,Cap Land/Build-Build Enh Wrk,Cap Land/Build-Build Enh Wrk,YA102,6/9/2014,284416,696.42,CAPITAL,NORTHERN POWERGRID (YORKSHIRE) PLC,108328
NORTH EAST LINCOLNSHIRE COUNCIL,http://statistics.data.gov.uk/id/local-authority/00FC,Place,Economy,Local Transport Plan Schemes,Cap Land/Build-Build Enh Wrk,Cap Land/Build-Build Enh Wrk,YA102,6/9/2014,284421,527.88,CAPITAL,NORTHERN POWERGRID (YORKSHIRE) PLC,108328
NORTH EAST LINCOLNSHIRE COUNCIL,http://statistics.data.gov.uk/id/local-authority/00FC,Place,Economy,Local Transport Plan Schemes,Cap Land/Build-Build Enh Wrk,Cap Land/Build-Build Enh Wrk,YA102,6/9/2014,284419,348.21,CAPITAL,NORTHERN POWERGRID (YORKSHIRE) PLC,108328
NORTH EAST LINCOLNSHIRE COUNCIL,http://statistics.data.gov.uk/id/local-authority/00FC,Place,Economy,Local Transport Plan Schemes,Cap Land/Build-Build Enh Wrk,Cap Land/Build-Build Enh Wrk,YA102,6/9/2014,284420,672.2,CAPITAL,NORTHERN POWERGRID (YORKSHIRE) PLC,108328
NORTH EAST LINCOLNSHIRE COUNCIL,http://statistics.data.gov.uk/id/local-authority/00FC,Place,Economy,Local Transport Plan Schemes,Cap Land/Build-Build Enh Wrk,Cap Land/Build-Build Enh Wrk,YA102,6/9/2014,284423,1391.86,CAPITAL,NORTHERN POWERGRID (YORKSHIRE) PLC,108328
NORTH EAST LINCOLNSHIRE COUNCIL,http://statistics.data.gov.uk/id/local-authority/00FC,Place,Economy,Local Transport Plan Schemes,Cap Land/Build-Build Enh Wrk,Cap Land/Build-Build Enh Wrk,YA102,6/12/2014,284411,1236.41,CAPITAL,NORTHERN POWERGRID (YORKSHIRE) PLC,108328
NORTH EAST LINCOLNSHIRE COUNCIL,http://statistics.data.gov.uk/id/local-authority/00FC,Place,Economy,Local Transport Plan Schemes,Cap Land/Build-Build Enh Wrk,Cap Land/Build-Build Enh Wrk,YA102,6/12/2014,284412,348.21,CAPITAL,NORTHERN POWERGRID (YORKSHIRE) PLC,108328
NORTH EAST LINCOLNSHIRE COUNCIL,http://statistics.data.gov.uk/id/local-authority/00FC,Place,Economy,Local Transport Plan Schemes,Cap Land/Build-Build Enh Wrk,Cap Land/Build-Build Enh Wrk,YA102,6/12/2014,284413,348.21,CAPITAL,NORTHERN POWERGRID (YORKSHIRE) PLC,108328
NORTH EAST LINCOLNSHIRE COUNCIL,http://statistics.data.gov.uk/id/local-authority/00FC,Place,Economy,Local Transport Plan Schemes,Cap Land/Build-Build Enh Wrk,Cap Land/Build-Build Enh Wrk,YA102,6/5/2014,283421,348.21,CAPITAL,NORTHERN POWERGRID (NORTHEAST) LTD,126062
NORTH EAST LINCOLNSHIRE COUNCIL,http://statistics.data.gov.uk/id/local-authority/00FC,Place,Economy,Local Transport Plan Schemes,Cap Land/Build-Build Enh Wrk,Cap Land/Build-Build Enh Wrk,YA102,6/9/2014,283572,696.42,CAPITAL,NORTHERN POWERGRID (NORTHEAST) LTD,126062
NORTH EAST LINCOLNSHIRE COUNCIL,http://statistics.data.gov.uk/id/local-authority/00FC,Place,Economy,Local Transport Plan Schemes,Cap Land/Build-Build Enh Wrk,Cap Land/Build-Build Enh Wrk,YA102,6/5/2014,283430,696.42,CAPITAL,NORTHERN POWERGRID (NORTHEAST) LTD,126062
NORTH EAST LINCOLNSHIRE COUNCIL,http://statistics.data.gov.uk/id/local-authority/00FC,Place,Economy,Local Transport Plan Schemes,Cap Land/Build-Build Enh Wrk,Cap Land/Build-Build Enh Wrk,YA102,6/9/2014,283578,696.42,CAPITAL,NORTHERN POWERGRID (NORTHEAST) LTD,126062
NORTH EAST LINCOLNSHIRE COUNCIL,http://statistics.data.gov.uk/id/local-authority/00FC,Place,Economy,Local Transport Plan Schemes,Cap Land/Build-Build Enh Wrk,Cap Land/Build-Build Enh Wrk,YA102,6/5/2014,283427,696.42,CAPITAL,NORTHERN POWERGRID (NORTHEAST) LTD,126062
NORTH EAST LINCOLNSHIRE COUNCIL,http://statistics.data.gov.uk/id/local-authority/00FC,Place,Economy,Local Transport Plan Schemes,Cap Land/Build-Build Enh Wrk,Cap Land/Build-Build Enh Wrk,YA102,6/9/2014,283567,888.2,CAPITAL,NORTHERN POWERGRID (NORTHEAST) LTD,126062
NORTH EAST LINCOLNSHIRE COUNCIL,http://statistics.data.gov.uk/id/local-authority/00FC,Place,Economy,Local Transport Plan Schemes,Cap Land/Build-Build Enh Wrk,Cap Land/Build-Build Enh Wrk,YA102,6/9/2014,283569,2437.47,CAPITAL,NORTHERN POWERGRID (NORTHEAST) LTD,126062
NORTH EAST LINCOLNSHIRE COUNCIL,http://statistics.data.gov.uk/id/local-authority/00FC,Place,Economy,Local Transport Plan Schemes,Cap Land/Build-Build Enh Wrk,Cap Land/Build-Build Enh Wrk,YA102,6/5/2014,283424,348.21,CAPITAL,NORTHERN POWERGRID (NORTHEAST) LTD,126062
NORTH EAST LINCOLNSHIRE COUNCIL,http://statistics.data.gov.uk/id/local-authority/00FC,Place,Economy,Local Transport Plan Schemes,Cap Land/Build-Build Enh Wrk,Cap Land/Build-Build Enh Wrk,YA102,6/9/2014,283570,1079.98,CAPITAL,NORTHERN POWERGRID (NORTHEAST) LTD,126062
NORTH EAST LINCOLNSHIRE COUNCIL,http://statistics.data.gov.uk/id/local-authority/00FC,Place,Economy,Local Transport Plan Schemes,Cap Land/Build-Build Enh Wrk,Cap Land/Build-Build Enh Wrk,YA102,6/23/2014,288235,6249.28,CAPITAL,J MCCANN & CO LTD,100841
NORTH EAST LINCOLNSHIRE COUNCIL,http://statistics.data.gov.uk/id/local-authority/00FC,Place,Economy,Local Transport Plan Schemes,Cap Infrastr-Build Enh Wrk,Cap Infrastr-Build Enh Wrk,YC102,6/16/2014,277336,785.25,CAPITAL,PELL FRISCHMANN CONSULTANTS,100880
NORTH EAST LINCOLNSHIRE COUNCIL,http://statistics.data.gov.uk/id/local-authority/00FC,Place,Economy,Local Transport Plan Schemes,Cap Infrastr-Build Enh Wrk,Cap Infrastr-Build Enh Wrk,YC102,6/16/2014,283479,1560,CAPITAL,PELL FRISCHMANN CONSULTANTS,100880
NORTH EAST LINCOLNSHIRE COUNCIL,http://statistics.data.gov.uk/id/local-authority/00FC,Place,Economy,Local Transport Plan Schemes,Cap Infrastr-Build Enh Wrk,Cap Infrastr-Build Enh Wrk,YC102,6/16/2014,285113,14446.64,CAPITAL,WRIGHT CIVIL ENGINEERING LTD,100624
NORTH EAST LINCOLNSHIRE COUNCIL,http://statistics.data.gov.uk/id/local-authority/00FC,Place,Economy,Local Transport Plan Schemes,Cap Infrastr-Build Enh Wrk,Cap Infrastr-Build Enh Wrk,YC102,6/9/2014,284081,661.98,CAPITAL,HUMBERSIDE MATERIALS LABORATORY LTD,122103
NORTH EAST LINCOLNSHIRE COUNCIL,http://statistics.data.gov.uk/id/local-authority/00FC,Place,Economy,Local Transport Plan Schemes,Cap Infrastr-Build Enh Wrk,Cap Infrastr-Build Enh Wrk,YC102,6/3/2014,283628,5186.85,CAPITAL,HUMBERSIDE MATERIALS LABORATORY LTD,122103
NORTH EAST LINCOLNSHIRE COUNCIL,http://statistics.data.gov.uk/id/local-authority/00FC,Place,Economy,Local Transport Plan Schemes,Cap Infrastr-Build Enh Wrk,Cap Infrastr-Build Enh Wrk,YC102,6/2/2014,281983,115513.35,CAPITAL,DEREK LEWIS LTD,108385
NORTH EAST LINCOLNSHIRE COUNCIL,http://statistics.data.gov.uk/id/local-authority/00FC,Place,Economy,Local Transport Plan Schemes,Cap Land/Build-Build Enh Wrk,Cap Land/Build-Build Enh Wrk,YA102,6/9/2014,284354,2137.88,CAPITAL,BUTTON PLANT & CONSTRUCTION LTD,100710
NORTH EAST LINCOLNSHIRE COUNCIL,http://statistics.data.gov.uk/id/local-authority/00FC,Place,Economy,Freeman Street Regeneration,Cap Land/Build-Build Enh Wrk,Cap Land/Build-Build Enh Wrk,YA102,6/26/2014,289067,2576.6,CAPITAL,BIRSE CIVILS LTD,121547
NORTH EAST LINCOLNSHIRE COUNCIL,http://statistics.data.gov.uk/id/local-authority/00FC,Place,Economy,Freeman Street Regeneration,Cap Land/Build-Build Enh Wrk,Cap Land/Build-Build Enh Wrk,YA102,6/26/2014,289069,71314,CAPITAL,BIRSE CIVILS LTD,121547
NORTH EAST LINCOLNSHIRE COUNCIL,http://statistics.data.gov.uk/id/local-authority/00FC,Place,Economy,Freeman Street Regeneration,Cap Land/Build-Build Enh Wrk,Cap Land/Build-Build Enh Wrk,YA102,6/9/2014,283422,4200,CAPITAL,J MCCANN & CO LTD,100841
NORTH EAST LINCOLNSHIRE COUNCIL,http://statistics.data.gov.uk/id/local-authority/00FC,Place,Economy,Freeman Street Regeneration,Cap Invest Prop-Build Enh Wrk,Cap Invest Prop-Build Enh Wrk,YE102,6/12/2014,284425,593.86,CAPITAL,NORTHERN POWERGRID (YORKSHIRE) PLC,108328
NORTH EAST LINCOLNSHIRE COUNCIL,http://statistics.data.gov.uk/id/local-authority/00FC,Place,Economy,Freeman Street Regeneration,Cap Invest Prop-Build Enh Wrk,Cap Invest Prop-Build Enh Wrk,YE102,6/4/2014,283698,2500,CAPITAL,APPLIANCE WORLD,110787
NORTH EAST LINCOLNSHIRE COUNCIL,http://statistics.data.gov.uk/id/local-authority/00FC,Place,Economy,Freeman Street Regeneration,Cap Invest Prop-Build Enh Wrk,Cap Invest Prop-Build Enh Wrk,YE102,6/4/2014,283700,2500,CAPITAL,FORESIGHT NORTH EAST LINCOLNSHIRE,102869
NORTH EAST LINCOLNSHIRE COUNCIL,http://statistics.data.gov.uk/id/local-authority/00FC,Place,Economy,Freeman Street Regeneration,Cap Invest Prop-Build Enh Wrk,Cap Invest Prop-Build Enh Wrk,YE102,6/17/2014,286539,1575.31,CAPITAL,REDACTED PERSONAL INFORMATION,125162
NORTH EAST LINCOLNSHIRE COUNCIL,http://statistics.data.gov.uk/id/local-authority/00FC,Place,Economy,Freeman Street Regeneration,Cap Invest Prop-Build Enh Wrk,Cap Invest Prop-Build Enh Wrk,YE102,6/18/2014,286760,2500,CAPITAL,REDACTED PERSONAL INFORMATION,121753
NORTH EAST LINCOLNSHIRE COUNCIL,http://statistics.data.gov.uk/id/local-authority/00FC,Place,Economy,Freeman Street Regeneration,Cap Invest Prop-Build Enh Wrk,Cap Invest Prop-Build Enh Wrk,YE102,6/20/2014,286743,2500,CAPITAL,REDACTED PERSONAL INFORMATION,126107
NORTH EAST LINCOLNSHIRE COUNCIL,http://statistics.data.gov.uk/id/local-authority/00FC,Place,Economy,East Marsh Renewal,Cap Land/Build-Build Enh Wrk,Cap Land/Build-Build Enh Wrk,YA102,6/18/2014,286735,6386,CAPITAL,PEGASUS EXTERNALS LTD,125085
NORTH EAST LINCOLNSHIRE COUNCIL,http://statistics.data.gov.uk/id/local-authority/00FC,Place,Economy,Housing Assist Grants And Loan,Cap Grants To O/Side Sources,Cap Grants To O/Side Sources,YJ101,6/9/2014,283679,3780,CAPITAL,VIC HANSEN BUILDING & JOINERY LTD,103981
NORTH EAST LINCOLNSHIRE COUNCIL,http://statistics.data.gov.uk/id/local-authority/00FC,Place,Economy,Housing Assist Grants And Loan,Cap Grants To O/Side Sources,Cap Grants To O/Side Sources,YJ101,6/18/2014,286733,10068,CAPITAL,VALAM BUILDERS LTD,100566
NORTH EAST LINCOLNSHIRE COUNCIL,http://statistics.data.gov.uk/id/local-authority/00FC,Place,Economy,Housing Assist Grants And Loan,Cap Grants To O/Side Sources,Cap Grants To O/Side Sources,YJ101,6/3/2014,283659,2793.6,CAPITAL,M J QUICKFALL,102499
NORTH EAST LINCOLNSHIRE COUNCIL,http://statistics.data.gov.uk/id/local-authority/00FC,Place,Economy,Housing Assist Grants And Loan,Cap Grants To O/Side Sources,Cap Grants To O/Side Sources,YJ101,6/4/2014,283699,7407.41,CAPITAL,M J QUICKFALL,102499
NORTH EAST LINCOLNSHIRE COUNCIL,http://statistics.data.gov.uk/id/local-authority/00FC,Place,Economy,Housing Assist Grants And Loan,Cap Grants To O/Side Sources,Cap Grants To O/Side Sources,YJ101,6/19/2014,286759,6744,CAPITAL,VIC HANSEN BUILDING & JOINERY LTD,103981
NORTH EAST LINCOLNSHIRE COUNCIL,http://statistics.data.gov.uk/id/local-authority/00FC,Place,Economy,Housing Assist Grants And Loan,Cap Grants To O/Side Sources,Cap Grants To O/Side Sources,YJ101,6/20/2014,287339,7344,CAPITAL,VALAM BUILDERS LTD,100566
NORTH EAST LINCOLNSHIRE COUNCIL,http://statistics.data.gov.uk/id/local-authority/00FC,Place,Economy,Housing Assist Grants And Loan,Cap Grants To O/Side Sources,Cap Grants To O/Side Sources,YJ101,6/3/2014,283662,7380,CAPITAL,VALAM BUILDERS LTD,100566
NORTH EAST LINCOLNSHIRE COUNCIL,http://statistics.data.gov.uk/id/local-authority/00FC,Place,Economy,Housing Assist Grants And Loan,Cap Grants To O/Side Sources,Cap Grants To O/Side Sources,YJ101,6/4/2014,283694,845,CAPITAL,STEVE BENNETT ARCHITECTURAL DESIGN,103819
NORTH EAST LINCOLNSHIRE COUNCIL,http://statistics.data.gov.uk/id/local-authority/00FC,Place,Economy,Housing Assist Grants And Loan,Cap Grants To O/Side Sources,Cap Grants To O/Side Sources,YJ101,6/20/2014,287453,651.6,CAPITAL,M J QUICKFALL,102499
NORTH EAST LINCOLNSHIRE COUNCIL,http://statistics.data.gov.uk/id/local-authority/00FC,Place,Economy,Housing Assist Grants And Loan,Cap Grants To O/Side Sources,Cap Grants To O/Side Sources,YJ101,6/4/2014,283686,10460.4,CAPITAL,R W PETTIGREW & SON,104166
NORTH EAST LINCOLNSHIRE COUNCIL,http://statistics.data.gov.uk/id/local-authority/00FC,Place,Economy,Housing Assist Grants And Loan,Cap Grants To O/Side Sources,Cap Grants To O/Side Sources,YJ101,6/4/2014,283688,10933.33,CAPITAL,STEVE BROWN BUILDING CONTRACTORS,125254
NORTH EAST LINCOLNSHIRE COUNCIL,http://statistics.data.gov.uk/id/local-authority/00FC,Place,Economy,Housing Assist Grants And Loan,Cap Grants To O/Side Sources,Cap Grants To O/Side Sources,YJ101,6/19/2014,286529,10933.33,CAPITAL,VIC HANSEN BUILDING & JOINERY LTD,103981
NORTH EAST LINCOLNSHIRE COUNCIL,http://statistics.data.gov.uk/id/local-authority/00FC,Place,Economy,Local Sustainable Trans Fund,Cap Land/Build-Build Enh Wrk,Cap Land/Build-Build Enh Wrk,YA102,6/19/2014,287434,15598.19,CAPITAL,MANTA BRC LTD,102230
NORTH EAST LINCOLNSHIRE COUNCIL,http://statistics.data.gov.uk/id/local-authority/00FC,Place,Economy,Local Sustainable Trans Fund,Cap Infrastr-Build Enh Wrk,Cap Infrastr-Build Enh Wrk,YC102,6/3/2014,275696,300000,CAPITAL,BIRSE CIVILS LTD,121547
NORTH EAST LINCOLNSHIRE COUNCIL,http://statistics.data.gov.uk/id/local-authority/00FC,Place,Economy,Local Sustainable Trans Fund,Cap Infrastr-Build Enh Wrk,Cap Infrastr-Build Enh Wrk,YC102,6/30/2014,287386,253255.53,CAPITAL,BIRSE CIVILS LTD,121547
NORTH EAST LINCOLNSHIRE COUNCIL,http://statistics.data.gov.uk/id/local-authority/00FC,Place,Economy,Local Sustainable Trans Fund,Cap Infrastr-Build Enh Wrk,Cap Infrastr-Build Enh Wrk,YC102,6/20/2014,287416,220000,CAPITAL,BIRSE CIVILS LTD,121547
NORTH EAST LINCOLNSHIRE COUNCIL,http://statistics.data.gov.uk/id/local-authority/00FC,Place,Economy,Local Sustainable Trans Fund,Cap Infrastr-Build Enh Wrk,Cap Infrastr-Build Enh Wrk,YC102,6/12/2014,285256,64686.2,CAPITAL,P H CONSTRUCTION SERVICES LTD,102107
NORTH EAST LINCOLNSHIRE COUNCIL,http://statistics.data.gov.uk/id/local-authority/00FC,Place,Economy,Local Sustainable Trans Fund,Cap Infrastr-Build Enh Wrk,Cap Infrastr-Build Enh Wrk,YC102,6/30/2014,288688,520,CAPITAL,P H CONSTRUCTION SERVICES LTD,102107
NORTH EAST LINCOLNSHIRE COUNCIL,http://statistics.data.gov.uk/id/local-authority/00FC,Place,Economy,Local Sustainable Trans Fund,Cap Infrastr-Build Enh Wrk,Cap Infrastr-Build Enh Wrk,YC102,6/9/2014,284424,460.34,CAPITAL,NORTHERN POWERGRID (YORKSHIRE) PLC,108328
NORTH EAST LINCOLNSHIRE COUNCIL,http://statistics.data.gov.uk/id/local-authority/00FC,Place,Economy,Street Light Low Energy Scheme,Cap Land/Build-Build Enh Wrk,Cap Land/Build-Build Enh Wrk,YA102,6/3/2014,283647,61649.52,CAPITAL,COFELY WORKPLACE LIMITED,123983
NORTH EAST LINCOLNSHIRE COUNCIL,http://statistics.data.gov.uk/id/local-authority/00FC,Place,Economy,Street Light Low Energy Scheme,Cap Land/Build-Build Enh Wrk,Cap Land/Build-Build Enh Wrk,YA102,6/17/2014,286531,102273.18,CAPITAL,J MCCANN & CO LTD,100841
NORTH EAST LINCOLNSHIRE COUNCIL,http://statistics.data.gov.uk/id/local-authority/00FC,Place,Economy,Street Light Low Energy Scheme,Cap Land/Build-Build Enh Wrk,Cap Land/Build-Build Enh Wrk,YA102,6/23/2014,288069,88001.05,CAPITAL,J MCCANN & CO LTD,100841
NORTH EAST LINCOLNSHIRE COUNCIL,http://statistics.data.gov.uk/id/local-authority/00FC,Place,Economy,Street Light Low Energy Scheme,Cap Land/Build-Build Enh Wrk,Cap Land/Build-Build Enh Wrk,YA102,6/2/2014,282248,50427.36,CAPITAL,COFELY WORKPLACE LIMITED,123983
NORTH EAST LINCOLNSHIRE COUNCIL,http://statistics.data.gov.uk/id/local-authority/00FC,Place,Economy,Street Light Low Energy Scheme,Cap Land/Build-Build Enh Wrk,Cap Land/Build-Build Enh Wrk,YA102,6/2/2014,283643,58847.76,CAPITAL,COFELY WORKPLACE LIMITED,123983
NORTH EAST LINCOLNSHIRE COUNCIL,http://statistics.data.gov.uk/id/local-authority/00FC,Place,Culture Leisure And Sport,Leisure/Library - Kgv,Cap Land/Build-Build Enh Wrk,Cap Land/Build-Build Enh Wrk,YA102,6/4/2014,271896,695,CAPITAL,NEWBY LEISURE LTD,101227
NORTH EAST LINCOLNSHIRE COUNCIL,http://statistics.data.gov.uk/id/local-authority/00FC,Place,Culture Leisure And Sport,New Leisure Centre At Grimsby,Cap Comm Asset-Build Enh Wrk,Cap Comm Asset-Build Enh Wrk,YD102,6/9/2014,282927,21712,CAPITAL,COFELY WORKPLACE LIMITED,123983
NORTH EAST LINCOLNSHIRE COUNCIL,http://statistics.data.gov.uk/id/local-authority/00FC,Place,Culture Leisure And Sport,Cleethorpes Leis Cent Refurb,Cap Land/Build-Prof Fees,Cap Land/Build-Prof Fees,YA103,6/26/2014,288241,360,CAPITAL,REDHILL ANALYSTS LTD,109169
NORTH EAST LINCOLNSHIRE COUNCIL,http://statistics.data.gov.uk/id/local-authority/00FC,Place,Culture Leisure And Sport,Immingham Muga,Cap Land/Build-Build Enh Wrk,Cap Land/Build-Build Enh Wrk,YA102,6/5/2014,282917,500,CAPITAL,COFELY WORKPLACE LIMITED,123983
NORTH EAST LINCOLNSHIRE COUNCIL,http://statistics.data.gov.uk/id/local-authority/00FC,Place,Assets,Backlog Maintenance,Cap Land/Build-Build Enh Wrk,Cap Land/Build-Build Enh Wrk,YA102,6/19/2014,287359,8834.04,CAPITAL,MANTA BRC LTD,102230
NORTH EAST LINCOLNSHIRE COUNCIL,http://statistics.data.gov.uk/id/local-authority/00FC,Place,Assets,Property Rationalisation Prog,Cap Land/Build-Build Enh Wrk,Cap Land/Build-Build Enh Wrk,YA102,6/3/2014,282642,386,CAPITAL,FUTURE CLEANING SERVICES LTD,102557
NORTH EAST LINCOLNSHIRE COUNCIL,http://statistics.data.gov.uk/id/local-authority/00FC,Place,Assets,Property Rationalisation Prog,Cap Land/Build-Build Enh Wrk,Cap Land/Build-Build Enh Wrk,YA102,6/23/2014,288063,1028,CAPITAL,LINCS ELECTRICAL SERVICES LTD,102044
NORTH EAST LINCOLNSHIRE COUNCIL,http://statistics.data.gov.uk/id/local-authority/00FC,Place,Assets,Property Rationalisation Prog,Cap Infrastr-Purchase,Cap Infrastr-Purchase,YC101,6/9/2014,284357,1040,CAPITAL,BADENOCH & CLARK,101427
NORTH EAST LINCOLNSHIRE COUNCIL,http://statistics.data.gov.uk/id/local-authority/00FC,Place,Assets,Property Rationalisation Prog,Cap Infrastr-Purchase,Cap Infrastr-Purchase,YC101,6/24/2014,286929,1040,CAPITAL,BADENOCH & CLARK,101427
NORTH EAST LINCOLNSHIRE COUNCIL,http://statistics.data.gov.uk/id/local-authority/00FC,Place,Assets,Property Rationalisation Prog,Cap Infrastr-Purchase,Cap Infrastr-Purchase,YC101,6/30/2014,282687,502.32,CAPITAL,COMPUTACENTER UK LTD,101303
NORTH EAST LINCOLNSHIRE COUNCIL,http://statistics.data.gov.uk/id/local-authority/00FC,Place,Assets,Property Rationalisation Prog,Cap Infrastr-Purchase,Cap Infrastr-Purchase,YC101,6/5/2014,284139,943.11,CAPITAL,MATRIX SCM LTD,108117
NORTH EAST LINCOLNSHIRE COUNCIL,http://statistics.data.gov.uk/id/local-authority/00FC,Place,Assets,Property Rationalisation Prog,Cap Infrastr-Purchase,Cap Infrastr-Purchase,YC101,6/5/2014,284138,1395.57,CAPITAL,MATRIX SCM LTD,108117
NORTH EAST LINCOLNSHIRE COUNCIL,http://statistics.data.gov.uk/id/local-authority/00FC,Place,Assets,Property Rationalisation Prog,Cap Infrastr-Purchase,Cap Infrastr-Purchase,YC101,6/5/2014,284140,961.8,CAPITAL,MATRIX SCM LTD,108117
NORTH EAST LINCOLNSHIRE COUNCIL,http://statistics.data.gov.uk/id/local-authority/00FC,Place,Assets,Property Rationalisation Prog,Cap Infrastr-Purchase,Cap Infrastr-Purchase,YC101,6/26/2014,288238,1031.7,CAPITAL,MATRIX SCM LTD,108117
NORTH EAST LINCOLNSHIRE COUNCIL,http://statistics.data.gov.uk/id/local-authority/00FC,Place,Assets,Property Rationalisation Prog,Cap Infrastr-Purchase,Cap Infrastr-Purchase,YC101,6/19/2014,286910,909.42,CAPITAL,SPECIALIST COMPUTER CENTRES PLC,110715
NORTH EAST LINCOLNSHIRE COUNCIL,http://statistics.data.gov.uk/id/local-authority/00FC,Place,Assets,Property Rationalisation Prog,Cap Infrastr-Purchase,Cap Infrastr-Purchase,YC101,6/9/2014,284141,427.2,CAPITAL,MATRIX SCM LTD,108117
NORTH EAST LINCOLNSHIRE COUNCIL,http://statistics.data.gov.uk/id/local-authority/00FC,Place,Assets,Property Rationalisation Prog,Cap Infrastr-Purchase,Cap Infrastr-Purchase,YC101,6/12/2014,282291,360,CAPITAL,VIGLEN LIMITED,100883
NORTH EAST LINCOLNSHIRE COUNCIL,http://statistics.data.gov.uk/id/local-authority/00FC,Place,Assets,Property Rationalisation Prog,Cap Infrastr-Build Enh Wrk,Cap Infrastr-Build Enh Wrk,YC102,6/3/2014,282645,2023.74,CAPITAL,W R CULLUM,100811
NORTH EAST LINCOLNSHIRE COUNCIL,http://statistics.data.gov.uk/id/local-authority/00FC,Place,Assets,Property Rationalisation Prog,Cap Infrastr-Purchase,Cap Infrastr-Purchase,YC101,6/18/2014,286568,334.88,CAPITAL,COMPUTACENTER UK LTD,101303
NORTH EAST LINCOLNSHIRE COUNCIL,http://statistics.data.gov.uk/id/local-authority/00FC,Place,Assets,Property Rationalisation Prog,Cap Infrastr-Purchase,Cap Infrastr-Purchase,YC101,6/19/2014,287307,3637.68,CAPITAL,SPECIALIST COMPUTER CENTRES PLC,110715
NORTH EAST LINCOLNSHIRE COUNCIL,http://statistics.data.gov.uk/id/local-authority/00FC,Place,Assets,Property Rationalisation Prog,Cap Infrastr-Purchase,Cap Infrastr-Purchase,YC101,6/30/2014,282683,1674.4,CAPITAL,COMPUTACENTER UK LTD,101303
NORTH EAST LINCOLNSHIRE COUNCIL,http://statistics.data.gov.uk/id/local-authority/00FC,Place,Assets,Property Rationalisation Prog,Cap Infrastr-Purchase,Cap Infrastr-Purchase,YC101,6/12/2014,282289,648,CAPITAL,VIGLEN LIMITED,100883
NORTH EAST LINCOLNSHIRE COUNCIL,http://statistics.data.gov.uk/id/local-authority/00FC,Place,Assets,Property Rationalisation Prog,Cap Infrastr-Build Enh Wrk,Cap Infrastr-Build Enh Wrk,YC102,6/17/2014,286593,7989,CAPITAL,KES BUILDING MAINTENANCE LIMITED,100786
NORTH EAST LINCOLNSHIRE COUNCIL,http://statistics.data.gov.uk/id/local-authority/00FC,Place,Assets,Property Rationalisation Prog,Cap Land/Build-Prof Fees,Cap Land/Build-Prof Fees,YA103,6/26/2014,288240,831,CAPITAL,BATES & MOUNTAIN SOLICITORS,105051
NORTH EAST LINCOLNSHIRE COUNCIL,http://statistics.data.gov.uk/id/local-authority/00FC,Public Health,Public Health,Director Public Health,Direct Employee Expenses,Agency Staff,EA105,6/3/2014,284156,1804.66,REVENUE,VOLUNTARY ACTION NORTH EAST LINCOLNSHIRE,103631
NORTH EAST LINCOLNSHIRE COUNCIL,http://statistics.data.gov.uk/id/local-authority/00FC,Public Health,Public Health,Director Public Health,Communications And Computing,Computer S/Ware - Licences,LF103,6/19/2014,275262,708,REVENUE,IBM UNITED KINGDOM LTD,119081
NORTH EAST LINCOLNSHIRE COUNCIL,http://statistics.data.gov.uk/id/local-authority/00FC,Public Health,Public Health,Director Public Health,Contributions To Provisions,Contributions - Third Sector,LK102,6/26/2014,289019,6959.06,REVENUE,WEST MARSH DEVELOPMENT TRUST,105846
NORTH EAST LINCOLNSHIRE COUNCIL,http://statistics.data.gov.uk/id/local-authority/00FC,Public Health,Public Health,Director Public Health,Contributions To Provisions,Contributions - Third Sector,LK102,6/26/2014,242298,37500,REVENUE,NE LINCOLNSHIRE CLINICAL COMMISSIONING GROUP,121624
NORTH EAST LINCOLNSHIRE COUNCIL,http://statistics.data.gov.uk/id/local-authority/00FC,Public Health,Public Health,Director Public Health,Contributions To Provisions,Contributions - Third Sector,LK102,6/3/2014,284150,-36000,REVENUE,TERTIA TRUST HUMBERSTON,114719
NORTH EAST LINCOLNSHIRE COUNCIL,http://statistics.data.gov.uk/id/local-authority/00FC,Public Health,Public Health,Sexual Health,Voluntary Associations,Third Pp - Third Sector,PF101,6/12/2014,285170,777.23,REVENUE,POSITIVE HEALTH,125235
NORTH EAST LINCOLNSHIRE COUNCIL,http://statistics.data.gov.uk/id/local-authority/00FC,Public Health,Public Health,Sexual Health,Voluntary Associations,Third Pp - Third Sector,PF101,6/12/2014,285169,1554.46,REVENUE,POSITIVE HEALTH,125235
NORTH EAST LINCOLNSHIRE COUNCIL,http://statistics.data.gov.uk/id/local-authority/00FC,Public Health,Public Health,Sexual Health,Private Contractors,Contract Payments,PH105,6/12/2014,285171,REDACTED COMMERCIALLY SENSITIVE,REVENUE,VIRGIN CARE SERVICES LTD,120538
NORTH EAST LINCOLNSHIRE COUNCIL,http://statistics.data.gov.uk/id/local-authority/00FC,Public Health,Public Health,Sexual Health,Private Contractors,Third Party Prov - Private,PH101,6/12/2014,285172,255,REVENUE,EA BROADBURN DISPENSING CHEMIST,101135
NORTH EAST LINCOLNSHIRE COUNCIL,http://statistics.data.gov.uk/id/local-authority/00FC,Public Health,Public Health,Sexual Health,Other Agencies,Health Charges,PJ131,6/17/2014,286125,253.27,REVENUE,BARNSLEY HOSPITAL NHS FOUNDATION TRUST,126126
NORTH EAST LINCOLNSHIRE COUNCIL,http://statistics.data.gov.uk/id/local-authority/00FC,Public Health,Public Health,Sexual Health,Other Agencies,Other,PJ121,6/12/2014,285167,480,REVENUE,PELHAM MEDICAL GROUP,104350
NORTH EAST LINCOLNSHIRE COUNCIL,http://statistics.data.gov.uk/id/local-authority/00FC,Public Health,Public Health,Sexual Health,Other Agencies,Other,PJ121,6/17/2014,286040,320,REVENUE,DR SINHA & DR G DE,108111
NORTH EAST LINCOLNSHIRE COUNCIL,http://statistics.data.gov.uk/id/local-authority/00FC,Public Health,Public Health,Tobacco,Private Contractors,Third Party Prov - Private,PH101,6/3/2014,282877,270,REVENUE,LASERMET LTD,125645
NORTH EAST LINCOLNSHIRE COUNCIL,http://statistics.data.gov.uk/id/local-authority/00FC,Other Corporate Budgets,Other Corp Budgets - Technical,Appropriations,Miscellaneous Expenses,Other Expenses General,LL119,6/5/2014,284458,6000,REVENUE,HYMANS ROBERTSON LLP,107021
NORTH EAST LINCOLNSHIRE COUNCIL,http://statistics.data.gov.uk/id/local-authority/00FC,Other Corporate Budgets,Other Corp Budgets - Financing,Borrowing Costs,Other Agencies,Fees Comm Clf Logotech Charges,PJ142,6/16/2014,284957,650,REVENUE,PSLIVE LTD,125043
NORTH EAST LINCOLNSHIRE COUNCIL,http://statistics.data.gov.uk/id/local-authority/00FC,People,Schools,Schools,Direct Employee Expenses,Agency Supply Teachers,EA104,6/23/2014,286935,883.75,REVENUE,TEACHING PERSONNEL LTD,101305
NORTH EAST LINCOLNSHIRE COUNCIL,http://statistics.data.gov.uk/id/local-authority/00FC,People,Schools,Schools,Direct Employee Expenses,Agency Supply Teachers,EA104,6/30/2014,288699,530.25,REVENUE,TEACHING PERSONNEL LTD,101305
NORTH EAST LINCOLNSHIRE COUNCIL,http://statistics.data.gov.uk/id/local-authority/00FC,People,Schools,Schools,Direct Employee Expenses,Agency Supply Teachers,EA104,6/20/2014,286934,883.75,REVENUE,TEACHING PERSONNEL LTD,101305
NORTH EAST LINCOLNSHIRE COUNCIL,http://statistics.data.gov.uk/id/local-authority/00FC,People,Schools,Schools,Communications And Computing,Computer H/Ware - Licences,LF107,6/20/2014,287256,5616,REVENUE,TECHNOLOGY SUPPORT SOLUTIONS LTD,119571
NORTH EAST LINCOLNSHIRE COUNCIL,http://statistics.data.gov.uk/id/local-authority/00FC,People,Schools,Schools,Miscellaneous Expenses,Exam Fees,LL115,6/3/2014,280403,-59.7,REVENUE,ASSESSMENT AND QUALIFICATIONS ALLIANCE,101139
NORTH EAST LINCOLNSHIRE COUNCIL,http://statistics.data.gov.uk/id/local-authority/00FC,People,Schools,Schools,Miscellaneous Expenses,Exam Fees,LL115,6/18/2014,287301,543.05,REVENUE,PEARSON,121279
NORTH EAST LINCOLNSHIRE COUNCIL,http://statistics.data.gov.uk/id/local-authority/00FC,People,Schools,Schools,Consultancy,Consultancy - Curriculum,PL102,6/19/2014,287229,-240,REVENUE,ASSESSMENT AND QUALIFICATIONS ALLIANCE,101139
NORTH EAST LINCOLNSHIRE COUNCIL,http://statistics.data.gov.uk/id/local-authority/00FC,People,Schools,Schools,Direct Employee Expenses,Agency Supply Teachers,EA104,6/12/2014,285243,355.5,REVENUE,TEACHING PERSONNEL LTD,101305
NORTH EAST LINCOLNSHIRE COUNCIL,http://statistics.data.gov.uk/id/local-authority/00FC,People,Schools,Schools,Direct Employee Expenses,Agency Supply Teachers,EA104,6/18/2014,286424,592.5,REVENUE,TEACHING PERSONNEL LTD,101305
NORTH EAST LINCOLNSHIRE COUNCIL,http://statistics.data.gov.uk/id/local-authority/00FC,People,Schools,Schools,Rep Alterations Maint Building,Buildings - Repairs And Maint,GA102,6/9/2014,285153,479,REVENUE,HAITH'S HEATING LTD,101342
NORTH EAST LINCOLNSHIRE COUNCIL,http://statistics.data.gov.uk/id/local-authority/00FC,People,Schools,Schools,Rep Alterations Maint Building,Buildings - Repairs And Maint,GA102,6/11/2014,285152,420,REVENUE,KES BUILDING MAINTENANCE LIMITED,100786
NORTH EAST LINCOLNSHIRE COUNCIL,http://statistics.data.gov.uk/id/local-authority/00FC,People,Schools,Schools,Rep Alterations Maint Building,Buildings - Repairs And Maint,GA102,6/11/2014,285151,925,REVENUE,KES BUILDING MAINTENANCE LIMITED,100786
NORTH EAST LINCOLNSHIRE COUNCIL,http://statistics.data.gov.uk/id/local-authority/00FC,People,Schools,Schools,Energy Costs,Electricity,GB102,6/11/2014,285140,1753.34,REVENUE,NPOWER,101368
NORTH EAST LINCOLNSHIRE COUNCIL,http://statistics.data.gov.uk/id/local-authority/00FC,People,Schools,Schools,Energy Costs,Electricity,GB102,6/11/2014,285141,1067.96,REVENUE,NPOWER,101368
NORTH EAST LINCOLNSHIRE COUNCIL,http://statistics.data.gov.uk/id/local-authority/00FC,People,Schools,Schools,Energy Costs,Electricity,GB102,6/4/2014,284368,954.97,REVENUE,NPOWER LIMITED,101414
NORTH EAST LINCOLNSHIRE COUNCIL,http://statistics.data.gov.uk/id/local-authority/00FC,People,Schools,Schools,Energy Costs,Gas,GB101,6/17/2014,286391,257.67,REVENUE,BRITISH GAS TRADING LTD,101507
NORTH EAST LINCOLNSHIRE COUNCIL,http://statistics.data.gov.uk/id/local-authority/00FC,People,Schools,Schools,Energy Costs,Gas,GB101,6/11/2014,285146,505.3,REVENUE,BRITISH GAS TRADING LTD,101507
NORTH EAST LINCOLNSHIRE COUNCIL,http://statistics.data.gov.uk/id/local-authority/00FC,People,Schools,Schools,Equip / Furniture / Materials,Teaching Materials,LA117,6/4/2014,282603,-20.68,REVENUE,YORKSHIRE PURCHASING,100573
NORTH EAST LINCOLNSHIRE COUNCIL,http://statistics.data.gov.uk/id/local-authority/00FC,People,Schools,Schools,Equip / Furniture / Materials,Teaching Materials,LA117,6/9/2014,285122,381.2,REVENUE,YORKSHIRE PURCHASING,100573
NORTH EAST LINCOLNSHIRE COUNCIL,http://statistics.data.gov.uk/id/local-authority/00FC,People,Schools,Schools,Miscellaneous Expenses,Legal Fees - General,LL103,6/9/2014,284942,752.5,REVENUE,WILKIN CHAPMAN LLP,110675
NORTH EAST LINCOLNSHIRE COUNCIL,http://statistics.data.gov.uk/id/local-authority/00FC,People,Schools,Schools,Other Agencies,Educational Visits,PJ152,6/9/2014,285131,337.08,REVENUE,KARTING WORLD LTD,103340
NORTH EAST LINCOLNSHIRE COUNCIL,http://statistics.data.gov.uk/id/local-authority/00FC,People,Schools,Schools,Other Agencies,Educational Visits,PJ152,6/11/2014,285613,990,REVENUE,KINGSWOOD EDUCATIONAL ACTIVITY CENTRE,101287
NORTH EAST LINCOLNSHIRE COUNCIL,http://statistics.data.gov.uk/id/local-authority/00FC,People,Schools,Schools,Consultancy,Consultancy - Curriculum,PL102,6/18/2014,286390,520,REVENUE,YOUTHORIA,101292
NORTH EAST LINCOLNSHIRE COUNCIL,http://statistics.data.gov.uk/id/local-authority/00FC,People,Schools,Schools,Rep Alterations Maint Building,Buildings - Repairs And Maint,GA102,6/2/2014,283151,662.5,REVENUE,FRED MARGARSON LTD,100592
NORTH EAST LINCOLNSHIRE COUNCIL,http://statistics.data.gov.uk/id/local-authority/00FC,People,Schools,Schools,Cleaning And Domestic Supplies,Cleaning - Consumables,GH103,6/17/2014,285270,-12.5,REVENUE,COMPLETE OFFICE SOLUTIONS (UK) LTD,123664
NORTH EAST LINCOLNSHIRE COUNCIL,http://statistics.data.gov.uk/id/local-authority/00FC,People,Schools,Schools,Cleaning And Domestic Supplies,Cleaning - Services,GH102,6/12/2014,285272,366.35,REVENUE,BUSY BEES DOMESTIC CLEANING SERVICES,123772
NORTH EAST LINCOLNSHIRE COUNCIL,http://statistics.data.gov.uk/id/local-authority/00FC,People,Schools,Schools,Equip / Furniture / Materials,Non-Teaching Resources,LA118,6/17/2014,285266,-13.95,REVENUE,EAST RIDING OF YORKSHIRE COUNCIL,100654
NORTH EAST LINCOLNSHIRE COUNCIL,http://statistics.data.gov.uk/id/local-authority/00FC,People,Schools,Schools,Equip / Furniture / Materials,Teaching Materials,LA117,6/30/2014,289457,-7.59,REVENUE,YORKSHIRE PURCHASING,100573
NORTH EAST LINCOLNSHIRE COUNCIL,http://statistics.data.gov.uk/id/local-authority/00FC,People,Schools,Schools,Communications And Computing,Computer H/Ware - Purchases,LF105,6/19/2014,287324,675,REVENUE,TECHNOLOGY SUPPORT SOLUTIONS LTD,119571
NORTH EAST LINCOLNSHIRE COUNCIL,http://statistics.data.gov.uk/id/local-authority/00FC,People,Schools,Schools,Communications And Computing,Computer H/Ware - Purchases,LF105,6/19/2014,287324,288,REVENUE,TECHNOLOGY SUPPORT SOLUTIONS LTD,119571
NORTH EAST LINCOLNSHIRE COUNCIL,http://statistics.data.gov.uk/id/local-authority/00FC,People,Schools,Schools,Communications And Computing,Internet Connection,LF110,6/19/2014,287324,2250,REVENUE,TECHNOLOGY SUPPORT SOLUTIONS LTD,119571
NORTH EAST LINCOLNSHIRE COUNCIL,http://statistics.data.gov.uk/id/local-authority/00FC,People,Schools,Schools,Communications And Computing,Telephones,LF112,6/19/2014,287292,280,REVENUE,ING LEASING (UK) LTD,101680
NORTH EAST LINCOLNSHIRE COUNCIL,http://statistics.data.gov.uk/id/local-authority/00FC,People,Schools,Schools,Consultancy,Consultancy,PL101,6/26/2014,288661,1500,REVENUE,FOCUS ON COMMUNITY,105185
NORTH EAST LINCOLNSHIRE COUNCIL,http://statistics.data.gov.uk/id/local-authority/00FC,People,Schools,Schools,Communications And Computing,Computer H/Ware - Purchases,LF105,6/24/2014,288569,3069,REVENUE,TECHNOLOGY SUPPORT SOLUTIONS LTD,119571
NORTH EAST LINCOLNSHIRE COUNCIL,http://statistics.data.gov.uk/id/local-authority/00FC,People,Schools,Schools,Communications And Computing,Computer H/Ware - Teaching,LF104,6/24/2014,288569,864,REVENUE,TECHNOLOGY SUPPORT SOLUTIONS LTD,119571
NORTH EAST LINCOLNSHIRE COUNCIL,http://statistics.data.gov.uk/id/local-authority/00FC,People,Schools,Schools,Energy Costs,Electricity,GB102,6/2/2014,283010,376.65,REVENUE,NPOWER,101368
NORTH EAST LINCOLNSHIRE COUNCIL,http://statistics.data.gov.uk/id/local-authority/00FC,People,Schools,Schools,Equip / Furniture / Materials,Equipment - Teaching,LA109,6/2/2014,283031,268.25,REVENUE,YORKSHIRE PURCHASING,100573
NORTH EAST LINCOLNSHIRE COUNCIL,http://statistics.data.gov.uk/id/local-authority/00FC,People,Schools,Schools,Print Stationery / Gen Off Exp,Photocopier - Running Costs,LD102,6/16/2014,286103,870.78,REVENUE,UNITED CARLTON OFFICE SYSTEMS LTD,101652
NORTH EAST LINCOLNSHIRE COUNCIL,http://statistics.data.gov.uk/id/local-authority/00FC,People,Schools,Schools,Communications And Computing,Computer H/Ware - Purchases,LF105,6/19/2014,286985,1638,REVENUE,TECHNOLOGY SUPPORT SOLUTIONS LTD,119571
NORTH EAST LINCOLNSHIRE COUNCIL,http://statistics.data.gov.uk/id/local-authority/00FC,People,Schools,Schools,Communications And Computing,Computer H/Ware - Teaching,LF104,6/19/2014,286985,4620,REVENUE,TECHNOLOGY SUPPORT SOLUTIONS LTD,119571
NORTH EAST LINCOLNSHIRE COUNCIL,http://statistics.data.gov.uk/id/local-authority/00FC,People,Schools,Schools,Consultancy,Consultancy - Curriculum,PL102,6/17/2014,286101,525,REVENUE,LISA OLIVER,101318
NORTH EAST LINCOLNSHIRE COUNCIL,http://statistics.data.gov.uk/id/local-authority/00FC,People,Schools,Schools,Consultancy,Consultancy - Curriculum,PL102,6/3/2014,283015,1150,REVENUE,LINCS INSPIRE LTD,120610
NORTH EAST LINCOLNSHIRE COUNCIL,http://statistics.data.gov.uk/id/local-authority/00FC,People,Schools,Schools,Rep Alterations Maint Building,Buildings - Repairs And Maint,GA102,6/9/2014,284912,1880,REVENUE,EXCELL ELECTRICAL CONTRACTORS,100601
NORTH EAST LINCOLNSHIRE COUNCIL,http://statistics.data.gov.uk/id/local-authority/00FC,People,Schools,Schools,Rep Alterations Maint Building,Internal Decoration,GA119,6/12/2014,285303,390,REVENUE,MR S DENMEAD,119899
NORTH EAST LINCOLNSHIRE COUNCIL,http://statistics.data.gov.uk/id/local-authority/00FC,People,Schools,Schools,Rep Alterations Maint Building,Internal Decoration,GA119,6/12/2014,285296,480,REVENUE,MR S DENMEAD,119899
NORTH EAST LINCOLNSHIRE COUNCIL,http://statistics.data.gov.uk/id/local-authority/00FC,People,Schools,Schools,Energy Costs,Electricity,GB102,6/24/2014,288053,840.94,REVENUE,NPOWER LIMITED,101414
NORTH EAST LINCOLNSHIRE COUNCIL,http://statistics.data.gov.uk/id/local-authority/00FC,People,Schools,Schools,Energy Costs,Gas,GB101,6/17/2014,286532,511.07,REVENUE,BRITISH GAS TRADING LTD,101507
NORTH EAST LINCOLNSHIRE COUNCIL,http://statistics.data.gov.uk/id/local-authority/00FC,People,Schools,Schools,Cleaning And Domestic Supplies,Cleaning - Consumables,GH103,6/9/2014,284608,305.04,REVENUE,PETER HOGARTH & SONS LTD,100815
NORTH EAST LINCOLNSHIRE COUNCIL,http://statistics.data.gov.uk/id/local-authority/00FC,People,Schools,Schools,Grounds Maintenance Costs,Grounds Maintenance,GJ101,6/2/2014,283132,645.19,REVENUE,MAINSERVE CONTRACTS LTD,102202
NORTH EAST LINCOLNSHIRE COUNCIL,http://statistics.data.gov.uk/id/local-authority/00FC,People,Schools,Schools,Equip / Furniture / Materials,Equipment - Teaching,LA109,6/12/2014,284484,1590,REVENUE,EAST RIDING OF YORKSHIRE COUNCIL,100654
NORTH EAST LINCOLNSHIRE COUNCIL,http://statistics.data.gov.uk/id/local-authority/00FC,People,Schools,Schools,Equip / Furniture / Materials,Goods For Resale,LA123,6/2/2014,282790,1367.46,REVENUE,SPEEDMARK (SPORT AND LEISURE) LTD,121362
NORTH EAST LINCOLNSHIRE COUNCIL,http://statistics.data.gov.uk/id/local-authority/00FC,People,Schools,Schools,Equip / Furniture / Materials,Kitchens Equipment - Maint,LA114,6/5/2014,283123,594.81,REVENUE,EAST RIDING OF YORKSHIRE COUNCIL,100654
NORTH EAST LINCOLNSHIRE COUNCIL,http://statistics.data.gov.uk/id/local-authority/00FC,People,Schools,Schools,Equip / Furniture / Materials,Kitchens Equipment - Maint,LA114,6/2/2014,282822,-193.18,REVENUE,SYLVESTER-KEAL LTD,100593
NORTH EAST LINCOLNSHIRE COUNCIL,http://statistics.data.gov.uk/id/local-authority/00FC,People,Schools,Schools,Equip / Furniture / Materials,Kitchens Equipment - Maint,LA114,6/2/2014,282786,253.93,REVENUE,SYLVESTER-KEAL LTD,100593
NORTH EAST LINCOLNSHIRE COUNCIL,http://statistics.data.gov.uk/id/local-authority/00FC,People,Schools,Schools,Equip / Furniture / Materials,Teaching Materials,LA117,6/19/2014,287326,-19.9,REVENUE,OFFICE FRIENDS LTD,102454
NORTH EAST LINCOLNSHIRE COUNCIL,http://statistics.data.gov.uk/id/local-authority/00FC,People,Schools,Schools,Print Stationery / Gen Off Exp,Photocopier - Running Costs,LD102,6/3/2014,283121,768.68,REVENUE,THE DANWOOD GROUP LTD,100669
NORTH EAST LINCOLNSHIRE COUNCIL,http://statistics.data.gov.uk/id/local-authority/00FC,People,Schools,Schools,Print Stationery / Gen Off Exp,Photocopier - Running Costs,LD102,6/23/2014,287543,745.28,REVENUE,THE DANWOOD GROUP LTD,100669
NORTH EAST LINCOLNSHIRE COUNCIL,http://statistics.data.gov.uk/id/local-authority/00FC,People,Schools,Schools,Print Stationery / Gen Off Exp,Photocopier - Running Costs,LD102,6/23/2014,288014,521.94,REVENUE,SIEMENS FINANCIAL SERVICES LTD,101161
NORTH EAST LINCOLNSHIRE COUNCIL,http://statistics.data.gov.uk/id/local-authority/00FC,People,Schools,Schools,Print Stationery / Gen Off Exp,Photocopier - Running Costs,LD102,6/24/2014,288049,-768.68,REVENUE,THE DANWOOD GROUP LTD,100669
NORTH EAST LINCOLNSHIRE COUNCIL,http://statistics.data.gov.uk/id/local-authority/00FC,People,Schools,Schools,Communications And Computing,Computer H/Ware - Teaching,LF104,6/19/2014,287511,295,REVENUE,INSIGHT DIRECT (UK) LTD,101011
NORTH EAST LINCOLNSHIRE COUNCIL,http://statistics.data.gov.uk/id/local-authority/00FC,People,Schools,Schools,Communications And Computing,Computer H/Ware - Teaching,LF104,6/17/2014,285250,618.9,REVENUE,OFFICE FRIENDS LTD,102454
NORTH EAST LINCOLNSHIRE COUNCIL,http://statistics.data.gov.uk/id/local-authority/00FC,People,Schools,Schools,Other Agencies,Educational Visits,PJ152,6/2/2014,283724,1080,REVENUE,PLEASURE ISLAND,104923
NORTH EAST LINCOLNSHIRE COUNCIL,http://statistics.data.gov.uk/id/local-authority/00FC,People,Schools,Schools,Other Agencies,Educational Visits,PJ152,6/19/2014,287548,580,REVENUE,QUANTUM THEATRE,103834
NORTH EAST LINCOLNSHIRE COUNCIL,http://statistics.data.gov.uk/id/local-authority/00FC,People,Schools,Schools,Indirect Employee Expenses,Staff Training,EB122,6/19/2014,287467,2500,REVENUE,RUTH MISKIN LITERACY LTD,103122
NORTH EAST LINCOLNSHIRE COUNCIL,http://statistics.data.gov.uk/id/local-authority/00FC,People,Schools,Schools,Rep Alterations Maint Building,Buildings - Repairs And Maint,GA102,6/17/2014,286169,1085.5,REVENUE,KES BUILDING MAINTENANCE LIMITED,100786
NORTH EAST LINCOLNSHIRE COUNCIL,http://statistics.data.gov.uk/id/local-authority/00FC,People,Schools,Schools,Rep Alterations Maint Building,Buildings - Repairs And Maint,GA102,6/9/2014,285045,1152.75,REVENUE,FRED MARGARSON LTD,100592
NORTH EAST LINCOLNSHIRE COUNCIL,http://statistics.data.gov.uk/id/local-authority/00FC,People,Schools,Schools,Rep Alterations Maint Building,Buildings - Repairs And Maint,GA102,6/9/2014,284431,1257,REVENUE,UNIBUILD BUILDING CONT LTD,101469
NORTH EAST LINCOLNSHIRE COUNCIL,http://statistics.data.gov.uk/id/local-authority/00FC,People,Schools,Schools,Rep Alterations Maint Building,Electrical Testing,GA107,6/9/2014,285034,294.9,REVENUE,FRED MARGARSON LTD,100592
NORTH EAST LINCOLNSHIRE COUNCIL,http://statistics.data.gov.uk/id/local-authority/00FC,People,Schools,Schools,Energy Costs,Electricity,GB102,6/2/2014,282828,261.43,REVENUE,NPOWER LIMITED,101414
NORTH EAST LINCOLNSHIRE COUNCIL,http://statistics.data.gov.uk/id/local-authority/00FC,People,Schools,Schools,Energy Costs,Electricity,GB102,6/2/2014,282829,283.44,REVENUE,NPOWER LIMITED,101414
NORTH EAST LINCOLNSHIRE COUNCIL,http://statistics.data.gov.uk/id/local-authority/00FC,People,Schools,Schools,Energy Costs,Gas,GB101,6/19/2014,287401,363.64,REVENUE,BRITISH GAS TRADING LTD,101507
NORTH EAST LINCOLNSHIRE COUNCIL,http://statistics.data.gov.uk/id/local-authority/00FC,People,Schools,Schools,Water Services,Water,GE101,6/30/2014,288908,699.54,REVENUE,ANGLIAN WATER,100508
NORTH EAST LINCOLNSHIRE COUNCIL,http://statistics.data.gov.uk/id/local-authority/00FC,People,Schools,Schools,Cleaning And Domestic Supplies,Refuse Collection,GH104,6/17/2014,285186,1339.44,REVENUE,BIFFA WASTE SERVICES LTD,100515
NORTH EAST LINCOLNSHIRE COUNCIL,http://statistics.data.gov.uk/id/local-authority/00FC,People,Schools,Schools,Cleaning And Domestic Supplies,Refuse Collection,GH104,6/17/2014,285217,305,REVENUE,W R CULLUM,100811
NORTH EAST LINCOLNSHIRE COUNCIL,http://statistics.data.gov.uk/id/local-authority/00FC,People,Schools,Schools,Direct Transport Costs,Vehicles - Running Costs,JA104,6/17/2014,286098,675,REVENUE,COOPERS TOURS,101503
NORTH EAST LINCOLNSHIRE COUNCIL,http://statistics.data.gov.uk/id/local-authority/00FC,People,Schools,Schools,Equip / Furniture / Materials,Teaching Materials,LA117,6/19/2014,287421,1590.42,REVENUE,YORKSHIRE PURCHASING,100573
NORTH EAST LINCOLNSHIRE COUNCIL,http://statistics.data.gov.uk/id/local-authority/00FC,People,Schools,Schools,Equip / Furniture / Materials,Teaching Materials,LA117,6/26/2014,288982,854.99,REVENUE,YORKSHIRE PURCHASING,100573
NORTH EAST LINCOLNSHIRE COUNCIL,http://statistics.data.gov.uk/id/local-authority/00FC,People,Schools,Schools,Communications And Computing,Computer S/Ware - Licences,LF103,6/26/2014,288911,850,REVENUE,OPTIMUM REPORTS LTD,106132
NORTH EAST LINCOLNSHIRE COUNCIL,http://statistics.data.gov.uk/id/local-authority/00FC,People,Schools,Schools,Other Agencies,Educational Visits,PJ152,6/19/2014,287466,1613,REVENUE,MUSIC PLUS TRUST,123991
NORTH EAST LINCOLNSHIRE COUNCIL,http://statistics.data.gov.uk/id/local-authority/00FC,People,Schools,Schools,Other Agencies,Educational Visits,PJ152,6/30/2014,288913,460,REVENUE,KINGSWOOD EDUCATIONAL ACTIVITY CENTRE,101287
NORTH EAST LINCOLNSHIRE COUNCIL,http://statistics.data.gov.uk/id/local-authority/00FC,People,Schools,Schools,Consultancy,Consultancy,PL101,6/26/2014,288960,330,REVENUE,DIOCESE OF LINCOLN EDUCATION,104474
NORTH EAST LINCOLNSHIRE COUNCIL,http://statistics.data.gov.uk/id/local-authority/00FC,People,Schools,Schools,Consultancy,Consultancy - Curriculum,PL102,6/17/2014,285228,292.5,REVENUE,SUE HERON,101951
NORTH EAST LINCOLNSHIRE COUNCIL,http://statistics.data.gov.uk/id/local-authority/00FC,People,Schools,Schools,Rep Alterations Maint Building,Buildings - Repairs And Maint,GA102,6/19/2014,287257,450,REVENUE,OXLEY SHUTTERS LIMITED,100931
NORTH EAST LINCOLNSHIRE COUNCIL,http://statistics.data.gov.uk/id/local-authority/00FC,People,Schools,Schools,Energy Costs,Electricity,GB102,6/2/2014,283007,300.92,REVENUE,NPOWER LIMITED,101414
NORTH EAST LINCOLNSHIRE COUNCIL,http://statistics.data.gov.uk/id/local-authority/00FC,People,Schools,Schools,Direct Transport Costs,Vehicles - Running Costs,JA104,6/2/2014,283114,420,REVENUE,STALLINGBOROUGH C E PRIMARY SCHOOL,104231
NORTH EAST LINCOLNSHIRE COUNCIL,http://statistics.data.gov.uk/id/local-authority/00FC,People,Schools,Schools,Equip / Furniture / Materials,Equipment - Teaching,LA109,6/5/2014,283116,1682.65,REVENUE,BISHOP SPORTS & LEISURE,101062
NORTH EAST LINCOLNSHIRE COUNCIL,http://statistics.data.gov.uk/id/local-authority/00FC,People,Schools,Schools,Equip / Furniture / Materials,Equipment - Teaching,LA109,6/23/2014,287239,647.5,REVENUE,BISHOP SPORTS & LEISURE,101062
NORTH EAST LINCOLNSHIRE COUNCIL,http://statistics.data.gov.uk/id/local-authority/00FC,People,Schools,Schools,Equip / Furniture / Materials,Equipment - Teaching,LA109,6/3/2014,283001,304.4,REVENUE,COSY,105630
NORTH EAST LINCOLNSHIRE COUNCIL,http://statistics.data.gov.uk/id/local-authority/00FC,People,Schools,Schools,Equip / Furniture / Materials,Teaching Materials,LA117,6/2/2014,283000,549,REVENUE,BISHOP SPORTS & LEISURE,101062
NORTH EAST LINCOLNSHIRE COUNCIL,http://statistics.data.gov.uk/id/local-authority/00FC,People,Schools,Schools,Equip / Furniture / Materials,Teaching Materials,LA117,6/23/2014,287247,-35.8,REVENUE,EAST RIDING OF YORKSHIRE COUNCIL,100654
NORTH EAST LINCOLNSHIRE COUNCIL,http://statistics.data.gov.uk/id/local-authority/00FC,People,Schools,Schools,Communications And Computing,Computer S/Ware - Licences,LF103,6/23/2014,287263,407.5,REVENUE,CRICK SOFTWARE LTD,107260
NORTH EAST LINCOLNSHIRE COUNCIL,http://statistics.data.gov.uk/id/local-authority/00FC,People,Schools,Schools,Consultancy,Consultancy - Curriculum,PL102,6/19/2014,286203,570,REVENUE,HEALING SCIENCE ACADEMY LTD,102702
NORTH EAST LINCOLNSHIRE COUNCIL,http://statistics.data.gov.uk/id/local-authority/00FC,People,Schools,Schools,Consultancy,Consultancy - Curriculum,PL102,6/17/2014,286206,412.5,REVENUE,J R SPORTS,103415
NORTH EAST LINCOLNSHIRE COUNCIL,http://statistics.data.gov.uk/id/local-authority/00FC,People,Schools,Schools,Direct Employee Expenses,Agency Supply Teachers,EA104,6/26/2014,288611,945,REVENUE,PRINCIPAL RESOURCING LTD,101601
NORTH EAST LINCOLNSHIRE COUNCIL,http://statistics.data.gov.uk/id/local-authority/00FC,People,Schools,Schools,Direct Employee Expenses,Agency Supply Teachers,EA104,6/26/2014,288618,965,REVENUE,VISION FOR EDUCATION LTD,102399
NORTH EAST LINCOLNSHIRE COUNCIL,http://statistics.data.gov.uk/id/local-authority/00FC,People,Schools,Schools,Direct Employee Expenses,Agency Supply Teachers,EA104,6/9/2014,285078,444,REVENUE,VISION FOR EDUCATION LTD,102399
NORTH EAST LINCOLNSHIRE COUNCIL,http://statistics.data.gov.uk/id/local-authority/00FC,People,Schools,Schools,Direct Employee Expenses,Agency Supply Teachers,EA104,6/10/2014,285297,-148,REVENUE,VISION FOR EDUCATION LTD,102399
NORTH EAST LINCOLNSHIRE COUNCIL,http://statistics.data.gov.uk/id/local-authority/00FC,People,Schools,Schools,Direct Employee Expenses,Agency Supply Teachers,EA104,6/24/2014,288601,444,REVENUE,VISION FOR EDUCATION LTD,102399
NORTH EAST LINCOLNSHIRE COUNCIL,http://statistics.data.gov.uk/id/local-authority/00FC,People,Schools,Schools,Direct Employee Expenses,Agency Supply Teachers,EA104,6/24/2014,288598,518,REVENUE,VISION FOR EDUCATION LTD,102399
NORTH EAST LINCOLNSHIRE COUNCIL,http://statistics.data.gov.uk/id/local-authority/00FC,People,Schools,Schools,Indirect Employee Expenses,Staff Training,EB122,6/26/2014,288615,310,REVENUE,OSIRIS EDUCATIONAL WOODHALL SPA LTD,107430
NORTH EAST LINCOLNSHIRE COUNCIL,http://statistics.data.gov.uk/id/local-authority/00FC,People,Schools,Schools,Rep Alterations Maint Building,Buildings - Repairs And Maint,GA102,6/9/2014,284404,1890,REVENUE,NEWBY LEISURE LTD,101227
NORTH EAST LINCOLNSHIRE COUNCIL,http://statistics.data.gov.uk/id/local-authority/00FC,People,Schools,Schools,Rep Alterations Maint Building,Buildings - Repairs And Maint,GA102,6/9/2014,284977,471.48,REVENUE,UNIBUILD BUILDING CONT LTD,101469
NORTH EAST LINCOLNSHIRE COUNCIL,http://statistics.data.gov.uk/id/local-authority/00FC,People,Schools,Schools,Water Services,Water,GE101,6/9/2014,283533,427.28,REVENUE,ANGLIAN WATER,100508
NORTH EAST LINCOLNSHIRE COUNCIL,http://statistics.data.gov.uk/id/local-authority/00FC,People,Schools,Schools,Cleaning And Domestic Supplies,Cleaning - Domestic Purchases,GH105,6/30/2014,289398,306.26,REVENUE,RENTOKIL PEST CONTROL,100587
NORTH EAST LINCOLNSHIRE COUNCIL,http://statistics.data.gov.uk/id/local-authority/00FC,People,Schools,Schools,Equip / Furniture / Materials,Furniture - Teaching,LA107,6/26/2014,288644,294,REVENUE,OFFICE REALITY LTD,102751
NORTH EAST LINCOLNSHIRE COUNCIL,http://statistics.data.gov.uk/id/local-authority/00FC,People,Schools,Schools,Equip / Furniture / Materials,Furniture - Teaching,LA107,6/24/2014,288603,1680.65,REVENUE,YORKSHIRE PURCHASING,100573
NORTH EAST LINCOLNSHIRE COUNCIL,http://statistics.data.gov.uk/id/local-authority/00FC,People,Schools,Schools,Equip / Furniture / Materials,Teaching Materials,LA117,6/19/2014,287593,360,REVENUE,ARTY FACT THEATRE CO LTD,107783
NORTH EAST LINCOLNSHIRE COUNCIL,http://statistics.data.gov.uk/id/local-authority/00FC,People,Schools,Schools,Equip / Furniture / Materials,Teaching Materials,LA117,6/3/2014,283539,445.98,REVENUE,SCHOLASTIC LTD,100668
NORTH EAST LINCOLNSHIRE COUNCIL,http://statistics.data.gov.uk/id/local-authority/00FC,People,Schools,Schools,Equip / Furniture / Materials,Teaching Materials,LA117,6/9/2014,283522,-5.88,REVENUE,EAST RIDING OF YORKSHIRE COUNCIL,100654
NORTH EAST LINCOLNSHIRE COUNCIL,http://statistics.data.gov.uk/id/local-authority/00FC,People,Schools,Schools,Equip / Furniture / Materials,Teaching Materials,LA117,6/9/2014,283523,-1.68,REVENUE,EAST RIDING OF YORKSHIRE COUNCIL,100654
NORTH EAST LINCOLNSHIRE COUNCIL,http://statistics.data.gov.uk/id/local-authority/00FC,People,Schools,Schools,Equip / Furniture / Materials,Teaching Materials,LA117,6/5/2014,283506,349.13,REVENUE,EAST RIDING OF YORKSHIRE COUNCIL,100654
NORTH EAST LINCOLNSHIRE COUNCIL,http://statistics.data.gov.uk/id/local-authority/00FC,People,Schools,Schools,Catering,Provisions,LB101,6/26/2014,288652,399.1,REVENUE,EAST RIDING OF YORKSHIRE COUNCIL,100654
NORTH EAST LINCOLNSHIRE COUNCIL,http://statistics.data.gov.uk/id/local-authority/00FC,People,Schools,Schools,Print Stationery / Gen Off Exp,Photocopier - Running Costs,LD102,6/2/2014,283540,356.25,REVENUE,RISO (UK) LTD,101355
NORTH EAST LINCOLNSHIRE COUNCIL,http://statistics.data.gov.uk/id/local-authority/00FC,People,Schools,Schools,Other Agencies,Educational Visits,PJ152,6/26/2014,288600,250,REVENUE,AMVALE LIMITED,101030
NORTH EAST LINCOLNSHIRE COUNCIL,http://statistics.data.gov.uk/id/local-authority/00FC,People,Schools,Schools,Consultancy,Consultancy,PL101,6/26/2014,288244,400,REVENUE,ORMISTON SOUTH PARADE ACADEMY,111750
NORTH EAST LINCOLNSHIRE COUNCIL,http://statistics.data.gov.uk/id/local-authority/00FC,People,Schools,Schools,Consultancy,Consultancy - Curriculum,PL102,6/3/2014,283537,444,REVENUE,STANFORD SCHOOL FUND,101492
NORTH EAST LINCOLNSHIRE COUNCIL,http://statistics.data.gov.uk/id/local-authority/00FC,People,Schools,Schools,Consultancy,Consultancy - Curriculum,PL102,6/26/2014,288609,450,REVENUE,MARK EMERSON,101337
NORTH EAST LINCOLNSHIRE COUNCIL,http://statistics.data.gov.uk/id/local-authority/00FC,People,Schools,Schools,Consultancy,Consultancy - Curriculum,PL102,6/26/2014,288616,250,REVENUE,MARK EMERSON,101337
NORTH EAST LINCOLNSHIRE COUNCIL,http://statistics.data.gov.uk/id/local-authority/00FC,People,Schools,Schools,Energy Costs,Electricity,GB102,6/2/2014,282799,541.29,REVENUE,NPOWER LIMITED,101414
NORTH EAST LINCOLNSHIRE COUNCIL,http://statistics.data.gov.uk/id/local-authority/00FC,People,Schools,Schools,Water Services,Water,GE101,6/23/2014,286989,376.59,REVENUE,ANGLIAN WATER,100508
NORTH EAST LINCOLNSHIRE COUNCIL,http://statistics.data.gov.uk/id/local-authority/00FC,People,Schools,Schools,Cleaning And Domestic Supplies,Refuse Collection,GH104,6/19/2014,286786,406.17,REVENUE,BIFFA WASTE SERVICES LTD,100515
NORTH EAST LINCOLNSHIRE COUNCIL,http://statistics.data.gov.uk/id/local-authority/00FC,People,Schools,Schools,Equip / Furniture / Materials,Teaching Materials,LA117,6/30/2014,288935,325.86,REVENUE,EARLY YEARS RESOURCES,101664
NORTH EAST LINCOLNSHIRE COUNCIL,http://statistics.data.gov.uk/id/local-authority/00FC,People,Schools,Schools,Communications And Computing,Computer H/Ware - Teaching,LF104,6/30/2014,288939,730,REVENUE,GAIA TECHNOLOGIES PLC,102572
NORTH EAST LINCOLNSHIRE COUNCIL,http://statistics.data.gov.uk/id/local-authority/00FC,People,Schools,Schools,Other Agencies,Educational Visits,PJ152,6/30/2014,288926,750,REVENUE,SWIMMING4SCHOOLS LTD,107232
NORTH EAST LINCOLNSHIRE COUNCIL,http://statistics.data.gov.uk/id/local-authority/00FC,People,Schools,Schools,Consultancy,Consultancy - Curriculum,PL102,6/19/2014,286785,1000,REVENUE,J R SPORTS,103415
NORTH EAST LINCOLNSHIRE COUNCIL,http://statistics.data.gov.uk/id/local-authority/00FC,People,Schools,Schools,Rep Alterations Maint Building,Buildings - Repairs And Maint,GA102,6/19/2014,287328,405,REVENUE,FABRIQUE SPECIALIST GLAZING SYSTEMS LTD,101314
NORTH EAST LINCOLNSHIRE COUNCIL,http://statistics.data.gov.uk/id/local-authority/00FC,People,Schools,Schools,Rep Alterations Maint Building,Buildings - Repairs And Maint,GA102,6/19/2014,287340,336.5,REVENUE,HAITH'S HEATING LTD,101342
NORTH EAST LINCOLNSHIRE COUNCIL,http://statistics.data.gov.uk/id/local-authority/00FC,People,Schools,Schools,Rep Alterations Maint Building,Buildings - Repairs And Maint,GA102,6/19/2014,287400,1365,REVENUE,FABRIQUE SPECIALIST GLAZING SYSTEMS LTD,101314
NORTH EAST LINCOLNSHIRE COUNCIL,http://statistics.data.gov.uk/id/local-authority/00FC,People,Schools,Schools,Rep Alterations Maint Building,Buildings - Repairs And Maint,GA102,6/19/2014,287343,1310,REVENUE,KENSWAY CLASSIC BLINDS,101243
NORTH EAST LINCOLNSHIRE COUNCIL,http://statistics.data.gov.uk/id/local-authority/00FC,People,Schools,Schools,Rep Alterations Maint Building,Buildings - Repairs And Maint,GA102,6/17/2014,286525,380,REVENUE,UNIBUILD BUILDING CONT LTD,101469
NORTH EAST LINCOLNSHIRE COUNCIL,http://statistics.data.gov.uk/id/local-authority/00FC,People,Schools,Schools,Direct Employee Expenses,Agency Supply Teachers,EA104,6/2/2014,283179,252,REVENUE,REED EMPLOYMENT LTD,102225
NORTH EAST LINCOLNSHIRE COUNCIL,http://statistics.data.gov.uk/id/local-authority/00FC,People,Schools,Schools,Direct Employee Expenses,Agency Supply Teachers,EA104,6/19/2014,287383,488.88,REVENUE,REED EMPLOYMENT LTD,102225
NORTH EAST LINCOLNSHIRE COUNCIL,http://statistics.data.gov.uk/id/local-authority/00FC,People,Schools,Schools,Direct Employee Expenses,Agency Supply Teachers,EA104,6/19/2014,287391,336,REVENUE,REED EMPLOYMENT LTD,102225
NORTH EAST LINCOLNSHIRE COUNCIL,http://statistics.data.gov.uk/id/local-authority/00FC,People,Schools,Schools,Direct Employee Expenses,Agency Supply Teachers,EA104,6/19/2014,287393,294,REVENUE,REED EMPLOYMENT LTD,102225
NORTH EAST LINCOLNSHIRE COUNCIL,http://statistics.data.gov.uk/id/local-authority/00FC,People,Schools,Schools,Direct Employee Expenses,Agency Supply Teachers,EA104,6/19/2014,287385,488.88,REVENUE,REED EMPLOYMENT LTD,102225
NORTH EAST LINCOLNSHIRE COUNCIL,http://statistics.data.gov.uk/id/local-authority/00FC,People,Schools,Schools,Direct Employee Expenses,Agency Supply Teachers,EA104,6/19/2014,287483,660,REVENUE,PRINCIPAL RESOURCING LTD,101601
NORTH EAST LINCOLNSHIRE COUNCIL,http://statistics.data.gov.uk/id/local-authority/00FC,People,Schools,Schools,Direct Employee Expenses,Pay Teachers Supply Cover,EA106,6/2/2014,283170,555,REVENUE,SPEAKFRENCH LTD,121375
NORTH EAST LINCOLNSHIRE COUNCIL,http://statistics.data.gov.uk/id/local-authority/00FC,People,Schools,Schools,Rep Alterations Maint Building,Buildings - Repairs And Maint,GA102,6/23/2014,287538,1249,REVENUE,HAITH'S HEATING LTD,101342
NORTH EAST LINCOLNSHIRE COUNCIL,http://statistics.data.gov.uk/id/local-authority/00FC,People,Schools,Schools,Rep Alterations Maint Building,Buildings - Repairs And Maint,GA102,6/9/2014,284931,335,REVENUE,FABRIQUE SPECIALIST GLAZING SYSTEMS LTD,101314
NORTH EAST LINCOLNSHIRE COUNCIL,http://statistics.data.gov.uk/id/local-authority/00FC,People,Schools,Schools,Energy Costs,Gas,GB101,6/19/2014,287378,325.52,REVENUE,BRITISH GAS TRADING LTD,101507
NORTH EAST LINCOLNSHIRE COUNCIL,http://statistics.data.gov.uk/id/local-authority/00FC,People,Schools,Schools,Water Services,Water,GE101,6/19/2014,287471,404.05,REVENUE,ANGLIAN WATER,100508
NORTH EAST LINCOLNSHIRE COUNCIL,http://statistics.data.gov.uk/id/local-authority/00FC,People,Schools,Schools,Services,Internal Sla'S,LE102,6/19/2014,287490,4750,REVENUE,FOCUS ON COMMUNITY,105185
NORTH EAST LINCOLNSHIRE COUNCIL,http://statistics.data.gov.uk/id/local-authority/00FC,People,Schools,Schools,Services,Internal Sla'S,LE102,6/19/2014,287479,5986,REVENUE,TECHNOLOGY SUPPORT SOLUTIONS LTD,119571
NORTH EAST LINCOLNSHIRE COUNCIL,http://statistics.data.gov.uk/id/local-authority/00FC,People,Schools,Schools,Consultancy,Consultancy - Curriculum,PL102,6/5/2014,283457,300,REVENUE,BERNARDETTE BRIDLE,106863
NORTH EAST LINCOLNSHIRE COUNCIL,http://statistics.data.gov.uk/id/local-authority/00FC,People,Schools,Schools,Direct Employee Expenses,Agency Supply Teachers,EA104,6/17/2014,286498,3125,REVENUE,LINCS INSPIRE LTD,120610
NORTH EAST LINCOLNSHIRE COUNCIL,http://statistics.data.gov.uk/id/local-authority/00FC,People,Schools,Schools,Indirect Employee Expenses,Staff Training,EB122,6/17/2014,286481,269,REVENUE,OSIRIS EDUCATIONAL WOODHALL SPA LTD,107430
NORTH EAST LINCOLNSHIRE COUNCIL,http://statistics.data.gov.uk/id/local-authority/00FC,People,Schools,Schools,Indirect Employee Expenses,Staff Training,EB122,6/17/2014,286551,-75,REVENUE,ST JOHN AMBULANCE,100764
NORTH EAST LINCOLNSHIRE COUNCIL,http://statistics.data.gov.uk/id/local-authority/00FC,People,Schools,Schools,Indirect Employee Expenses,Staff Training,EB122,6/17/2014,286486,259,REVENUE,OSIRIS EDUCATIONAL WOODHALL SPA LTD,107430
NORTH EAST LINCOLNSHIRE COUNCIL,http://statistics.data.gov.uk/id/local-authority/00FC,People,Schools,Schools,Rep Alterations Maint Building,Buildings - Repairs And Maint,GA102,6/12/2014,284500,516,REVENUE,KES BUILDING MAINTENANCE LIMITED,100786
NORTH EAST LINCOLNSHIRE COUNCIL,http://statistics.data.gov.uk/id/local-authority/00FC,People,Schools,Schools,Rep Alterations Maint Building,Buildings - Repairs And Maint,GA102,6/2/2014,283149,295,REVENUE,HAITH'S HEATING LTD,101342
NORTH EAST LINCOLNSHIRE COUNCIL,http://statistics.data.gov.uk/id/local-authority/00FC,People,Schools,Schools,Rep Alterations Maint Building,Buildings - Repairs And Maint,GA102,6/9/2014,284918,585,REVENUE,FABRIQUE SPECIALIST GLAZING SYSTEMS LTD,101314
NORTH EAST LINCOLNSHIRE COUNCIL,http://statistics.data.gov.uk/id/local-authority/00FC,People,Schools,Schools,Rep Alterations Maint Building,Buildings - Repairs And Maint,GA102,6/23/2014,288065,1665,REVENUE,NEWBY LEISURE LTD,101227
NORTH EAST LINCOLNSHIRE COUNCIL,http://statistics.data.gov.uk/id/local-authority/00FC,People,Schools,Schools,Energy Costs,Gas,GB101,6/5/2014,283461,461.75,REVENUE,BRITISH GAS TRADING LTD,101507
NORTH EAST LINCOLNSHIRE COUNCIL,http://statistics.data.gov.uk/id/local-authority/00FC,People,Schools,Schools,Water Services,Water,GE101,6/17/2014,286491,409.6,REVENUE,ANGLIAN WATER,100508
NORTH EAST LINCOLNSHIRE COUNCIL,http://statistics.data.gov.uk/id/local-authority/00FC,People,Schools,Schools,Cleaning And Domestic Supplies,Refuse Collection,GH104,6/19/2014,286381,672.54,REVENUE,BIFFA WASTE SERVICES LTD,100515
NORTH EAST LINCOLNSHIRE COUNCIL,http://statistics.data.gov.uk/id/local-authority/00FC,People,Schools,Schools,Cleaning And Domestic Supplies,Refuse Collection,GH104,6/19/2014,286380,376.27,REVENUE,BIFFA WASTE SERVICES LTD,100515
NORTH EAST LINCOLNSHIRE COUNCIL,http://statistics.data.gov.uk/id/local-authority/00FC,People,Schools,Schools,Equip / Furniture / Materials,Equipment - Teaching,LA109,6/5/2014,283481,330.69,REVENUE,TECHNOLOGY TEACHING SYSTEMS LTD,100996
NORTH EAST LINCOLNSHIRE COUNCIL,http://statistics.data.gov.uk/id/local-authority/00FC,People,Schools,Schools,Equip / Furniture / Materials,Furniture - Teaching,LA107,6/2/2014,283492,-50,REVENUE,EARLY EXCELLENCE LTD,101179
NORTH EAST LINCOLNSHIRE COUNCIL,http://statistics.data.gov.uk/id/local-authority/00FC,People,Schools,Schools,Equip / Furniture / Materials,Furniture - Teaching,LA107,6/9/2014,283473,670,REVENUE,EARLY EXCELLENCE LTD,101179
NORTH EAST LINCOLNSHIRE COUNCIL,http://statistics.data.gov.uk/id/local-authority/00FC,People,Schools,Schools,Equip / Furniture / Materials,Non-Teaching Resources,LA118,6/17/2014,286496,849,REVENUE,SIMPLY SAFES LIMITED,126272
NORTH EAST LINCOLNSHIRE COUNCIL,http://statistics.data.gov.uk/id/local-authority/00FC,People,Schools,Schools,Equip / Furniture / Materials,Non-Teaching Resources,LA118,6/9/2014,283470,343.02,REVENUE,EAST RIDING OF YORKSHIRE COUNCIL,100654
NORTH EAST LINCOLNSHIRE COUNCIL,http://statistics.data.gov.uk/id/local-authority/00FC,People,Schools,Schools,Communications And Computing,Computer H/Ware - Purchases,LF105,6/2/2014,283464,9408,REVENUE,INFORMATION & DATA NETWORKS SUPPLIES LTD,101911
NORTH EAST LINCOLNSHIRE COUNCIL,http://statistics.data.gov.uk/id/local-authority/00FC,People,Schools,Schools,Communications And Computing,Computer H/Ware - Purchases,LF105,6/19/2014,286462,2799.65,REVENUE,TECHNOLOGY TEACHING SYSTEMS LTD,100996
NORTH EAST LINCOLNSHIRE COUNCIL,http://statistics.data.gov.uk/id/local-authority/00FC,People,Schools,Schools,Communications And Computing,Computer S/Ware - Licences,LF103,6/17/2014,286495,1383.95,REVENUE,SYSTEM SOLUTIONS NE LTD,105205
NORTH EAST LINCOLNSHIRE COUNCIL,http://statistics.data.gov.uk/id/local-authority/00FC,People,Schools,Schools,Other Agencies,Educational Visits,PJ152,6/17/2014,286594,7184,REVENUE,NST TRAVEL GROUP PLC,108989
NORTH EAST LINCOLNSHIRE COUNCIL,http://statistics.data.gov.uk/id/local-authority/00FC,People,Schools,Schools,Consultancy,Consultancy,PL101,6/2/2014,283476,400,REVENUE,ORMISTON SOUTH PARADE ACADEMY,111750
NORTH EAST LINCOLNSHIRE COUNCIL,http://statistics.data.gov.uk/id/local-authority/00FC,People,Schools,Schools,Rep Alterations Maint Building,Buildings - Repairs And Maint,GA102,6/17/2014,286167,319,REVENUE,KES BUILDING MAINTENANCE LIMITED,100786
NORTH EAST LINCOLNSHIRE COUNCIL,http://statistics.data.gov.uk/id/local-authority/00FC,People,Schools,Schools,Cleaning And Domestic Supplies,Cleaning - Domestic Purchases,GH105,6/23/2014,287253,267,REVENUE,TULIP HEALTHCARE,101042
NORTH EAST LINCOLNSHIRE COUNCIL,http://statistics.data.gov.uk/id/local-authority/00FC,People,Schools,Schools,Cleaning And Domestic Supplies,Refuse Collection,GH104,6/19/2014,286152,979.73,REVENUE,BIFFA WASTE SERVICES LTD,100515
NORTH EAST LINCOLNSHIRE COUNCIL,http://statistics.data.gov.uk/id/local-authority/00FC,People,Schools,Schools,Cleaning And Domestic Supplies,Refuse Collection,GH104,6/17/2014,286143,320,REVENUE,BIFFA WASTE SERVICES LTD,100515
NORTH EAST LINCOLNSHIRE COUNCIL,http://statistics.data.gov.uk/id/local-authority/00FC,People,Schools,Schools,Equip / Furniture / Materials,Books,LA121,6/17/2014,286127,272.24,REVENUE,SPEECHMARK PUBLISHING LIMITED,101196
NORTH EAST LINCOLNSHIRE COUNCIL,http://statistics.data.gov.uk/id/local-authority/00FC,People,Schools,Schools,Equip / Furniture / Materials,Books,LA121,6/19/2014,287299,595.6,REVENUE,OXFORD UNIVERSITY PRESS,100887
NORTH EAST LINCOLNSHIRE COUNCIL,http://statistics.data.gov.uk/id/local-authority/00FC,People,Schools,Schools,Equip / Furniture / Materials,Teaching Materials,LA117,6/19/2014,287298,469.82,REVENUE,EAST RIDING OF YORKSHIRE COUNCIL,100654
NORTH EAST LINCOLNSHIRE COUNCIL,http://statistics.data.gov.uk/id/local-authority/00FC,People,Schools,Schools,Equip / Furniture / Materials,Teaching Materials,LA117,6/3/2014,282951,650.41,REVENUE,PC WORLD BUSINESS,120051
NORTH EAST LINCOLNSHIRE COUNCIL,http://statistics.data.gov.uk/id/local-authority/00FC,People,Schools,Schools,Equip / Furniture / Materials,Teaching Materials,LA117,6/17/2014,286147,424.99,REVENUE,YORKSHIRE PURCHASING,100573
NORTH EAST LINCOLNSHIRE COUNCIL,http://statistics.data.gov.uk/id/local-authority/00FC,People,Schools,Schools,Print Stationery / Gen Off Exp,Photocopier - Running Costs,LD102,6/5/2014,283124,4666.99,REVENUE,CIT VENDOR FINANCE (UK) LTD,101579
NORTH EAST LINCOLNSHIRE COUNCIL,http://statistics.data.gov.uk/id/local-authority/00FC,People,Schools,Schools,Communications And Computing,Computer H/Ware - Purchases,LF105,6/23/2014,287240,599,REVENUE,DATA & RESEARCH SERVICES PLC,100716
NORTH EAST LINCOLNSHIRE COUNCIL,http://statistics.data.gov.uk/id/local-authority/00FC,People,Schools,Schools,Communications And Computing,Computer H/Ware - Teaching,LF104,6/3/2014,282986,444,REVENUE,IT SERVICES (GRIMSBY) LTD,101060
NORTH EAST LINCOLNSHIRE COUNCIL,http://statistics.data.gov.uk/id/local-authority/00FC,People,Schools,Schools,Communications And Computing,Computer S/Ware - Licences,LF103,6/2/2014,282848,450,REVENUE,NEW ERA EDUCATION LTD,124900
NORTH EAST LINCOLNSHIRE COUNCIL,http://statistics.data.gov.uk/id/local-authority/00FC,People,Schools,Schools,Other Agencies,Educational Visits,PJ152,6/26/2014,288629,285,REVENUE,AMVALE LIMITED,101030
NORTH EAST LINCOLNSHIRE COUNCIL,http://statistics.data.gov.uk/id/local-authority/00FC,People,Schools,Schools,Other Agencies,Educational Visits,PJ152,6/23/2014,287259,1200,REVENUE,HIGH ROPES ADVENTURE,102866
NORTH EAST LINCOLNSHIRE COUNCIL,http://statistics.data.gov.uk/id/local-authority/00FC,People,Schools,Schools,Other Agencies,Educational Visits,PJ152,6/2/2014,282846,780,REVENUE,AMVALE LIMITED,101030
NORTH EAST LINCOLNSHIRE COUNCIL,http://statistics.data.gov.uk/id/local-authority/00FC,People,Schools,Schools,Other Agencies,Educational Visits,PJ152,6/16/2014,286089,500,REVENUE,AMVALE LIMITED,101030
NORTH EAST LINCOLNSHIRE COUNCIL,http://statistics.data.gov.uk/id/local-authority/00FC,People,Schools,Schools,Other Agencies,Educational Visits,PJ152,6/17/2014,286096,1300,REVENUE,ACTIVITES AWAY,108213
NORTH EAST LINCOLNSHIRE COUNCIL,http://statistics.data.gov.uk/id/local-authority/00FC,People,Schools,Schools,Other Agencies,Educational Visits,PJ152,6/17/2014,286038,780,REVENUE,AMVALE LIMITED,101030
NORTH EAST LINCOLNSHIRE COUNCIL,http://statistics.data.gov.uk/id/local-authority/00FC,People,Schools,Schools,Other Agencies,Educational Visits,PJ152,6/17/2014,286091,550,REVENUE,OUTDOOR LEARNING SCHOOLS,124467
NORTH EAST LINCOLNSHIRE COUNCIL,http://statistics.data.gov.uk/id/local-authority/00FC,People,Schools,Schools,Consultancy,Consultancy - Curriculum,PL102,6/2/2014,282824,315,REVENUE,JOSHUA ENGLAND,122088
NORTH EAST LINCOLNSHIRE COUNCIL,http://statistics.data.gov.uk/id/local-authority/00FC,People,Schools,Schools,Consultancy,Consultancy - Curriculum,PL102,6/17/2014,286095,288,REVENUE,DEREK SPEAREN,119658
NORTH EAST LINCOLNSHIRE COUNCIL,http://statistics.data.gov.uk/id/local-authority/00FC,People,Schools,Schools,Consultancy,Consultancy - Curriculum,PL102,6/16/2014,286094,1020,REVENUE,PETER SCRIMSHAW,102324
NORTH EAST LINCOLNSHIRE COUNCIL,http://statistics.data.gov.uk/id/local-authority/00FC,People,Schools,Schools,Direct Employee Expenses,Agency Supply Teachers,EA104,6/26/2014,288635,1790,REVENUE,PRINCIPAL RESOURCING LTD,101601
NORTH EAST LINCOLNSHIRE COUNCIL,http://statistics.data.gov.uk/id/local-authority/00FC,People,Schools,Schools,Direct Employee Expenses,Agency Supply Teachers,EA104,6/19/2014,287519,1790,REVENUE,PRINCIPAL RESOURCING LTD,101601
NORTH EAST LINCOLNSHIRE COUNCIL,http://statistics.data.gov.uk/id/local-authority/00FC,People,Schools,Schools,Direct Employee Expenses,Agency Supply Teachers,EA104,6/30/2014,289078,1790,REVENUE,PRINCIPAL RESOURCING LTD,101601
NORTH EAST LINCOLNSHIRE COUNCIL,http://statistics.data.gov.uk/id/local-authority/00FC,People,Schools,Schools,Rep Alterations Maint Building,Fire Safety,GA106,6/30/2014,289082,597.6,REVENUE,HUMBERSIDE FIRE & RESCUE SERVICE,100667
NORTH EAST LINCOLNSHIRE COUNCIL,http://statistics.data.gov.uk/id/local-authority/00FC,People,Schools,Schools,Energy Costs,Electricity,GB102,6/19/2014,287362,2260.72,REVENUE,NPOWER LIMITED,101414
NORTH EAST LINCOLNSHIRE COUNCIL,http://statistics.data.gov.uk/id/local-authority/00FC,People,Schools,Schools,Energy Costs,Electricity,GB102,6/19/2014,287513,805.64,REVENUE,NPOWER LIMITED,101414
NORTH EAST LINCOLNSHIRE COUNCIL,http://statistics.data.gov.uk/id/local-authority/00FC,People,Schools,Schools,Energy Costs,Gas,GB101,6/19/2014,287377,330.73,REVENUE,BRITISH GAS TRADING LTD,101507
NORTH EAST LINCOLNSHIRE COUNCIL,http://statistics.data.gov.uk/id/local-authority/00FC,People,Schools,Schools,Rates,Rates,GD101,6/19/2014,286139,28438,REVENUE,NORTH EAST LINCOLNSHIRE COUNCIL,100894
NORTH EAST LINCOLNSHIRE COUNCIL,http://statistics.data.gov.uk/id/local-authority/00FC,People,Schools,Schools,Cleaning And Domestic Supplies,Cleaning - Consumables,GH103,6/19/2014,287419,372.76,REVENUE,PETER HOGARTH & SONS LTD,100815
NORTH EAST LINCOLNSHIRE COUNCIL,http://statistics.data.gov.uk/id/local-authority/00FC,People,Schools,Schools,Equip / Furniture / Materials,Equipment - Teaching,LA109,6/26/2014,289066,267.35,REVENUE,SPORTS DIRECTORY,103965
NORTH EAST LINCOLNSHIRE COUNCIL,http://statistics.data.gov.uk/id/local-authority/00FC,People,Schools,Schools,Equip / Furniture / Materials,Furniture - Teaching,LA107,6/23/2014,287545,432,REVENUE,ELM WORKSPACE,126221
NORTH EAST LINCOLNSHIRE COUNCIL,http://statistics.data.gov.uk/id/local-authority/00FC,People,Schools,Schools,Equip / Furniture / Materials,Goods For Resale,LA123,6/2/2014,282805,287.6,REVENUE,KATHRYN BILLINGS PRINTING & EMBROIDERY LTD,101457
NORTH EAST LINCOLNSHIRE COUNCIL,http://statistics.data.gov.uk/id/local-authority/00FC,People,Schools,Schools,Equip / Furniture / Materials,Non-Teaching Resources,LA118,6/19/2014,287496,621,REVENUE,EDUCATE SCHOOL SERVICES LTD,125079
NORTH EAST LINCOLNSHIRE COUNCIL,http://statistics.data.gov.uk/id/local-authority/00FC,People,Schools,Schools,Equip / Furniture / Materials,Non-Teaching Resources,LA118,6/3/2014,283910,2811,REVENUE,CAPITA BUSINESS SERVICES LTD,102314
NORTH EAST LINCOLNSHIRE COUNCIL,http://statistics.data.gov.uk/id/local-authority/00FC,People,Schools,Schools,Equip / Furniture / Materials,Non-Teaching Resources,LA118,6/19/2014,287374,1050,REVENUE,MORLEY'S OF BICESTER LTD,100843
NORTH EAST LINCOLNSHIRE COUNCIL,http://statistics.data.gov.uk/id/local-authority/00FC,People,Schools,Schools,Equip / Furniture / Materials,Teaching Materials,LA117,6/26/2014,288639,393.5,REVENUE,BOOKPOINT LIMITED,100664
NORTH EAST LINCOLNSHIRE COUNCIL,http://statistics.data.gov.uk/id/local-authority/00FC,People,Schools,Schools,Equip / Furniture / Materials,Teaching Materials,LA117,6/2/2014,282794,910,REVENUE,GRIMSBY SIGNS LTD,105793
NORTH EAST LINCOLNSHIRE COUNCIL,http://statistics.data.gov.uk/id/local-authority/00FC,People,Schools,Schools,Communications And Computing,Computer H/Ware - Purchases,LF105,6/19/2014,287361,10822,REVENUE,TECHNOLOGY SUPPORT SOLUTIONS LTD,119571
NORTH EAST LINCOLNSHIRE COUNCIL,http://statistics.data.gov.uk/id/local-authority/00FC,People,Schools,Schools,Communications And Computing,Computer H/Ware - Teaching,LF104,6/23/2014,287542,2080,REVENUE,TECHNOLOGY SUPPORT SOLUTIONS LTD,119571
NORTH EAST LINCOLNSHIRE COUNCIL,http://statistics.data.gov.uk/id/local-authority/00FC,People,Schools,Schools,Communications And Computing,Computer H/Ware - Teaching,LF104,6/26/2014,288638,3199,REVENUE,MILLENNIUM BUSINESS SYSTEMS LTD,112870
NORTH EAST LINCOLNSHIRE COUNCIL,http://statistics.data.gov.uk/id/local-authority/00FC,People,Schools,Schools,Communications And Computing,Computer H/Ware - Teaching,LF104,6/19/2014,287348,1449,REVENUE,MILLENNIUM BUSINESS SYSTEMS LTD,112870
NORTH EAST LINCOLNSHIRE COUNCIL,http://statistics.data.gov.uk/id/local-authority/00FC,People,Schools,Schools,Communications And Computing,Computer S/Ware - Licences,LF103,6/26/2014,288636,392,REVENUE,LANGUAGENUT . COM,111221
NORTH EAST LINCOLNSHIRE COUNCIL,http://statistics.data.gov.uk/id/local-authority/00FC,People,Schools,Schools,Other Agencies,Educational Visits,PJ152,6/30/2014,289081,3108,REVENUE,PGL TRAVEL LTD,100693
NORTH EAST LINCOLNSHIRE COUNCIL,http://statistics.data.gov.uk/id/local-authority/00FC,People,Schools,Schools,Consultancy,Consultancy - Curriculum,PL102,6/16/2014,286176,600,REVENUE,MR S G COOPER,124620
NORTH EAST LINCOLNSHIRE COUNCIL,http://statistics.data.gov.uk/id/local-authority/00FC,People,Schools,Schools,Direct Employee Expenses,Agency Supply Teachers,EA104,6/19/2014,287491,492.9,REVENUE,TEACHING PERSONNEL LTD,101305
NORTH EAST LINCOLNSHIRE COUNCIL,http://statistics.data.gov.uk/id/local-authority/00FC,People,Schools,Schools,Direct Employee Expenses,Pay Admin & Clerical,EA119,6/12/2014,285293,447.68,REVENUE,MCARTHUR DEAN TRAINING LTD,107184
NORTH EAST LINCOLNSHIRE COUNCIL,http://statistics.data.gov.uk/id/local-authority/00FC,People,Schools,Schools,Direct Employee Expenses,Pay Teachers Supply Cover,EA106,6/19/2014,286189,457.16,REVENUE,TOLLBAR ACADEMY,102663
NORTH EAST LINCOLNSHIRE COUNCIL,http://statistics.data.gov.uk/id/local-authority/00FC,People,Schools,Schools,Indirect Employee Expenses,Staff Training,EB122,6/30/2014,289665,471.5,REVENUE,SECOM PLC,100771
NORTH EAST LINCOLNSHIRE COUNCIL,http://statistics.data.gov.uk/id/local-authority/00FC,People,Schools,Schools,Rep Alterations Maint Building,Buildings - Repairs And Maint,GA102,6/9/2014,285042,876,REVENUE,LINCS ELECTRICAL SERVICES LTD,102044
NORTH EAST LINCOLNSHIRE COUNCIL,http://statistics.data.gov.uk/id/local-authority/00FC,People,Schools,Schools,Water Services,Water,GE101,6/26/2014,288897,707.6,REVENUE,ANGLIAN WATER,100508
NORTH EAST LINCOLNSHIRE COUNCIL,http://statistics.data.gov.uk/id/local-authority/00FC,People,Schools,Schools,Cleaning And Domestic Supplies,Cleaning - Consumables,GH103,6/19/2014,287512,281.78,REVENUE,SYLVESTER-KEAL LTD,100593
NORTH EAST LINCOLNSHIRE COUNCIL,http://statistics.data.gov.uk/id/local-authority/00FC,People,Schools,Schools,Direct Transport Costs,Vehicles - Running Costs,JA104,6/12/2014,284490,375,REVENUE,AMVALE LIMITED,101030
NORTH EAST LINCOLNSHIRE COUNCIL,http://statistics.data.gov.uk/id/local-authority/00FC,People,Schools,Schools,Direct Transport Costs,Vehicles - Running Costs,JA104,6/3/2014,283039,375,REVENUE,AMVALE LIMITED,101030
NORTH EAST LINCOLNSHIRE COUNCIL,http://statistics.data.gov.uk/id/local-authority/00FC,People,Schools,Schools,Direct Transport Costs,Vehicles - Running Costs,JA104,6/17/2014,286414,375,REVENUE,AMVALE LIMITED,101030
NORTH EAST LINCOLNSHIRE COUNCIL,http://statistics.data.gov.uk/id/local-authority/00FC,People,Schools,Schools,Equip / Furniture / Materials,Furniture - Teaching,LA107,6/30/2014,289168,475.95,REVENUE,WILLOWBROOK,104325
NORTH EAST LINCOLNSHIRE COUNCIL,http://statistics.data.gov.uk/id/local-authority/00FC,People,Schools,Schools,Equip / Furniture / Materials,Kitchens Equipment - Maint,LA114,6/26/2014,288054,381.24,REVENUE,EAST RIDING OF YORKSHIRE COUNCIL,100654
NORTH EAST LINCOLNSHIRE COUNCIL,http://statistics.data.gov.uk/id/local-authority/00FC,People,Schools,Schools,Equip / Furniture / Materials,Teaching Materials,LA117,6/30/2014,288938,330,REVENUE,MAPAC GROUP LTD,100671
NORTH EAST LINCOLNSHIRE COUNCIL,http://statistics.data.gov.uk/id/local-authority/00FC,People,Schools,Schools,Equip / Furniture / Materials,Teaching Materials,LA117,6/17/2014,286482,312,REVENUE,SOLAR SPORTS COACHING LTD,101797
NORTH EAST LINCOLNSHIRE COUNCIL,http://statistics.data.gov.uk/id/local-authority/00FC,People,Schools,Schools,Equip / Furniture / Materials,Teaching Materials,LA117,6/17/2014,286501,312,REVENUE,SOLAR SPORTS COACHING LTD,101797
NORTH EAST LINCOLNSHIRE COUNCIL,http://statistics.data.gov.uk/id/local-authority/00FC,People,Schools,Schools,Services,Clerking Governing Bodies,LE101,6/26/2014,289089,REDACTED COMMERCIALLY SENSITIVE,REVENUE,SERCO SHARED SERVICES CENTRE,101875
NORTH EAST LINCOLNSHIRE COUNCIL,http://statistics.data.gov.uk/id/local-authority/00FC,People,Schools,Schools,Communications And Computing,Computer H/Ware - Teaching,LF104,6/17/2014,286504,795,REVENUE,TECHNOLOGY SUPPORT SOLUTIONS LTD,119571
NORTH EAST LINCOLNSHIRE COUNCIL,http://statistics.data.gov.uk/id/local-authority/00FC,People,Schools,Schools,Communications And Computing,Computer S/Ware - Licences,LF103,6/23/2014,287567,850,REVENUE,OPTIMUM REPORTS LTD,106132
NORTH EAST LINCOLNSHIRE COUNCIL,http://statistics.data.gov.uk/id/local-authority/00FC,People,Schools,Schools,Other Agencies,Educational Visits,PJ152,6/26/2014,289090,342,REVENUE,WOODSIDE WILDLIFE & FALCONRY PARK,104155
NORTH EAST LINCOLNSHIRE COUNCIL,http://statistics.data.gov.uk/id/local-authority/00FC,People,Schools,Schools,Consultancy,Consultancy - Curriculum,PL102,6/12/2014,285298,2250,REVENUE,SWIMMING4SCHOOLS LTD,107232
NORTH EAST LINCOLNSHIRE COUNCIL,http://statistics.data.gov.uk/id/local-authority/00FC,People,Schools,Schools,Consultancy,Consultancy - Curriculum,PL102,6/30/2014,288937,540,REVENUE,MUSIQUEST,101882
NORTH EAST LINCOLNSHIRE COUNCIL,http://statistics.data.gov.uk/id/local-authority/00FC,People,Schools,Schools,Consultancy,Consultancy - Curriculum,PL102,6/26/2014,288899,1395,REVENUE,LINCOLNSHIRE SOCCER SCHOOL,101505
NORTH EAST LINCOLNSHIRE COUNCIL,http://statistics.data.gov.uk/id/local-authority/00FC,People,Schools,Schools,Rep Alterations Maint Building,Buildings - Repairs And Maint,GA102,6/17/2014,286768,405,REVENUE,FABRIQUE SPECIALIST GLAZING SYSTEMS LTD,101314
NORTH EAST LINCOLNSHIRE COUNCIL,http://statistics.data.gov.uk/id/local-authority/00FC,People,Schools,Schools,Rep Alterations Maint Building,Buildings - Repairs And Maint,GA102,6/19/2014,287341,330,REVENUE,FABRIQUE SPECIALIST GLAZING SYSTEMS LTD,101314
NORTH EAST LINCOLNSHIRE COUNCIL,http://statistics.data.gov.uk/id/local-authority/00FC,People,Schools,Schools,Indirect Employee Expenses,Staff Training,EB122,6/30/2014,289432,279.1,REVENUE,WALTHAM LEAS ACADEMY,109486
NORTH EAST LINCOLNSHIRE COUNCIL,http://statistics.data.gov.uk/id/local-authority/00FC,People,Schools,Schools,Rep Alterations Maint Building,Buildings - Repairs And Maint,GA102,6/9/2014,284498,251.5,REVENUE,HAITH'S HEATING LTD,101342
NORTH EAST LINCOLNSHIRE COUNCIL,http://statistics.data.gov.uk/id/local-authority/00FC,People,Schools,Schools,Rep Alterations Maint Building,Buildings - Repairs And Maint,GA102,6/2/2014,283148,508.97,REVENUE,FRED MARGARSON LTD,100592
NORTH EAST LINCOLNSHIRE COUNCIL,http://statistics.data.gov.uk/id/local-authority/00FC,People,Schools,Schools,Rep Alterations Maint Building,Buildings - Repairs And Maint,GA102,6/19/2014,287337,295,REVENUE,HAITH'S HEATING LTD,101342
NORTH EAST LINCOLNSHIRE COUNCIL,http://statistics.data.gov.uk/id/local-authority/00FC,People,Schools,Schools,Energy Costs,Electricity,GB102,6/23/2014,288104,688.6,REVENUE,NPOWER LIMITED,101414
NORTH EAST LINCOLNSHIRE COUNCIL,http://statistics.data.gov.uk/id/local-authority/00FC,People,Schools,Schools,Energy Costs,Electricity,GB102,6/30/2014,289419,606.86,REVENUE,N POWER,101599
NORTH EAST LINCOLNSHIRE COUNCIL,http://statistics.data.gov.uk/id/local-authority/00FC,People,Schools,Schools,Water Services,Water,GE101,6/16/2014,285107,981.78,REVENUE,ANGLIAN WATER,100508
NORTH EAST LINCOLNSHIRE COUNCIL,http://statistics.data.gov.uk/id/local-authority/00FC,People,Schools,Schools,Equip / Furniture / Materials,Non-Teaching Resources,LA118,6/30/2014,289427,761,REVENUE,SG WORLD LTD,101678
NORTH EAST LINCOLNSHIRE COUNCIL,http://statistics.data.gov.uk/id/local-authority/00FC,People,Schools,Schools,Equip / Furniture / Materials,Teaching Materials,LA117,6/9/2014,284956,488.19,REVENUE,EAST RIDING OF YORKSHIRE COUNCIL,100654
NORTH EAST LINCOLNSHIRE COUNCIL,http://statistics.data.gov.uk/id/local-authority/00FC,People,Schools,Schools,Print Stationery / Gen Off Exp,Photocopier - Running Costs,LD102,6/30/2014,289431,411.27,REVENUE,UNITED CARLTON OFFICE SYSTEMS LTD,101652
NORTH EAST LINCOLNSHIRE COUNCIL,http://statistics.data.gov.uk/id/local-authority/00FC,People,Schools,Schools,Print Stationery / Gen Off Exp,Photocopier - Running Costs,LD102,6/30/2014,289429,386.36,REVENUE,UNITED CARLTON OFFICE SYSTEMS LTD,101652
NORTH EAST LINCOLNSHIRE COUNCIL,http://statistics.data.gov.uk/id/local-authority/00FC,People,Schools,Schools,Print Stationery / Gen Off Exp,Photocopier - Running Costs,LD102,6/30/2014,289430,293.7,REVENUE,UNITED CARLTON OFFICE SYSTEMS LTD,101652
NORTH EAST LINCOLNSHIRE COUNCIL,http://statistics.data.gov.uk/id/local-authority/00FC,People,Schools,Schools,Communications And Computing,Computer H/Ware - Purchases,LF105,6/30/2014,289414,680,REVENUE,EDUCATION LINCS LTD,101059
NORTH EAST LINCOLNSHIRE COUNCIL,http://statistics.data.gov.uk/id/local-authority/00FC,People,Schools,Schools,Communications And Computing,Computer H/Ware - Purchases,LF105,6/30/2014,289413,496.54,REVENUE,EDUCATION LINCS LTD,101059
NORTH EAST LINCOLNSHIRE COUNCIL,http://statistics.data.gov.uk/id/local-authority/00FC,People,Schools,Schools,Consultancy,Consultancy - Curriculum,PL102,6/16/2014,285090,490,REVENUE,LINCOLNSHIRE SOCCER SCHOOL,101505
NORTH EAST LINCOLNSHIRE COUNCIL,http://statistics.data.gov.uk/id/local-authority/00FC,People,Schools,Schools,Direct Employee Expenses,Agency Staff,EA105,6/17/2014,285181,565,REVENUE,RANDSTAD EDUCATION LTD,102465
NORTH EAST LINCOLNSHIRE COUNCIL,http://statistics.data.gov.uk/id/local-authority/00FC,People,Schools,Schools,Direct Employee Expenses,Agency Staff,EA105,6/17/2014,285175,1127.5,REVENUE,TEACHING PERSONNEL LTD,101305
NORTH EAST LINCOLNSHIRE COUNCIL,http://statistics.data.gov.uk/id/local-authority/00FC,People,Schools,Schools,Direct Employee Expenses,Agency Staff,EA105,6/19/2014,287485,1127.5,REVENUE,TEACHING PERSONNEL LTD,101305
NORTH EAST LINCOLNSHIRE COUNCIL,http://statistics.data.gov.uk/id/local-authority/00FC,People,Schools,Schools,Direct Employee Expenses,Pay Teachers Supply Cover,EA106,6/17/2014,285173,756,REVENUE,TEACHING PERSONNEL LTD,101305
NORTH EAST LINCOLNSHIRE COUNCIL,http://statistics.data.gov.uk/id/local-authority/00FC,People,Schools,Schools,Direct Employee Expenses,Pay Teachers Supply Cover,EA106,6/19/2014,287445,954.25,REVENUE,TEACHING PERSONNEL LTD,101305
NORTH EAST LINCOLNSHIRE COUNCIL,http://statistics.data.gov.uk/id/local-authority/00FC,People,Schools,Schools,Direct Employee Expenses,Pay Teachers Supply Cover,EA106,6/23/2014,288090,954.25,REVENUE,TEACHING PERSONNEL LTD,101305
NORTH EAST LINCOLNSHIRE COUNCIL,http://statistics.data.gov.uk/id/local-authority/00FC,People,Schools,Schools,Rep Alterations Maint Building,Buildings - Repairs And Maint,GA102,6/9/2014,285053,265.5,REVENUE,HAITH'S HEATING LTD,101342
NORTH EAST LINCOLNSHIRE COUNCIL,http://statistics.data.gov.uk/id/local-authority/00FC,People,Schools,Schools,Energy Costs,Gas,GB101,6/23/2014,288089,2251.7,REVENUE,NPOWER LIMITED,101414
NORTH EAST LINCOLNSHIRE COUNCIL,http://statistics.data.gov.uk/id/local-authority/00FC,People,Schools,Schools,Equip / Furniture / Materials,Teaching Materials,LA117,6/17/2014,286500,272.9,REVENUE,ONLINE OFFICE SUPPLIES UK LTD,120944
NORTH EAST LINCOLNSHIRE COUNCIL,http://statistics.data.gov.uk/id/local-authority/00FC,People,Schools,Schools,Print Stationery / Gen Off Exp,Photocopier - Running Costs,LD102,6/19/2014,287476,458.72,REVENUE,THE DANWOOD GROUP LTD,100669
NORTH EAST LINCOLNSHIRE COUNCIL,http://statistics.data.gov.uk/id/local-authority/00FC,People,Schools,Schools,Print Stationery / Gen Off Exp,Photocopier - Running Costs,LD102,6/24/2014,288278,6719.33,REVENUE,GE CAPITAL EQUIPMENT FINANCE LTD,100993
NORTH EAST LINCOLNSHIRE COUNCIL,http://statistics.data.gov.uk/id/local-authority/00FC,People,Schools,Schools,Print Stationery / Gen Off Exp,Photocopier - Running Costs,LD102,6/30/2014,289599,1310.94,REVENUE,DANWOOD FINANCE LIMITED,101077
NORTH EAST LINCOLNSHIRE COUNCIL,http://statistics.data.gov.uk/id/local-authority/00FC,People,Schools,Schools,Services,Internal Sla'S,LE102,6/17/2014,286526,7180,REVENUE,TECHNOLOGY SUPPORT SOLUTIONS LTD,119571
NORTH EAST LINCOLNSHIRE COUNCIL,http://statistics.data.gov.uk/id/local-authority/00FC,People,Schools,Schools,Services,Internal Sla'S,LE102,6/30/2014,289623,1500,REVENUE,OASIS ACADEMY WINTRINGHAM,101939
NORTH EAST LINCOLNSHIRE COUNCIL,http://statistics.data.gov.uk/id/local-authority/00FC,People,Schools,Schools,Communications And Computing,Computer H/Ware - Purchases,LF105,6/19/2014,287443,749,REVENUE,TEACHERS 2 PARENTS LTD,102022
NORTH EAST LINCOLNSHIRE COUNCIL,http://statistics.data.gov.uk/id/local-authority/00FC,People,Schools,Schools,Consultancy,Consultancy - Curriculum,PL102,6/17/2014,285283,300,REVENUE,GRIMSBY TOWN FOOTBALL IN THE COMMUNITY,100978
NORTH EAST LINCOLNSHIRE COUNCIL,http://statistics.data.gov.uk/id/local-authority/00FC,People,Schools,Schools,Direct Employee Expenses,Agency Supply Teachers,EA104,6/19/2014,286267,1968.5,REVENUE,TEACHING PERSONNEL LTD,101305
NORTH EAST LINCOLNSHIRE COUNCIL,http://statistics.data.gov.uk/id/local-authority/00FC,People,Schools,Schools,Direct Employee Expenses,Agency Supply Teachers,EA104,6/19/2014,286268,825,REVENUE,PRINCIPAL RESOURCING LTD,101601
NORTH EAST LINCOLNSHIRE COUNCIL,http://statistics.data.gov.uk/id/local-authority/00FC,People,Schools,Schools,Direct Employee Expenses,Agency Supply Teachers,EA104,6/26/2014,288637,1427.78,REVENUE,TEACHING PERSONNEL LTD,101305
NORTH EAST LINCOLNSHIRE COUNCIL,http://statistics.data.gov.uk/id/local-authority/00FC,People,Schools,Schools,Direct Employee Expenses,Agency Supply Teachers,EA104,6/26/2014,288662,825,REVENUE,PRINCIPAL RESOURCING LTD,101601
NORTH EAST LINCOLNSHIRE COUNCIL,http://statistics.data.gov.uk/id/local-authority/00FC,People,Schools,Schools,Direct Employee Expenses,Agency Supply Teachers,EA104,6/26/2014,288627,1298.7,REVENUE,TEACHING PERSONNEL LTD,101305
NORTH EAST LINCOLNSHIRE COUNCIL,http://statistics.data.gov.uk/id/local-authority/00FC,People,Schools,Schools,Direct Employee Expenses,Agency Supply Teachers,EA104,6/2/2014,282841,1133.55,REVENUE,TEACHING PERSONNEL LTD,101305
NORTH EAST LINCOLNSHIRE COUNCIL,http://statistics.data.gov.uk/id/local-authority/00FC,People,Schools,Schools,Direct Employee Expenses,Agency Supply Teachers,EA104,6/2/2014,282852,3118.43,REVENUE,TEACHING PERSONNEL LTD,101305
NORTH EAST LINCOLNSHIRE COUNCIL,http://statistics.data.gov.uk/id/local-authority/00FC,People,Schools,Schools,Direct Employee Expenses,Agency Supply Teachers,EA104,6/19/2014,287367,1079,REVENUE,PRINCIPAL RESOURCING LTD,101601
NORTH EAST LINCOLNSHIRE COUNCIL,http://statistics.data.gov.uk/id/local-authority/00FC,People,Schools,Schools,Indirect Employee Expenses,Staff Training,EB122,6/3/2014,282995,305,REVENUE,MENTIS THERAPY AND TRAINING,120445
NORTH EAST LINCOLNSHIRE COUNCIL,http://statistics.data.gov.uk/id/local-authority/00FC,People,Schools,Schools,Indirect Employee Expenses,Staff Training,EB122,6/19/2014,286264,312.5,REVENUE,SIGNHILLS INFANTS ACADEMY,110645
NORTH EAST LINCOLNSHIRE COUNCIL,http://statistics.data.gov.uk/id/local-authority/00FC,People,Schools,Schools,Rep Alterations Maint Building,Buildings - Repairs And Maint,GA102,6/23/2014,288066,1950,REVENUE,NEWBY LEISURE LTD,101227
NORTH EAST LINCOLNSHIRE COUNCIL,http://statistics.data.gov.uk/id/local-authority/00FC,People,Schools,Schools,Rep Alterations Maint Building,Buildings - Repairs And Maint,GA102,6/17/2014,286168,450,REVENUE,FABRIQUE SPECIALIST GLAZING SYSTEMS LTD,101314
NORTH EAST LINCOLNSHIRE COUNCIL,http://statistics.data.gov.uk/id/local-authority/00FC,People,Schools,Schools,Rep Alterations Maint Building,Carbon Reduction Scheme,GA105,6/19/2014,287425,-367.92,REVENUE,CROMWELL GROUP (HOLDINGS) LTD,100524
NORTH EAST LINCOLNSHIRE COUNCIL,http://statistics.data.gov.uk/id/local-authority/00FC,People,Schools,Schools,Rep Alterations Maint Building,Electrical Testing,GA107,6/19/2014,287372,315,REVENUE,EXCELL ELECTRICAL CONTRACTORS,100601
NORTH EAST LINCOLNSHIRE COUNCIL,http://statistics.data.gov.uk/id/local-authority/00FC,People,Schools,Schools,Rep Alterations Maint Building,Fire Safety,GA106,6/19/2014,287495,367.92,REVENUE,CROMWELL GROUP (HOLDINGS) LTD,100524
NORTH EAST LINCOLNSHIRE COUNCIL,http://statistics.data.gov.uk/id/local-authority/00FC,People,Schools,Schools,Energy Costs,Gas,GB101,6/2/2014,282835,1204.66,REVENUE,BRITISH GAS TRADING LTD,101507
NORTH EAST LINCOLNSHIRE COUNCIL,http://statistics.data.gov.uk/id/local-authority/00FC,People,Schools,Schools,Energy Costs,Gas,GB101,6/19/2014,287368,728.86,REVENUE,BRITISH GAS TRADING LTD,101507
NORTH EAST LINCOLNSHIRE COUNCIL,http://statistics.data.gov.uk/id/local-authority/00FC,People,Schools,Schools,Cleaning And Domestic Supplies,Cleaning - Domestic Purchases,GH105,6/26/2014,288756,-130.96,REVENUE,SYLVESTER-KEAL LTD,100593
NORTH EAST LINCOLNSHIRE COUNCIL,http://statistics.data.gov.uk/id/local-authority/00FC,People,Schools,Schools,Cleaning And Domestic Supplies,Cleaning - Domestic Purchases,GH105,6/19/2014,287495,285.14,REVENUE,CROMWELL GROUP (HOLDINGS) LTD,100524
NORTH EAST LINCOLNSHIRE COUNCIL,http://statistics.data.gov.uk/id/local-authority/00FC,People,Schools,Schools,Cleaning And Domestic Supplies,Cleaning - Domestic Purchases,GH105,6/2/2014,282838,347.74,REVENUE,EAST RIDING OF YORKSHIRE COUNCIL,100654
NORTH EAST LINCOLNSHIRE COUNCIL,http://statistics.data.gov.uk/id/local-authority/00FC,People,Schools,Schools,Equip / Furniture / Materials,Goods For Resale,LA123,6/19/2014,286261,971.5,REVENUE,BLACK FISH BRANDING SOLUTIONS,120696
NORTH EAST LINCOLNSHIRE COUNCIL,http://statistics.data.gov.uk/id/local-authority/00FC,People,Schools,Schools,Equip / Furniture / Materials,Non-Teaching Resources,LA118,6/2/2014,282989,259.95,REVENUE,FINDEL EDUCATION LTD,101237
NORTH EAST LINCOLNSHIRE COUNCIL,http://statistics.data.gov.uk/id/local-authority/00FC,People,Schools,Schools,Equip / Furniture / Materials,Out Of School Club Expenditure,LA119,6/19/2014,286272,777.5,REVENUE,GRIMSBY TOWN FOOTBALL IN THE COMMUNITY,100978
NORTH EAST LINCOLNSHIRE COUNCIL,http://statistics.data.gov.uk/id/local-authority/00FC,People,Schools,Schools,Equip / Furniture / Materials,Teaching Materials,LA117,6/26/2014,288752,698.14,REVENUE,EAST RIDING OF YORKSHIRE COUNCIL,100654
NORTH EAST LINCOLNSHIRE COUNCIL,http://statistics.data.gov.uk/id/local-authority/00FC,People,Schools,Schools,Equip / Furniture / Materials,Teaching Materials,LA117,6/17/2014,286284,280,REVENUE,JILL R PATIENCE,108409
NORTH EAST LINCOLNSHIRE COUNCIL,http://statistics.data.gov.uk/id/local-authority/00FC,People,Schools,Schools,Print Stationery / Gen Off Exp,Photocopier - Running Costs,LD102,6/2/2014,282812,2196,REVENUE,XEROX FINANCE,100572
NORTH EAST LINCOLNSHIRE COUNCIL,http://statistics.data.gov.uk/id/local-authority/00FC,People,Schools,Schools,Other Agencies,Educational Visits,PJ152,6/19/2014,287473,417,REVENUE,WOODLANDS PRIMARY SCHOOL FUND,101263
NORTH EAST LINCOLNSHIRE COUNCIL,http://statistics.data.gov.uk/id/local-authority/00FC,People,Schools,Schools,Other Agencies,Educational Visits,PJ152,6/17/2014,286266,250,REVENUE,AMVALE LIMITED,101030
NORTH EAST LINCOLNSHIRE COUNCIL,http://statistics.data.gov.uk/id/local-authority/00FC,People,Schools,Schools,Other Agencies,Educational Visits,PJ152,6/19/2014,287364,345,REVENUE,AMVALE LIMITED,101030
NORTH EAST LINCOLNSHIRE COUNCIL,http://statistics.data.gov.uk/id/local-authority/00FC,People,Schools,Schools,Other Agencies,Educational Visits,PJ152,6/2/2014,282840,750,REVENUE,COOPERS TOURS,101503
NORTH EAST LINCOLNSHIRE COUNCIL,http://statistics.data.gov.uk/id/local-authority/00FC,People,Schools,Schools,Consultancy,Consultancy - Curriculum,PL102,6/26/2014,288621,366,REVENUE,LONGSHIP TRADING COMPANY,125789
NORTH EAST LINCOLNSHIRE COUNCIL,http://statistics.data.gov.uk/id/local-authority/00FC,People,Schools,Schools,Consultancy,Consultancy - Curriculum,PL102,6/17/2014,286260,300,REVENUE,KEVIN ROGERS,101480
NORTH EAST LINCOLNSHIRE COUNCIL,http://statistics.data.gov.uk/id/local-authority/00FC,People,Schools,Schools,Direct Employee Expenses,Agency Supply Teachers,EA104,6/30/2014,289113,880.2,REVENUE,REED EMPLOYMENT LTD,102225
NORTH EAST LINCOLNSHIRE COUNCIL,http://statistics.data.gov.uk/id/local-authority/00FC,People,Schools,Schools,Direct Employee Expenses,Agency Supply Teachers,EA104,6/17/2014,285244,880.2,REVENUE,REED EMPLOYMENT LTD,102225
NORTH EAST LINCOLNSHIRE COUNCIL,http://statistics.data.gov.uk/id/local-authority/00FC,People,Schools,Schools,Direct Employee Expenses,Agency Supply Teachers,EA104,6/17/2014,285308,815,REVENUE,REED EMPLOYMENT LTD,102225
NORTH EAST LINCOLNSHIRE COUNCIL,http://statistics.data.gov.uk/id/local-authority/00FC,People,Schools,Schools,Indirect Employee Expenses,Staff Training,EB122,6/30/2014,289073,1900,REVENUE,CFBT EDUCATION TRUST,120058
NORTH EAST LINCOLNSHIRE COUNCIL,http://statistics.data.gov.uk/id/local-authority/00FC,People,Schools,Schools,Rep Alterations Maint Building,Buildings - Repairs And Maint,GA102,6/9/2014,284924,880,REVENUE,FABRIQUE SPECIALIST GLAZING SYSTEMS LTD,101314
NORTH EAST LINCOLNSHIRE COUNCIL,http://statistics.data.gov.uk/id/local-authority/00FC,People,Schools,Schools,Rep Alterations Maint Building,Buildings - Repairs And Maint,GA102,6/17/2014,286164,947.9,REVENUE,KES BUILDING MAINTENANCE LIMITED,100786
NORTH EAST LINCOLNSHIRE COUNCIL,http://statistics.data.gov.uk/id/local-authority/00FC,People,Schools,Schools,Water Services,Water,GE101,6/3/2014,282661,660.08,REVENUE,ANGLIAN WATER,100508
NORTH EAST LINCOLNSHIRE COUNCIL,http://statistics.data.gov.uk/id/local-authority/00FC,People,Schools,Schools,Cleaning And Domestic Supplies,Cleaning - Consumables,GH103,6/17/2014,285254,676.59,REVENUE,PETER HOGARTH & SONS LTD,100815
NORTH EAST LINCOLNSHIRE COUNCIL,http://statistics.data.gov.uk/id/local-authority/00FC,People,Schools,Schools,Cleaning And Domestic Supplies,Refuse Collection,GH104,6/17/2014,285190,1042.52,REVENUE,BIFFA WASTE SERVICES LTD,100515
NORTH EAST LINCOLNSHIRE COUNCIL,http://statistics.data.gov.uk/id/local-authority/00FC,People,Schools,Schools,Equip / Furniture / Materials,Equipment - Teaching,LA109,6/30/2014,289111,299,REVENUE,TECHNOLOGY TEACHING SYSTEMS LTD,100996
NORTH EAST LINCOLNSHIRE COUNCIL,http://statistics.data.gov.uk/id/local-authority/00FC,People,Schools,Schools,Equip / Furniture / Materials,Teaching Materials,LA117,6/30/2014,289441,461.43,REVENUE,EAST RIDING OF YORKSHIRE COUNCIL,100654
NORTH EAST LINCOLNSHIRE COUNCIL,http://statistics.data.gov.uk/id/local-authority/00FC,People,Schools,Schools,Communications And Computing,Computer H/Ware - Teaching,LF104,6/30/2014,289109,850,REVENUE,OPTIMUM REPORTS LTD,106132
NORTH EAST LINCOLNSHIRE COUNCIL,http://statistics.data.gov.uk/id/local-authority/00FC,People,Schools,Schools,Communications And Computing,Computer S/Ware - Licences,LF103,6/17/2014,285248,5000,REVENUE,EDUCATION CITY LTD,102371
NORTH EAST LINCOLNSHIRE COUNCIL,http://statistics.data.gov.uk/id/local-authority/00FC,People,Schools,Schools,Communications And Computing,Computer S/Ware - Licences,LF103,6/17/2014,285277,399,REVENUE,FIRST NEWS,101733
NORTH EAST LINCOLNSHIRE COUNCIL,http://statistics.data.gov.uk/id/local-authority/00FC,People,Schools,Schools,Other Agencies,Educational Visits,PJ152,6/30/2014,289169,250,REVENUE,M&M PRODUCTIONS,101593
NORTH EAST LINCOLNSHIRE COUNCIL,http://statistics.data.gov.uk/id/local-authority/00FC,People,Schools,Schools,Other Agencies,Educational Visits,PJ152,6/26/2014,289075,404.5,REVENUE,NORTH LINCOLNSHIRE COUNCIL,101186
NORTH EAST LINCOLNSHIRE COUNCIL,http://statistics.data.gov.uk/id/local-authority/00FC,People,Schools,Schools,Consultancy,Consultancy - Curriculum,PL102,6/26/2014,289106,600,REVENUE,EDUTRAINING,107068
NORTH EAST LINCOLNSHIRE COUNCIL,http://statistics.data.gov.uk/id/local-authority/00FC,People,Schools,Schools,Consultancy,Consultancy - Curriculum,PL102,6/3/2014,282635,1200,REVENUE,LINCS INSPIRE LTD,120610
NORTH EAST LINCOLNSHIRE COUNCIL,http://statistics.data.gov.uk/id/local-authority/00FC,People,Schools,Schools,Indirect Employee Expenses,Staff Training,EB122,6/24/2014,288625,1500,REVENUE,BISHOP GROSSETESTE COLLEGE,101219
NORTH EAST LINCOLNSHIRE COUNCIL,http://statistics.data.gov.uk/id/local-authority/00FC,People,Schools,Schools,Indirect Employee Expenses,Staff Training,EB122,6/24/2014,288589,450,REVENUE,EMMA ROGERS EDUCATION,105844
NORTH EAST LINCOLNSHIRE COUNCIL,http://statistics.data.gov.uk/id/local-authority/00FC,People,Schools,Schools,Rep Alterations Maint Building,Buildings - Repairs And Maint,GA102,6/19/2014,287515,2940,REVENUE,NEWGLAZE,100642
NORTH EAST LINCOLNSHIRE COUNCIL,http://statistics.data.gov.uk/id/local-authority/00FC,People,Schools,Schools,Rep Alterations Maint Building,Buildings - Repairs And Maint,GA102,6/9/2014,284941,1041,REVENUE,E S RUDKIN LTD,100632
NORTH EAST LINCOLNSHIRE COUNCIL,http://statistics.data.gov.uk/id/local-authority/00FC,People,Schools,Schools,Rep Alterations Maint Building,Buildings - Repairs And Maint,GA102,6/16/2014,285063,686.4,REVENUE,E S RUDKIN LTD,100632
NORTH EAST LINCOLNSHIRE COUNCIL,http://statistics.data.gov.uk/id/local-authority/00FC,People,Schools,Schools,Cleaning And Domestic Supplies,Cleaning - Domestic Purchases,GH105,6/26/2014,288738,292.92,REVENUE,SYLVESTER-KEAL LTD,100593
NORTH EAST LINCOLNSHIRE COUNCIL,http://statistics.data.gov.uk/id/local-authority/00FC,People,Schools,Schools,Cleaning And Domestic Supplies,Refuse Collection,GH104,6/19/2014,287233,688.87,REVENUE,BIFFA WASTE SERVICES LTD,100515
NORTH EAST LINCOLNSHIRE COUNCIL,http://statistics.data.gov.uk/id/local-authority/00FC,People,Schools,Schools,Direct Transport Costs,Vehicles - Running Costs,JA104,6/2/2014,283021,350,REVENUE,AMVALE LIMITED,101030
NORTH EAST LINCOLNSHIRE COUNCIL,http://statistics.data.gov.uk/id/local-authority/00FC,People,Schools,Schools,Equip / Furniture / Materials,Teaching Materials,LA117,6/23/2014,287297,383.66,REVENUE,COMPLETE OFFICE SOLUTIONS (UK) LTD,123664
NORTH EAST LINCOLNSHIRE COUNCIL,http://statistics.data.gov.uk/id/local-authority/00FC,People,Schools,Schools,Equip / Furniture / Materials,Teaching Materials,LA117,6/2/2014,283102,292.5,REVENUE,LA JOLIE RONDE LTD,111992
NORTH EAST LINCOLNSHIRE COUNCIL,http://statistics.data.gov.uk/id/local-authority/00FC,People,Schools,Schools,Equip / Furniture / Materials,Teaching Materials,LA117,6/2/2014,283018,339.9,REVENUE,TECHNOLOGY TEACHING SYSTEMS LTD,100996
NORTH EAST LINCOLNSHIRE COUNCIL,http://statistics.data.gov.uk/id/local-authority/00FC,People,Schools,Schools,Equip / Furniture / Materials,Teaching Materials,LA117,6/19/2014,287325,-100,REVENUE,COMPLETE OFFICE SOLUTIONS (UK) LTD,123664
NORTH EAST LINCOLNSHIRE COUNCIL,http://statistics.data.gov.uk/id/local-authority/00FC,People,Schools,Schools,Equip / Furniture / Materials,Teaching Materials,LA117,6/26/2014,288747,508.16,REVENUE,EAST RIDING OF YORKSHIRE COUNCIL,100654
NORTH EAST LINCOLNSHIRE COUNCIL,http://statistics.data.gov.uk/id/local-authority/00FC,People,Schools,Schools,Print Stationery / Gen Off Exp,Photocopier - Running Costs,LD102,6/19/2014,287323,610.81,REVENUE,KONICA MINOLTA BUSINESS SOLUTIONS (UK) LTD,124920
NORTH EAST LINCOLNSHIRE COUNCIL,http://statistics.data.gov.uk/id/local-authority/00FC,People,Schools,Schools,Print Stationery / Gen Off Exp,Photocopier - Running Costs,LD102,6/23/2014,287243,833.1,REVENUE,KONICA MINOLTA BUSINESS SOLUTIONS (UK) LTD,124920
NORTH EAST LINCOLNSHIRE COUNCIL,http://statistics.data.gov.uk/id/local-authority/00FC,People,Schools,Schools,Print Stationery / Gen Off Exp,Photocopier - Running Costs,LD102,6/26/2014,288739,495.73,REVENUE,KONICA MINOLTA BUSINESS SOLUTIONS EAST LTD,101498
NORTH EAST LINCOLNSHIRE COUNCIL,http://statistics.data.gov.uk/id/local-authority/00FC,People,Schools,Schools,Services,Internal Sla'S,LE102,6/19/2014,287284,400,REVENUE,ORMISTON SOUTH PARADE ACADEMY,111750
NORTH EAST LINCOLNSHIRE COUNCIL,http://statistics.data.gov.uk/id/local-authority/00FC,People,Schools,Schools,Communications And Computing,Computer H/Ware - Purchases,LF105,6/26/2014,288740,2088,REVENUE,TECHNOLOGY SUPPORT SOLUTIONS LTD,119571
NORTH EAST LINCOLNSHIRE COUNCIL,http://statistics.data.gov.uk/id/local-authority/00FC,People,Schools,Schools,Communications And Computing,Computer H/Ware - Teaching,LF104,6/19/2014,287272,1390,REVENUE,TECHNOLOGY SUPPORT SOLUTIONS LTD,119571
NORTH EAST LINCOLNSHIRE COUNCIL,http://statistics.data.gov.uk/id/local-authority/00FC,People,Schools,Schools,Communications And Computing,Computer H/Ware - Teaching,LF104,6/26/2014,288740,6088,REVENUE,TECHNOLOGY SUPPORT SOLUTIONS LTD,119571
NORTH EAST LINCOLNSHIRE COUNCIL,http://statistics.data.gov.uk/id/local-authority/00FC,People,Schools,Schools,Indirect Employee Expenses,Medical Expenses - Employees,EB112,6/9/2014,285066,400,REVENUE,WILKIN CHAPMAN LLP,110675
NORTH EAST LINCOLNSHIRE COUNCIL,http://statistics.data.gov.uk/id/local-authority/00FC,People,Schools,Schools,Indirect Employee Expenses,Staff Training,EB122,6/9/2014,285061,504,REVENUE,FOREFRONT TRAINING LTD,105501
NORTH EAST LINCOLNSHIRE COUNCIL,http://statistics.data.gov.uk/id/local-authority/00FC,People,Schools,Schools,Rep Alterations Maint Building,Buildings - Repairs And Maint,GA102,6/9/2014,284501,515,REVENUE,FABRIQUE SPECIALIST GLAZING SYSTEMS LTD,101314
NORTH EAST LINCOLNSHIRE COUNCIL,http://statistics.data.gov.uk/id/local-authority/00FC,People,Schools,Schools,Rep Alterations Maint Building,Buildings - Repairs And Maint,GA102,6/19/2014,286769,350,REVENUE,FABRIQUE SPECIALIST GLAZING SYSTEMS LTD,101314
NORTH EAST LINCOLNSHIRE COUNCIL,http://statistics.data.gov.uk/id/local-authority/00FC,People,Schools,Schools,Rep Alterations Maint Building,Buildings - Repairs And Maint,GA102,6/17/2014,286172,693,REVENUE,KES BUILDING MAINTENANCE LIMITED,100786
NORTH EAST LINCOLNSHIRE COUNCIL,http://statistics.data.gov.uk/id/local-authority/00FC,People,Schools,Schools,Rep Alterations Maint Building,Buildings - Repairs And Maint,GA102,6/9/2014,284938,390,REVENUE,FABRIQUE SPECIALIST GLAZING SYSTEMS LTD,101314
NORTH EAST LINCOLNSHIRE COUNCIL,http://statistics.data.gov.uk/id/local-authority/00FC,People,Schools,Schools,Rep Alterations Maint Building,Buildings - Repairs And Maint,GA102,6/9/2014,285052,295,REVENUE,HAITH'S HEATING LTD,101342
NORTH EAST LINCOLNSHIRE COUNCIL,http://statistics.data.gov.uk/id/local-authority/00FC,People,Schools,Schools,Rep Alterations Maint Building,Buildings - Repairs And Maint,GA102,6/19/2014,287338,365,REVENUE,LINCS ELECTRICAL SERVICES LTD,102044
NORTH EAST LINCOLNSHIRE COUNCIL,http://statistics.data.gov.uk/id/local-authority/00FC,People,Schools,Schools,Direct Transport Costs,Vehicles - Running Costs,JA104,6/19/2014,286186,260,REVENUE,AMVALE LIMITED,101030
NORTH EAST LINCOLNSHIRE COUNCIL,http://statistics.data.gov.uk/id/local-authority/00FC,People,Schools,Schools,Equip / Furniture / Materials,Non-Teaching Resources,LA118,6/24/2014,288058,364,REVENUE,SG WORLD LTD,101678
NORTH EAST LINCOLNSHIRE COUNCIL,http://statistics.data.gov.uk/id/local-authority/00FC,People,Schools,Schools,Catering,Provisions,LB101,6/17/2014,286115,270,REVENUE,G W PRICE LTD,101538
NORTH EAST LINCOLNSHIRE COUNCIL,http://statistics.data.gov.uk/id/local-authority/00FC,People,Schools,Schools,Print Stationery / Gen Off Exp,Photocopier - Running Costs,LD102,6/2/2014,283040,273.82,REVENUE,THE DANWOOD GROUP LTD,100669
NORTH EAST LINCOLNSHIRE COUNCIL,http://statistics.data.gov.uk/id/local-authority/00FC,People,Schools,Schools,Services,Clerking Governing Bodies,LE101,6/30/2014,289087,REDACTED COMMERCIALLY SENSITIVE,REVENUE,SERCO SHARED SERVICES CENTRE,101875
NORTH EAST LINCOLNSHIRE COUNCIL,http://statistics.data.gov.uk/id/local-authority/00FC,People,Schools,Schools,Communications And Computing,Computer S/Ware - Licences,LF103,6/19/2014,287269,850,REVENUE,OPTIMUM REPORTS LTD,106132
NORTH EAST LINCOLNSHIRE COUNCIL,http://statistics.data.gov.uk/id/local-authority/00FC,People,Schools,Schools,Consultancy,Consultancy,PL101,6/2/2014,282949,1500,REVENUE,MR N PARISH,111083
NORTH EAST LINCOLNSHIRE COUNCIL,http://statistics.data.gov.uk/id/local-authority/00FC,People,Schools,Schools,Miscellaneous Expenses,Contingency Reserve,LL123,6/26/2014,288755,1639.86,REVENUE,CLEAPSS,105234
NORTH EAST LINCOLNSHIRE COUNCIL,http://statistics.data.gov.uk/id/local-authority/00FC,People,Schools,Schools,Government Grants,Grants,VA101,6/26/2014,288870,7500,REVENUE,HEALING SCIENCE ACADEMY LTD,102702
NORTH EAST LINCOLNSHIRE COUNCIL,http://statistics.data.gov.uk/id/local-authority/00FC,People,Schools,Schools,Government Grants,Grants,VA101,6/23/2014,287536,3472,REVENUE,GREAT COATES PRIMARY SCHOOL,101104
NORTH EAST LINCOLNSHIRE COUNCIL,http://statistics.data.gov.uk/id/local-authority/00FC,People,Schools,Schools,Government Grants,Grants,VA101,6/17/2014,286133,3351,REVENUE,SCARTHO INFANTS SCHOOL,120365
NORTH EAST LINCOLNSHIRE COUNCIL,http://statistics.data.gov.uk/id/local-authority/00FC,People,Schools,Schools,Government Grants,Grants,VA101,6/17/2014,286031,3548,REVENUE,HUMBERSTON C OF E PRIMARY SCHOOL,101566
NORTH EAST LINCOLNSHIRE COUNCIL,http://statistics.data.gov.uk/id/local-authority/00FC,People,Schools,Schools,Government Grants,Grants,VA101,6/30/2014,289440,33933,REVENUE,SCARTHO INFANTS SCHOOL,120365
NORTH EAST LINCOLNSHIRE COUNCIL,http://statistics.data.gov.uk/id/local-authority/00FC,People,Schools,Schools,Government Grants,Grants,VA101,6/30/2014,289410,12420,REVENUE,GREAT COATES PRIMARY SCHOOL,101104
NORTH EAST LINCOLNSHIRE COUNCIL,http://statistics.data.gov.uk/id/local-authority/00FC,People,Schools,Schools,Government Grants,Grants,VA101,6/30/2014,289411,16055,REVENUE,HUMBERSTON C OF E PRIMARY SCHOOL,101566
NORTH EAST LINCOLNSHIRE COUNCIL,http://statistics.data.gov.uk/id/local-authority/00FC,People,Schools,Schools,Miscellaneous Expenses,Contingency Reserve,LL123,6/20/2014,288044,4600.8,REVENUE,EASTFIELD PRIMARY ACADEMY,121907
NORTH EAST LINCOLNSHIRE COUNCIL,http://statistics.data.gov.uk/id/local-authority/00FC,People,Schools,Schools,Miscellaneous Expenses,Contingency Reserve,LL123,6/20/2014,288036,7282.8,REVENUE,EDWARD HENEAGE PRIMARY (ACADEMY),111742
NORTH EAST LINCOLNSHIRE COUNCIL,http://statistics.data.gov.uk/id/local-authority/00FC,People,Schools,Schools,Miscellaneous Expenses,Contingency Reserve,LL123,6/26/2014,288864,3238,REVENUE,GREAT COATES PRIMARY SCHOOL,101104
NORTH EAST LINCOLNSHIRE COUNCIL,http://statistics.data.gov.uk/id/local-authority/00FC,People,Schools,Schools,Miscellaneous Expenses,Contingency Reserve,LL123,6/20/2014,288038,6242.4,REVENUE,MACAULAY PRIMARY ACADEMY,112680
NORTH EAST LINCOLNSHIRE COUNCIL,http://statistics.data.gov.uk/id/local-authority/00FC,People,Schools,Schools,Miscellaneous Expenses,Contingency Reserve,LL123,6/20/2014,288035,6762.6,REVENUE,OASIS ACADEMY NUNSTHORPE,111685
NORTH EAST LINCOLNSHIRE COUNCIL,http://statistics.data.gov.uk/id/local-authority/00FC,People,Schools,Schools,Miscellaneous Expenses,Contingency Reserve,LL123,6/20/2014,288042,2044.8,REVENUE,OLD CLEE PRIMARY ACADEMY,119822
NORTH EAST LINCOLNSHIRE COUNCIL,http://statistics.data.gov.uk/id/local-authority/00FC,People,Schools,Schools,Miscellaneous Expenses,Contingency Reserve,LL123,6/20/2014,288033,520.2,REVENUE,ORMISTON MARITIME ACADEMY,106066
NORTH EAST LINCOLNSHIRE COUNCIL,http://statistics.data.gov.uk/id/local-authority/00FC,People,Schools,Schools,Miscellaneous Expenses,Contingency Reserve,LL123,6/20/2014,288045,2556,REVENUE,REYNOLDS PRIMARY ACADEMY,122175
NORTH EAST LINCOLNSHIRE COUNCIL,http://statistics.data.gov.uk/id/local-authority/00FC,People,Schools,Schools,Miscellaneous Expenses,Contingency Reserve,LL123,6/26/2014,288871,15082,REVENUE,SCARTHO INFANTS SCHOOL,120365
NORTH EAST LINCOLNSHIRE COUNCIL,http://statistics.data.gov.uk/id/local-authority/00FC,People,Schools,Schools,Miscellaneous Expenses,Contingency Reserve,LL123,6/20/2014,288040,3121.2,REVENUE,ST MARYS CATHOLIC PRIMARY VOLUNTARY ACADEMY,115108
NORTH EAST LINCOLNSHIRE COUNCIL,http://statistics.data.gov.uk/id/local-authority/00FC,People,Schools,Schools,Miscellaneous Expenses,Contingency Reserve,LL123,6/20/2014,288037,1560.6,REVENUE,STRAND PRIMARY ACADEMY,111862
NORTH EAST LINCOLNSHIRE COUNCIL,http://statistics.data.gov.uk/id/local-authority/00FC,People,Schools,Schools,Miscellaneous Expenses,Contingency Reserve,LL123,6/20/2014,288034,7282.8,REVENUE,WEELSBY ACADEMY,111161
NORTH EAST LINCOLNSHIRE COUNCIL,http://statistics.data.gov.uk/id/local-authority/00FC,People,Schools,Schools,Miscellaneous Expenses,Contingency Reserve,LL123,6/20/2014,288043,5725.44,REVENUE,WILLOWS PRIMARY ACADEMY,120478
NORTH EAST LINCOLNSHIRE COUNCIL,http://statistics.data.gov.uk/id/local-authority/00FC,People,Schools,Schools,Miscellaneous Expenses,Contingency Reserve,LL123,6/20/2014,288039,5624.64,REVENUE,YARBOROUGH ACADEMY,112852
NORTH EAST LINCOLNSHIRE COUNCIL,http://statistics.data.gov.uk/id/local-authority/00FC,People,Early Intervention,Integrated Youth Services,Miscellaneous Expenses,Activities - Service Users,LL114,6/16/2014,286032,500,REVENUE,PARK RETAIL LTD - LOVE2REWARD,111869
NORTH EAST LINCOLNSHIRE COUNCIL,http://statistics.data.gov.uk/id/local-authority/00FC,People,Early Intervention,Integrated Youth Services,Miscellaneous Expenses,Activities - Service Users,LL114,6/11/2014,285665,1960,REVENUE,PARK RETAIL LTD - LOVE2REWARD,111869
NORTH EAST LINCOLNSHIRE COUNCIL,http://statistics.data.gov.uk/id/local-authority/00FC,People,Early Intervention,Integrated Youth Services,Miscellaneous Expenses,Activities - Service Users,LL114,6/30/2014,288707,990,REVENUE,COTTAGERS PLOT EQUESTRIAN CENTRE,101808
NORTH EAST LINCOLNSHIRE COUNCIL,http://statistics.data.gov.uk/id/local-authority/00FC,People,Early Intervention,Integrated Youth Services,Direct Employee Expenses,Agency Staff,EA105,6/5/2014,284451,1284.64,REVENUE,VOLUNTARY ACTION NORTH EAST LINCOLNSHIRE,103631
NORTH EAST LINCOLNSHIRE COUNCIL,http://statistics.data.gov.uk/id/local-authority/00FC,People,Early Intervention,Integrated Youth Services,Catering,Provisions,LB101,6/3/2014,282607,371.16,REVENUE,KANDYWORLD,107317
NORTH EAST LINCOLNSHIRE COUNCIL,http://statistics.data.gov.uk/id/local-authority/00FC,People,Early Intervention,Integrated Youth Services,Catering,Provisions,LB101,6/9/2014,285390,532.6,REVENUE,HARPER CREATIVE,110959
NORTH EAST LINCOLNSHIRE COUNCIL,http://statistics.data.gov.uk/id/local-authority/00FC,People,Early Intervention,Integrated Youth Services,Miscellaneous Expenses,Legal Fees - General,LL103,6/30/2014,289422,250,REVENUE,THOMPSONS SOLICITORS,101854
NORTH EAST LINCOLNSHIRE COUNCIL,http://statistics.data.gov.uk/id/local-authority/00FC,People,Early Intervention,Integrated Youth Services,Grants And Subscriptions,Subscriptions,LJ101,6/18/2014,287213,665.03,REVENUE,TOWERGATE PROFESSIONAL RISKS,109012
NORTH EAST LINCOLNSHIRE COUNCIL,http://statistics.data.gov.uk/id/local-authority/00FC,People,Early Intervention,Integrated Youth Services,Miscellaneous Expenses,Legal Fees - General,LL103,6/9/2014,284927,789,REVENUE,WILKIN CHAPMAN LLP,110675
NORTH EAST LINCOLNSHIRE COUNCIL,http://statistics.data.gov.uk/id/local-authority/00FC,People,Early Intervention,Integrated Youth Services,Direct Transport Costs,Hired Transport - Service User,JA102,6/9/2014,284132,250,REVENUE,COOPERS TOURS,101503
NORTH EAST LINCOLNSHIRE COUNCIL,http://statistics.data.gov.uk/id/local-authority/00FC,People,Early Intervention,Integrated Youth Services,Miscellaneous Expenses,Licences,LL116,6/18/2014,287215,685.37,REVENUE,THE PERFORMING RIGHT SOCIETY LTD,100946
NORTH EAST LINCOLNSHIRE COUNCIL,http://statistics.data.gov.uk/id/local-authority/00FC,People,Early Intervention,Childrens Health Provision,Equip / Furniture / Materials,Equipment - Purchase,LA101,6/11/2014,285615,262.95,REVENUE,FINDEL EDUCATION LTD,101237
NORTH EAST LINCOLNSHIRE COUNCIL,http://statistics.data.gov.uk/id/local-authority/00FC,People,Early Intervention,Childrens Health Provision,Equip / Furniture / Materials,Equipment - Purchase,LA101,6/11/2014,285616,299.95,REVENUE,FINDEL EDUCATION LTD,101237
NORTH EAST LINCOLNSHIRE COUNCIL,http://statistics.data.gov.uk/id/local-authority/00FC,People,Early Intervention,Childrens Health Provision,Equip / Furniture / Materials,Equipment - Purchase,LA101,6/11/2014,285612,499.95,REVENUE,FINDEL EDUCATION LTD,101237
NORTH EAST LINCOLNSHIRE COUNCIL,http://statistics.data.gov.uk/id/local-authority/00FC,People,Early Intervention,Childrens Health Provision,Equip / Furniture / Materials,Equipment - Purchase,LA101,6/9/2014,284406,1491,REVENUE,KES BUILDING MAINTENANCE LIMITED,100786
NORTH EAST LINCOLNSHIRE COUNCIL,http://statistics.data.gov.uk/id/local-authority/00FC,People,Early Intervention,Childrens Health Provision,Equip / Furniture / Materials,Equipment - Maintenance,LA104,6/12/2014,284068,1600,REVENUE,N LINCS & GOOLE HOSPITALS NHS,111074
NORTH EAST LINCOLNSHIRE COUNCIL,http://statistics.data.gov.uk/id/local-authority/00FC,People,Early Intervention,Childrens Health Provision,Equip / Furniture / Materials,Equipment - Maintenance,LA104,6/9/2014,284058,480,REVENUE,N LINCS & GOOLE HOSPITALS NHS,111074
NORTH EAST LINCOLNSHIRE COUNCIL,http://statistics.data.gov.uk/id/local-authority/00FC,People,Early Intervention,Childrens Health Provision,Equip / Furniture / Materials,Equipment - Maintenance,LA104,6/9/2014,284070,900,REVENUE,N LINCS & GOOLE HOSPITALS NHS,111074
NORTH EAST LINCOLNSHIRE COUNCIL,http://statistics.data.gov.uk/id/local-authority/00FC,People,Early Intervention,Childrens Health Provision,Print Stationery / Gen Off Exp,Photocopier - Running Costs,LD102,6/9/2014,285391,276.41,REVENUE,CULL PAPERLESS SOLUTIONS LTD,121735
NORTH EAST LINCOLNSHIRE COUNCIL,http://statistics.data.gov.uk/id/local-authority/00FC,People,Early Intervention,Childrens Health Provision,Print Stationery / Gen Off Exp,Printing And Stationery,LD103,6/12/2014,285201,265,REVENUE,LYRECO UK LIMITED,101120
NORTH EAST LINCOLNSHIRE COUNCIL,http://statistics.data.gov.uk/id/local-authority/00FC,People,Early Intervention,Childrens Health Provision,Communications And Computing,Postage,LF111,6/18/2014,286360,265,REVENUE,LYRECO UK LIMITED,101120
NORTH EAST LINCOLNSHIRE COUNCIL,http://statistics.data.gov.uk/id/local-authority/00FC,People,Early Intervention,Childrens Centre Development,Rep Alterations Maint Building,Buildings - Repairs And Maint,GA102,6/9/2014,285051,404,REVENUE,HAITH'S HEATING LTD,101342
NORTH EAST LINCOLNSHIRE COUNCIL,http://statistics.data.gov.uk/id/local-authority/00FC,People,Early Intervention,Childrens Centre Development,Rep Alterations Maint Building,Buildings - Repairs And Maint,GA102,6/17/2014,286522,593,REVENUE,FABRIQUE SPECIALIST GLAZING SYSTEMS LTD,101314
NORTH EAST LINCOLNSHIRE COUNCIL,http://statistics.data.gov.uk/id/local-authority/00FC,People,Early Intervention,Childrens Centre Development,Energy Costs,Gas,GB101,6/18/2014,286431,706.74,REVENUE,BRITISH GAS TRADING LTD,101507
NORTH EAST LINCOLNSHIRE COUNCIL,http://statistics.data.gov.uk/id/local-authority/00FC,People,Early Intervention,Childrens Centre Development,Cleaning And Domestic Supplies,Cleaning - Services,GH102,6/17/2014,286108,529,REVENUE,FUTURE CLEANING SERVICES LTD,102557
NORTH EAST LINCOLNSHIRE COUNCIL,http://statistics.data.gov.uk/id/local-authority/00FC,People,Early Intervention,Childrens Centre Development,Other Agencies,Child Care Payments,PJ104,6/26/2014,288551,1160.55,REVENUE,PRE SCHOOL LEARNING ALLIANCE,101437
NORTH EAST LINCOLNSHIRE COUNCIL,http://statistics.data.gov.uk/id/local-authority/00FC,People,Early Intervention,Childrens Centre Development,Other Agencies,Educational Visits,PJ152,6/17/2014,286119,550,REVENUE,GOLDWING COACHES,112678
NORTH EAST LINCOLNSHIRE COUNCIL,http://statistics.data.gov.uk/id/local-authority/00FC,People,Early Intervention,Childrens Centre Development,Rep Alterations Maint Building,Buildings - Repairs And Maint,GA102,6/9/2014,284979,669.4,REVENUE,UNIBUILD BUILDING CONT LTD,101469
NORTH EAST LINCOLNSHIRE COUNCIL,http://statistics.data.gov.uk/id/local-authority/00FC,People,Early Intervention,Childrens Centre Development,Water Services,Water,GE101,6/9/2014,283723,557.26,REVENUE,ANGLIAN WATER,100508
NORTH EAST LINCOLNSHIRE COUNCIL,http://statistics.data.gov.uk/id/local-authority/00FC,People,Early Intervention,Childrens Centre Development,Cleaning And Domestic Supplies,Cleaning - Services,GH102,6/20/2014,286923,541,REVENUE,EASY CLEAN MARSHCHAPEL LTD,104531
NORTH EAST LINCOLNSHIRE COUNCIL,http://statistics.data.gov.uk/id/local-authority/00FC,People,Early Intervention,Childrens Centre Development,Indirect Employee Expenses,Pension P/Ment Early Retire,EB108,6/26/2014,243532,REDACTED PERSONAL INFORMATION,REVENUE,REDACTED PERSONAL INFORMATION,REDACTED PERSONAL INFORMATION
NORTH EAST LINCOLNSHIRE COUNCIL,http://statistics.data.gov.uk/id/local-authority/00FC,People,Early Intervention,Childrens Centre Development,Other Agencies,Child Care Payments,PJ104,6/2/2014,283718,353.6,REVENUE,ORMISTON SOUTH PARADE ACADEMY,111750
NORTH EAST LINCOLNSHIRE COUNCIL,http://statistics.data.gov.uk/id/local-authority/00FC,People,Early Intervention,Childrens Centre Development,Other Agencies,Child Care Payments,PJ104,6/2/2014,283717,396,REVENUE,ORMISTON SOUTH PARADE ACADEMY,111750
NORTH EAST LINCOLNSHIRE COUNCIL,http://statistics.data.gov.uk/id/local-authority/00FC,People,Early Intervention,Childrens Centre Development,Other Agencies,Child Care Payments,PJ104,6/2/2014,283716,351,REVENUE,ORMISTON SOUTH PARADE ACADEMY,111750
NORTH EAST LINCOLNSHIRE COUNCIL,http://statistics.data.gov.uk/id/local-authority/00FC,People,Early Intervention,Childrens Centre Development,Energy Costs,Electricity,GB102,6/30/2014,288973,709.77,REVENUE,NPOWER,101368
NORTH EAST LINCOLNSHIRE COUNCIL,http://statistics.data.gov.uk/id/local-authority/00FC,People,Early Intervention,Childrens Centre Development,Equip / Furniture / Materials,Equipment - Purchase,LA101,6/20/2014,287404,400,REVENUE,IT SERVICES (GRIMSBY) LTD,101060
NORTH EAST LINCOLNSHIRE COUNCIL,http://statistics.data.gov.uk/id/local-authority/00FC,People,Early Intervention,Childrens Centre Development,Other Agencies,Child Care Payments,PJ104,6/26/2014,288731,519.12,REVENUE,PRE SCHOOL LEARNING ALLIANCE,101437
NORTH EAST LINCOLNSHIRE COUNCIL,http://statistics.data.gov.uk/id/local-authority/00FC,People,Early Intervention,Childrens Centre Development,Cleaning And Domestic Supplies,Cleaning - Services,GH102,6/11/2014,284540,636,REVENUE,TULIP HEALTHCARE,101042
NORTH EAST LINCOLNSHIRE COUNCIL,http://statistics.data.gov.uk/id/local-authority/00FC,People,Early Intervention,Childrens Centre Development,Equip / Furniture / Materials,Equipment - Purchase,LA101,6/9/2014,284379,399.8,REVENUE,MOISERS (GRIMSBY) LTD,100746
NORTH EAST LINCOLNSHIRE COUNCIL,http://statistics.data.gov.uk/id/local-authority/00FC,People,Early Intervention,Childrens Centre Development,Catering,Provisions,LB101,6/12/2014,284556,500,REVENUE,TESCO STORES LIMITED,102576
NORTH EAST LINCOLNSHIRE COUNCIL,http://statistics.data.gov.uk/id/local-authority/00FC,People,Early Intervention,Childrens Centre Development,Other Agencies,Educational Visits,PJ152,6/18/2014,286293,700,REVENUE,COOPERS TOURS,101503
NORTH EAST LINCOLNSHIRE COUNCIL,http://statistics.data.gov.uk/id/local-authority/00FC,People,Early Intervention,Childrens Centre Development,Other Agencies,Educational Visits,PJ152,6/17/2014,286104,720,REVENUE,CLEETHORPES SENIOR CITIZENS CLUB,103967
NORTH EAST LINCOLNSHIRE COUNCIL,http://statistics.data.gov.uk/id/local-authority/00FC,People,Early Intervention,Childrens Centre Development,Rep Alterations Maint Building,Buildings - Repairs And Maint,GA102,6/17/2014,286520,583,REVENUE,FABRIQUE SPECIALIST GLAZING SYSTEMS LTD,101314
NORTH EAST LINCOLNSHIRE COUNCIL,http://statistics.data.gov.uk/id/local-authority/00FC,People,Early Intervention,Childrens Centre Development,Other Agencies,Child Care Payments,PJ104,6/3/2014,283397,270,REVENUE,CHAPPILLS DAY NURSERY,100998
NORTH EAST LINCOLNSHIRE COUNCIL,http://statistics.data.gov.uk/id/local-authority/00FC,People,Early Intervention,Childrens Centre Development,Other Agencies,Child Care Payments,PJ104,6/3/2014,283398,590,REVENUE,CHAPPILLS DAY NURSERY,100998
NORTH EAST LINCOLNSHIRE COUNCIL,http://statistics.data.gov.uk/id/local-authority/00FC,People,Early Intervention,Childrens Centre Development,Rep Alterations Maint Building,Buildings - Repairs And Maint,GA102,6/19/2014,286772,646.28,REVENUE,EXCELL ELECTRICAL CONTRACTORS,100601
NORTH EAST LINCOLNSHIRE COUNCIL,http://statistics.data.gov.uk/id/local-authority/00FC,People,Early Intervention,Childrens Centre Development,Rep Alterations Maint Building,Buildings - Repairs And Maint,GA102,6/26/2014,288191,693.76,REVENUE,WILLOWS PRIMARY ACADEMY,120478
NORTH EAST LINCOLNSHIRE COUNCIL,http://statistics.data.gov.uk/id/local-authority/00FC,People,Early Intervention,Childrens Centre Development,Rep Alterations Maint Building,Buildings - Repairs And Maint,GA102,6/2/2014,283157,302.18,REVENUE,FRED MARGARSON LTD,100592
NORTH EAST LINCOLNSHIRE COUNCIL,http://statistics.data.gov.uk/id/local-authority/00FC,People,Early Intervention,Childrens Centre Development,Energy Costs,Electricity,GB102,6/20/2014,286835,4398.44,REVENUE,WILLOWS PRIMARY ACADEMY,120478
NORTH EAST LINCOLNSHIRE COUNCIL,http://statistics.data.gov.uk/id/local-authority/00FC,People,Early Intervention,Childrens Centre Development,Energy Costs,Electricity,GB102,6/30/2014,289114,1211.55,REVENUE,WILLOWS PRIMARY ACADEMY,120478
NORTH EAST LINCOLNSHIRE COUNCIL,http://statistics.data.gov.uk/id/local-authority/00FC,People,Early Intervention,Childrens Centre Development,Energy Costs,Gas,GB101,6/30/2014,289116,1457.11,REVENUE,WILLOWS PRIMARY ACADEMY,120478
NORTH EAST LINCOLNSHIRE COUNCIL,http://statistics.data.gov.uk/id/local-authority/00FC,People,Early Intervention,Childrens Centre Development,Cleaning And Domestic Supplies,Cleaning - Services,GH102,6/18/2014,286942,690.08,REVENUE,FUTURE CLEANING SERVICES LTD,102557
NORTH EAST LINCOLNSHIRE COUNCIL,http://statistics.data.gov.uk/id/local-authority/00FC,People,Early Intervention,Childrens Centre Development,Cleaning And Domestic Supplies,Refuse Collection,GH104,6/20/2014,287675,1566.24,REVENUE,PHS GROUP LTD,100554
NORTH EAST LINCOLNSHIRE COUNCIL,http://statistics.data.gov.uk/id/local-authority/00FC,People,Early Intervention,Childrens Centre Development,Cleaning And Domestic Supplies,Refuse Collection,GH104,6/3/2014,283547,313.82,REVENUE,BIFFA WASTE SERVICES LTD,100515
NORTH EAST LINCOLNSHIRE COUNCIL,http://statistics.data.gov.uk/id/local-authority/00FC,People,Early Intervention,Childrens Centre Development,Rep Alterations Maint Building,Buildings - Repairs And Maint,GA102,6/9/2014,285057,513.5,REVENUE,HAITH'S HEATING LTD,101342
NORTH EAST LINCOLNSHIRE COUNCIL,http://statistics.data.gov.uk/id/local-authority/00FC,People,Early Intervention,Childrens Centre Development,Energy Costs,Electricity,GB102,6/20/2014,287678,319.37,REVENUE,YARBOROUGH ACADEMY,112852
NORTH EAST LINCOLNSHIRE COUNCIL,http://statistics.data.gov.uk/id/local-authority/00FC,People,Early Intervention,Childrens Centre Development,Energy Costs,Electricity,GB102,6/23/2014,287676,378.5,REVENUE,YARBOROUGH ACADEMY,112852
NORTH EAST LINCOLNSHIRE COUNCIL,http://statistics.data.gov.uk/id/local-authority/00FC,People,Early Intervention,Childrens Centre Development,Water Services,Water,GE101,6/23/2014,287700,-12,REVENUE,ANGEL SPRINGS LTD,103845
NORTH EAST LINCOLNSHIRE COUNCIL,http://statistics.data.gov.uk/id/local-authority/00FC,People,Early Intervention,Childrens Centre Development,Cleaning And Domestic Supplies,Cleaning - Consumables,GH103,6/9/2014,283138,-32.36,REVENUE,FUTURE CLEANING SERVICES LTD,102557
NORTH EAST LINCOLNSHIRE COUNCIL,http://statistics.data.gov.uk/id/local-authority/00FC,People,Early Intervention,Childrens Centre Development,Cleaning And Domestic Supplies,Cleaning - Services,GH102,6/20/2014,286797,860,REVENUE,FUTURE CLEANING SERVICES LTD,102557
NORTH EAST LINCOLNSHIRE COUNCIL,http://statistics.data.gov.uk/id/local-authority/00FC,People,Early Intervention,Childrens Centre Development,Rep Alterations Maint Building,Buildings - Repairs And Maint,GA102,6/5/2014,284433,716,REVENUE,ORCHARD FIRE & SECURITY LTD,100650
NORTH EAST LINCOLNSHIRE COUNCIL,http://statistics.data.gov.uk/id/local-authority/00FC,People,Early Intervention,Childrens Centre Development,Rep Alterations Maint Building,Buildings - Repairs And Maint,GA102,6/9/2014,284939,273,REVENUE,FABRIQUE SPECIALIST GLAZING SYSTEMS LTD,101314
NORTH EAST LINCOLNSHIRE COUNCIL,http://statistics.data.gov.uk/id/local-authority/00FC,People,Early Intervention,Childrens Centre Development,Cleaning And Domestic Supplies,Cleaning - Services,GH102,6/2/2014,283449,934.88,REVENUE,FUTURE CLEANING SERVICES LTD,102557
NORTH EAST LINCOLNSHIRE COUNCIL,http://statistics.data.gov.uk/id/local-authority/00FC,People,Early Intervention,Childrens Centre Development,Energy Costs,Electricity,GB102,6/30/2014,288920,300.77,REVENUE,OLD CLEE PRIMARY ACADEMY,119822
NORTH EAST LINCOLNSHIRE COUNCIL,http://statistics.data.gov.uk/id/local-authority/00FC,People,Early Intervention,Childrens Centre Development,Energy Costs,Electricity,GB102,6/2/2014,283633,276.76,REVENUE,OLD CLEE PRIMARY ACADEMY,119822
NORTH EAST LINCOLNSHIRE COUNCIL,http://statistics.data.gov.uk/id/local-authority/00FC,People,Early Intervention,Childrens Centre Development,Car Allowances,Travel - Employees,JF101,6/30/2014,289535,-21.98,REVENUE,NYS CORPORATE,102444
NORTH EAST LINCOLNSHIRE COUNCIL,http://statistics.data.gov.uk/id/local-authority/00FC,People,Early Intervention,Youth Offending Team,Direct Transport Costs,Hired Transport - Employees,JA101,6/19/2014,286252,-71.68,REVENUE,NORTHGATE VEHICLE HIRE LTD,109432
NORTH EAST LINCOLNSHIRE COUNCIL,http://statistics.data.gov.uk/id/local-authority/00FC,People,Early Intervention,Youth Offending Team,Communications And Computing,Computer S/Ware - Licences,LF103,6/12/2014,284676,5710,REVENUE,CACI LTD,110598
NORTH EAST LINCOLNSHIRE COUNCIL,http://statistics.data.gov.uk/id/local-authority/00FC,People,Early Intervention,Child Protection / Safeguardin,Direct Employee Expenses,Agency Staff,EA105,6/26/2014,288238,2377.5,REVENUE,MATRIX SCM LTD,108117
NORTH EAST LINCOLNSHIRE COUNCIL,http://statistics.data.gov.uk/id/local-authority/00FC,People,Early Intervention,Child Protection / Safeguardin,Direct Employee Expenses,Agency Staff,EA105,6/16/2014,284651,2306.95,REVENUE,ESP LTD,101231
NORTH EAST LINCOLNSHIRE COUNCIL,http://statistics.data.gov.uk/id/local-authority/00FC,People,Early Intervention,Child Protection / Safeguardin,Direct Employee Expenses,Agency Staff,EA105,6/11/2014,284674,1658.53,REVENUE,ESP LTD,101231
NORTH EAST LINCOLNSHIRE COUNCIL,http://statistics.data.gov.uk/id/local-authority/00FC,People,Early Intervention,Child Protection / Safeguardin,Direct Employee Expenses,Agency Staff,EA105,6/19/2014,286579,2306.95,REVENUE,ESP LTD,101231
NORTH EAST LINCOLNSHIRE COUNCIL,http://statistics.data.gov.uk/id/local-authority/00FC,People,Early Intervention,Child Protection / Safeguardin,Direct Employee Expenses,Agency Staff,EA105,6/20/2014,287707,1752.04,REVENUE,ESP LTD,101231
NORTH EAST LINCOLNSHIRE COUNCIL,http://statistics.data.gov.uk/id/local-authority/00FC,People,Early Intervention,Child Protection / Safeguardin,Communications And Computing,Computer H/Ware - Purchases,LF105,6/17/2014,286053,454.71,REVENUE,SPECIALIST COMPUTER CENTRES PLC,110715
NORTH EAST LINCOLNSHIRE COUNCIL,http://statistics.data.gov.uk/id/local-authority/00FC,People,Early Intervention,Child Protection / Safeguardin,Communications And Computing,Computer H/Ware - Purchases,LF105,6/19/2014,287308,454.71,REVENUE,SPECIALIST COMPUTER CENTRES PLC,110715
NORTH EAST LINCOLNSHIRE COUNCIL,http://statistics.data.gov.uk/id/local-authority/00FC,People,Early Intervention,Head Of Child Hlth - Fam Supp,Indirect Employee Expenses,Staff Training,EB122,6/3/2014,282914,349,REVENUE,MA EDUCATION LTD,105566
NORTH EAST LINCOLNSHIRE COUNCIL,http://statistics.data.gov.uk/id/local-authority/00FC,People,Early Intervention,Head Of Child Hlth - Fam Supp,Rents,Service Charge,GC102,6/26/2014,288239,404.44,REVENUE,E-ON (GAS),101983
NORTH EAST LINCOLNSHIRE COUNCIL,http://statistics.data.gov.uk/id/local-authority/00FC,People,Early Intervention,Head Of Child Hlth - Fam Supp,Rents,Service Charge,GC102,6/23/2014,288086,661.48,REVENUE,NPOWER LIMITED,101414
NORTH EAST LINCOLNSHIRE COUNCIL,http://statistics.data.gov.uk/id/local-authority/00FC,People,Early Intervention,Head Of Child Hlth - Fam Supp,Rents,Service Charge,GC102,6/2/2014,283627,5263.35,REVENUE,MEDICX PROPERTIES VII LTD,121936
NORTH EAST LINCOLNSHIRE COUNCIL,http://statistics.data.gov.uk/id/local-authority/00FC,People,Early Intervention,Head Of Child Hlth - Fam Supp,Rents,Service Charge,GC102,6/3/2014,283626,5263.35,REVENUE,MEDICX PROPERTIES VII LTD,121936
NORTH EAST LINCOLNSHIRE COUNCIL,http://statistics.data.gov.uk/id/local-authority/00FC,People,Adult Serv & Hlth Improvement,Supporting People,Other Agencies,Third Pp - Block Gross,PJ103,6/24/2014,288719,REDACTED COMMERCIALLY SENSITIVE,REVENUE,ANCHOR TRUST,100327
NORTH EAST LINCOLNSHIRE COUNCIL,http://statistics.data.gov.uk/id/local-authority/00FC,People,Adult Serv & Hlth Improvement,Supporting People,Other Agencies,Third Pp - Block Gross,PJ103,6/24/2014,288714,REDACTED COMMERCIALLY SENSITIVE,REVENUE,CARE LTD,100314
NORTH EAST LINCOLNSHIRE COUNCIL,http://statistics.data.gov.uk/id/local-authority/00FC,People,Adult Serv & Hlth Improvement,Supporting People,Other Agencies,Third Pp - Block Gross,PJ103,6/24/2014,288727,REDACTED COMMERCIALLY SENSITIVE,REVENUE,CARE PLUS GROUP,106467
NORTH EAST LINCOLNSHIRE COUNCIL,http://statistics.data.gov.uk/id/local-authority/00FC,People,Adult Serv & Hlth Improvement,Supporting People,Other Agencies,Third Pp - Block Gross,PJ103,6/24/2014,288728,REDACTED COMMERCIALLY SENSITIVE,REVENUE,CREATIVE SUPPORT LTD,107198
NORTH EAST LINCOLNSHIRE COUNCIL,http://statistics.data.gov.uk/id/local-authority/00FC,People,Adult Serv & Hlth Improvement,Supporting People,Other Agencies,Third Pp - Block Gross,PJ103,6/24/2014,288711,REDACTED COMMERCIALLY SENSITIVE,REVENUE,DOORSTEP,100310
NORTH EAST LINCOLNSHIRE COUNCIL,http://statistics.data.gov.uk/id/local-authority/00FC,People,Adult Serv & Hlth Improvement,Supporting People,Other Agencies,Third Pp - Block Gross,PJ103,6/24/2014,288708,REDACTED COMMERCIALLY SENSITIVE,REVENUE,GRIMSBY CLEETHORPES & HUMBER REGION YMCA,100305
NORTH EAST LINCOLNSHIRE COUNCIL,http://statistics.data.gov.uk/id/local-authority/00FC,People,Adult Serv & Hlth Improvement,Supporting People,Other Agencies,Third Pp - Block Gross,PJ103,6/24/2014,288709,REDACTED COMMERCIALLY SENSITIVE,REVENUE,HANOVER HOUSING ASSOCIATION,100307
NORTH EAST LINCOLNSHIRE COUNCIL,http://statistics.data.gov.uk/id/local-authority/00FC,People,Adult Serv & Hlth Improvement,Supporting People,Other Agencies,Third Pp - Block Gross,PJ103,6/24/2014,288717,REDACTED COMMERCIALLY SENSITIVE,REVENUE,HOUSING & SUPPORT SOLUTIONS,100321
NORTH EAST LINCOLNSHIRE COUNCIL,http://statistics.data.gov.uk/id/local-authority/00FC,People,Adult Serv & Hlth Improvement,Supporting People,Other Agencies,Third Pp - Block Gross,PJ103,6/24/2014,288715,REDACTED COMMERCIALLY SENSITIVE,REVENUE,HICA,100319
NORTH EAST LINCOLNSHIRE COUNCIL,http://statistics.data.gov.uk/id/local-authority/00FC,People,Adult Serv & Hlth Improvement,Supporting People,Other Agencies,Third Pp - Block Gross,PJ103,6/24/2014,288716,REDACTED COMMERCIALLY SENSITIVE,REVENUE,HOUSING 21,100320
NORTH EAST LINCOLNSHIRE COUNCIL,http://statistics.data.gov.uk/id/local-authority/00FC,People,Adult Serv & Hlth Improvement,Supporting People,Other Agencies,Third Pp - Block Gross,PJ103,6/24/2014,288712,REDACTED COMMERCIALLY SENSITIVE,REVENUE,HUMBERCARE LTD,100311
NORTH EAST LINCOLNSHIRE COUNCIL,http://statistics.data.gov.uk/id/local-authority/00FC,People,Adult Serv & Hlth Improvement,Supporting People,Other Agencies,Third Pp - Block Gross,PJ103,6/24/2014,288713,REDACTED COMMERCIALLY SENSITIVE,REVENUE,HUMBERCARE LTD,100311
NORTH EAST LINCOLNSHIRE COUNCIL,http://statistics.data.gov.uk/id/local-authority/00FC,People,Adult Serv & Hlth Improvement,Supporting People,Other Agencies,Third Pp - Block Gross,PJ103,6/24/2014,288722,REDACTED COMMERCIALLY SENSITIVE,REVENUE,LONGHURST AND HAVELOK HOMES LTD,100342
NORTH EAST LINCOLNSHIRE COUNCIL,http://statistics.data.gov.uk/id/local-authority/00FC,People,Adult Serv & Hlth Improvement,Supporting People,Other Agencies,Third Pp - Block Gross,PJ103,6/24/2014,288723,REDACTED COMMERCIALLY SENSITIVE,REVENUE,LONGHURST AND HAVELOK HOMES LTD,100342
NORTH EAST LINCOLNSHIRE COUNCIL,http://statistics.data.gov.uk/id/local-authority/00FC,People,Adult Serv & Hlth Improvement,Supporting People,Other Agencies,Third Pp - Block Gross,PJ103,6/24/2014,288726,REDACTED COMMERCIALLY SENSITIVE,REVENUE,NAVIGO,104262
NORTH EAST LINCOLNSHIRE COUNCIL,http://statistics.data.gov.uk/id/local-authority/00FC,People,Adult Serv & Hlth Improvement,Supporting People,Other Agencies,Third Pp - Block Gross,PJ103,6/24/2014,288724,REDACTED COMMERCIALLY SENSITIVE,REVENUE,OPEN DOOR,103147
NORTH EAST LINCOLNSHIRE COUNCIL,http://statistics.data.gov.uk/id/local-authority/00FC,People,Adult Serv & Hlth Improvement,Supporting People,Other Agencies,Third Pp - Block Gross,PJ103,6/24/2014,288725,REDACTED COMMERCIALLY SENSITIVE,REVENUE,SANCTUARY HOUSING ASSOCIATION,103289
NORTH EAST LINCOLNSHIRE COUNCIL,http://statistics.data.gov.uk/id/local-authority/00FC,People,Adult Serv & Hlth Improvement,Supporting People,Other Agencies,Third Pp - Block Gross,PJ103,6/24/2014,288710,REDACTED COMMERCIALLY SENSITIVE,REVENUE,THE SALVATION ARMY,100309
NORTH EAST LINCOLNSHIRE COUNCIL,http://statistics.data.gov.uk/id/local-authority/00FC,People,Adult Serv & Hlth Improvement,Supporting People,Other Agencies,Third Pp - Block Gross,PJ103,6/24/2014,288718,REDACTED COMMERCIALLY SENSITIVE,REVENUE,WOMENS AID,100326
NORTH EAST LINCOLNSHIRE COUNCIL,http://statistics.data.gov.uk/id/local-authority/00FC,People,Adult Serv & Hlth Improvement,Supporting People,Other Agencies,Third Pp - Block Gross,PJ103,6/24/2014,288721,REDACTED COMMERCIALLY SENSITIVE,REVENUE,YORK HOUSING ASSOCIATION LTD,100341
NORTH EAST LINCOLNSHIRE COUNCIL,http://statistics.data.gov.uk/id/local-authority/00FC,People,Adult Serv & Hlth Improvement,Supporting People,Other Agencies,Third Pp - Block Subsidy,PJ102,6/17/2014,286720,REDACTED COMMERCIALLY SENSITIVE,REVENUE,NHS NORTH EAST LINCOLNSHIRE CCG,121549
NORTH EAST LINCOLNSHIRE COUNCIL,http://statistics.data.gov.uk/id/local-authority/00FC,People,Adult Serv & Hlth Improvement,Supporting People,Other Agencies,Third Pp - Block Subsidy,PJ102,6/18/2014,286722,REDACTED COMMERCIALLY SENSITIVE,REVENUE,NHS NORTH EAST LINCOLNSHIRE CCG,121549
NORTH EAST LINCOLNSHIRE COUNCIL,http://statistics.data.gov.uk/id/local-authority/00FC,People,Adult Serv & Hlth Improvement,Home Options,Communications And Computing,Computer H/Ware - Purchases,LF105,6/3/2014,282376,373.41,REVENUE,INSIGHT DIRECT (UK) LTD,101011
NORTH EAST LINCOLNSHIRE COUNCIL,http://statistics.data.gov.uk/id/local-authority/00FC,People,Adult Serv & Hlth Improvement,Home Options,Private Contractors,Third Party Prov - Private,PH101,6/24/2014,288227,264,REVENUE,CARE PLUS GROUP,106467
NORTH EAST LINCOLNSHIRE COUNCIL,http://statistics.data.gov.uk/id/local-authority/00FC,People,Adult Serv & Hlth Improvement,Home Options,Private Contractors,Third Party Prov - Private,PH101,6/26/2014,288225,264,REVENUE,CARE PLUS GROUP,106467
NORTH EAST LINCOLNSHIRE COUNCIL,http://statistics.data.gov.uk/id/local-authority/00FC,People,Adult Serv & Hlth Improvement,Home Options,Private Contractors,Third Party Prov - Private,PH101,6/24/2014,288228,550,REVENUE,REDACTED PERSONAL INFORMATION,REDACTED PERSONAL INFORMATION
NORTH EAST LINCOLNSHIRE COUNCIL,http://statistics.data.gov.uk/id/local-authority/00FC,People,Adult Serv & Hlth Improvement,Home Options,Private Contractors,Third Party Prov - Private,PH101,6/2/2014,282435,320,REVENUE,MAYFAIR ESTATE AGENTS,110664
NORTH EAST LINCOLNSHIRE COUNCIL,http://statistics.data.gov.uk/id/local-authority/00FC,People,Adult Serv & Hlth Improvement,Home Options,Private Contractors,Third Party Prov - Private,PH101,6/30/2014,288964,416.67,REVENUE,ROY LAUGHTON,100543
NORTH EAST LINCOLNSHIRE COUNCIL,http://statistics.data.gov.uk/id/local-authority/00FC,People,Adult Serv & Hlth Improvement,Home Options,Private Contractors,Third Party Prov - Private,PH101,6/20/2014,287640,367.12,REVENUE,SHORELINE HOUSING PARTNERSHIP LTD,100139
NORTH EAST LINCOLNSHIRE COUNCIL,http://statistics.data.gov.uk/id/local-authority/00FC,People,Adult Serv & Hlth Improvement,Home Options,Rents,Service Charge,GC102,6/17/2014,285304,987.81,REVENUE,NORTH EAST LINCOLNSHIRE COUNCIL,100894
NORTH EAST LINCOLNSHIRE COUNCIL,http://statistics.data.gov.uk/id/local-authority/00FC,People,Adult Serv & Hlth Improvement,Home Options,Rents,Service Charge,GC102,6/12/2014,285300,814.8,REVENUE,NORTH EAST LINCOLNSHIRE COUNCIL,100894
NORTH EAST LINCOLNSHIRE COUNCIL,http://statistics.data.gov.uk/id/local-authority/00FC,People,Adult Serv & Hlth Improvement,Home Options,Rents,Service Charge,GC102,6/4/2014,282442,264.23,REVENUE,EMPOWER EMPLOYABILITY MENTORING PROGRAMME,118831
NORTH EAST LINCOLNSHIRE COUNCIL,http://statistics.data.gov.uk/id/local-authority/00FC,People,Adult Serv & Hlth Improvement,Home Options,Rents,Service Charge,GC102,6/5/2014,281998,562.5,REVENUE,CARPETS GALORE,103262
NORTH EAST LINCOLNSHIRE COUNCIL,http://statistics.data.gov.uk/id/local-authority/00FC,People,Adult Serv & Hlth Improvement,Home Options,Miscellaneous Income,Misc Income - Zero Vat 2,VG115,6/12/2014,285292,477.89,REVENUE,NORTH EAST LINCOLNSHIRE COUNCIL,100894
NORTH EAST LINCOLNSHIRE COUNCIL,http://statistics.data.gov.uk/id/local-authority/00FC,People,Adult Serv & Hlth Improvement,Home Options,Rents,Rent,GC101,6/16/2014,285009,480,REVENUE,REDACTED PERSONAL INFORMATION,REDACTED PERSONAL INFORMATION
NORTH EAST LINCOLNSHIRE COUNCIL,http://statistics.data.gov.uk/id/local-authority/00FC,People,Adult Serv & Hlth Improvement,Home Options,Rents,Rent,GC101,6/17/2014,286585,585,REVENUE,REDACTED PERSONAL INFORMATION,REDACTED PERSONAL INFORMATION
NORTH EAST LINCOLNSHIRE COUNCIL,http://statistics.data.gov.uk/id/local-authority/00FC,People,Adult Serv & Hlth Improvement,Home Options,Rents,Rent,GC101,6/3/2014,282428,480,REVENUE,REDACTED PERSONAL INFORMATION,REDACTED PERSONAL INFORMATION
NORTH EAST LINCOLNSHIRE COUNCIL,http://statistics.data.gov.uk/id/local-authority/00FC,People,Adult Serv & Hlth Improvement,Home Options,Rents,Rent,GC101,6/3/2014,282428,540,REVENUE,REDACTED PERSONAL INFORMATION,REDACTED PERSONAL INFORMATION
NORTH EAST LINCOLNSHIRE COUNCIL,http://statistics.data.gov.uk/id/local-authority/00FC,People,Adult Serv & Hlth Improvement,Home Options,Rents,Rent,GC101,6/3/2014,282456,408.33,REVENUE,REDACTED PERSONAL INFORMATION,REDACTED PERSONAL INFORMATION
NORTH EAST LINCOLNSHIRE COUNCIL,http://statistics.data.gov.uk/id/local-authority/00FC,People,Adult Serv & Hlth Improvement,Home Options,Rents,Rent,GC101,6/16/2014,285022,408.33,REVENUE,REDACTED PERSONAL INFORMATION,REDACTED PERSONAL INFORMATION
NORTH EAST LINCOLNSHIRE COUNCIL,http://statistics.data.gov.uk/id/local-authority/00FC,People,Adult Serv & Hlth Improvement,Home Options,Rents,Rent,GC101,6/18/2014,286341,525,REVENUE,REDACTED PERSONAL INFORMATION,REDACTED PERSONAL INFORMATION
NORTH EAST LINCOLNSHIRE COUNCIL,http://statistics.data.gov.uk/id/local-authority/00FC,People,Adult Serv & Hlth Improvement,Home Options,Rents,Rent,GC101,6/18/2014,286349,700,REVENUE,REDACTED PERSONAL INFORMATION,REDACTED PERSONAL INFORMATION
NORTH EAST LINCOLNSHIRE COUNCIL,http://statistics.data.gov.uk/id/local-authority/00FC,People,Adult Serv & Hlth Improvement,Home Options,Rents,Rent,GC101,6/18/2014,286840,408.33,REVENUE,REDACTED PERSONAL INFORMATION,REDACTED PERSONAL INFORMATION
NORTH EAST LINCOLNSHIRE COUNCIL,http://statistics.data.gov.uk/id/local-authority/00FC,People,Adult Serv & Hlth Improvement,Home Options,Rents,Rent,GC101,6/18/2014,286841,408.33,REVENUE,REDACTED PERSONAL INFORMATION,REDACTED PERSONAL INFORMATION
NORTH EAST LINCOLNSHIRE COUNCIL,http://statistics.data.gov.uk/id/local-authority/00FC,People,Adult Serv & Hlth Improvement,Home Options,Rents,Rent,GC101,6/18/2014,286838,600,REVENUE,REDACTED PERSONAL INFORMATION,REDACTED PERSONAL INFORMATION
NORTH EAST LINCOLNSHIRE COUNCIL,http://statistics.data.gov.uk/id/local-authority/00FC,People,Adult Serv & Hlth Improvement,Home Options,Rents,Rent,GC101,6/19/2014,286344,420,REVENUE,REDACTED PERSONAL INFORMATION,REDACTED PERSONAL INFORMATION
NORTH EAST LINCOLNSHIRE COUNCIL,http://statistics.data.gov.uk/id/local-authority/00FC,People,Adult Serv & Hlth Improvement,Home Options,Rents,Rent,GC101,6/20/2014,286842,408.33,REVENUE,REDACTED PERSONAL INFORMATION,REDACTED PERSONAL INFORMATION
NORTH EAST LINCOLNSHIRE COUNCIL,http://statistics.data.gov.uk/id/local-authority/00FC,People,Adult Serv & Hlth Improvement,Home Options,Rents,Rent,GC101,6/20/2014,286844,437.5,REVENUE,REDACTED PERSONAL INFORMATION,REDACTED PERSONAL INFORMATION
NORTH EAST LINCOLNSHIRE COUNCIL,http://statistics.data.gov.uk/id/local-authority/00FC,People,Adult Serv & Hlth Improvement,Home Options,Rents,Rent,GC101,6/20/2014,287652,320.83,REVENUE,REDACTED PERSONAL INFORMATION,REDACTED PERSONAL INFORMATION
NORTH EAST LINCOLNSHIRE COUNCIL,http://statistics.data.gov.uk/id/local-authority/00FC,People,Adult Serv & Hlth Improvement,Home Options,Rents,Rent,GC101,6/18/2014,286355,375,REVENUE,REDACTED PERSONAL INFORMATION,REDACTED PERSONAL INFORMATION
NORTH EAST LINCOLNSHIRE COUNCIL,http://statistics.data.gov.uk/id/local-authority/00FC,People,Adult Serv & Hlth Improvement,Home Options,Contributions To Provisions,Bad Debt Provision,LK104,6/4/2014,282440,400,REVENUE,LOVELLE BACONS,103583
NORTH EAST LINCOLNSHIRE COUNCIL,http://statistics.data.gov.uk/id/local-authority/00FC,People,Adult Serv & Hlth Improvement,Home Options,Contributions To Provisions,Bad Debt Provision,LK104,6/18/2014,286830,290,REVENUE,WILLOW ESTATES,104156
NORTH EAST LINCOLNSHIRE COUNCIL,http://statistics.data.gov.uk/id/local-authority/00FC,People,Adult Serv & Hlth Improvement,Home Options,Contributions To Provisions,Bad Debt Provision,LK104,6/20/2014,286831,400,REVENUE,WILLOW ESTATES,104156
NORTH EAST LINCOLNSHIRE COUNCIL,http://statistics.data.gov.uk/id/local-authority/00FC,People,Adult Serv & Hlth Improvement,Home Options,Contributions To Provisions,Bad Debt Provision,LK104,6/30/2014,288955,400,REVENUE,WILLOW ESTATES,104156
NORTH EAST LINCOLNSHIRE COUNCIL,http://statistics.data.gov.uk/id/local-authority/00FC,People,Adult Serv & Hlth Improvement,Home Options,Contributions To Provisions,Bad Debt Provision,LK104,6/3/2014,283566,400,REVENUE,WILLOW ESTATES,104156
NORTH EAST LINCOLNSHIRE COUNCIL,http://statistics.data.gov.uk/id/local-authority/00FC,People,Adult Serv & Hlth Improvement,Home Options,Private Contractors,Third Party Prov - Private,PH101,6/9/2014,285036,500,REVENUE,ARGYLE ESTATE &  LETTING AGENTS,103145
NORTH EAST LINCOLNSHIRE COUNCIL,http://statistics.data.gov.uk/id/local-authority/00FC,People,Adult Serv & Hlth Improvement,Home Options,Communications And Computing,Postage,LF111,6/12/2014,285176,260.84,REVENUE,ROYAL MAIL GROUP PLC,101082
NORTH EAST LINCOLNSHIRE COUNCIL,http://statistics.data.gov.uk/id/local-authority/00FC,People,Adult Serv & Hlth Improvement,Improved Health Operational,Equip / Furniture / Materials,Health & Safety Supplies,LA116,6/5/2014,284360,3217.5,REVENUE,LISCLARE LTD,101785
NORTH EAST LINCOLNSHIRE COUNCIL,http://statistics.data.gov.uk/id/local-authority/00FC,People,Adult Serv & Hlth Improvement,Improved Health Operational,Equip / Furniture / Materials,Health & Safety Supplies,LA116,6/5/2014,284360,296.25,REVENUE,LISCLARE LTD,101785
NORTH EAST LINCOLNSHIRE COUNCIL,http://statistics.data.gov.uk/id/local-authority/00FC,People,Adult Serv & Hlth Improvement,Improved Health Operational,Equip / Furniture / Materials,Health & Safety Supplies,LA116,6/26/2014,288692,380.25,REVENUE,SUNRISE MEDICAL LTD,100990
NORTH EAST LINCOLNSHIRE COUNCIL,http://statistics.data.gov.uk/id/local-authority/00FC,People,Adult Serv & Hlth Improvement,Improved Health Operational,Equip / Furniture / Materials,Health & Safety Supplies,LA116,6/24/2014,288131,465,REVENUE,SUNRISE MEDICAL LTD,100990
NORTH EAST LINCOLNSHIRE COUNCIL,http://statistics.data.gov.uk/id/local-authority/00FC,People,Adult Serv & Hlth Improvement,Improved Health Operational,Equip / Furniture / Materials,Health & Safety Supplies,LA116,6/24/2014,288226,630.8,REVENUE,VIKING HARDWARE LTD,101792
NORTH EAST LINCOLNSHIRE COUNCIL,http://statistics.data.gov.uk/id/local-authority/00FC,People,Adult Serv & Hlth Improvement,Improved Health Operational,Equip / Furniture / Materials,Health & Safety Supplies,LA116,6/2/2014,283603,314.16,REVENUE,SUNRISE MEDICAL LTD,100990
NORTH EAST LINCOLNSHIRE COUNCIL,http://statistics.data.gov.uk/id/local-authority/00FC,People,Adult Serv & Hlth Improvement,Improved Health Operational,Equip / Furniture / Materials,Health & Safety Supplies,LA116,6/5/2014,282879,545,REVENUE,PATTERSON MEDICAL LTD,104008
NORTH EAST LINCOLNSHIRE COUNCIL,http://statistics.data.gov.uk/id/local-authority/00FC,People,Adult Serv & Hlth Improvement,Improved Health Operational,Equip / Furniture / Materials,Health & Safety Supplies,LA116,6/5/2014,280401,414.25,REVENUE,PATTERSON MEDICAL LTD,104008
NORTH EAST LINCOLNSHIRE COUNCIL,http://statistics.data.gov.uk/id/local-authority/00FC,People,Adult Serv & Hlth Improvement,Improved Health Operational,Equip / Furniture / Materials,Health & Safety Supplies,LA116,6/4/2014,283692,649.95,REVENUE,APOLLO HEALTHCARE TECHNOLOGIES LTD,122614
NORTH EAST LINCOLNSHIRE COUNCIL,http://statistics.data.gov.uk/id/local-authority/00FC,People,Adult Serv & Hlth Improvement,Improved Health Operational,Equip / Furniture / Materials,Health & Safety Supplies,LA116,6/12/2014,284015,379.5,REVENUE,AIDAPT BATHROOMS LTD,101164
NORTH EAST LINCOLNSHIRE COUNCIL,http://statistics.data.gov.uk/id/local-authority/00FC,People,Adult Serv & Hlth Improvement,Improved Health Operational,Equip / Furniture / Materials,Health & Safety Supplies,LA116,6/24/2014,283673,345.62,REVENUE,LISCLARE LTD,101785
NORTH EAST LINCOLNSHIRE COUNCIL,http://statistics.data.gov.uk/id/local-authority/00FC,People,Adult Serv & Hlth Improvement,Improved Health Operational,Equip / Furniture / Materials,Health & Safety Supplies,LA116,6/9/2014,284585,296.25,REVENUE,LISCLARE LTD,101785
NORTH EAST LINCOLNSHIRE COUNCIL,http://statistics.data.gov.uk/id/local-authority/00FC,People,Adult Serv & Hlth Improvement,Improved Health Operational,Equip / Furniture / Materials,Health & Safety Supplies,LA116,6/24/2014,283673,2883.75,REVENUE,LISCLARE LTD,101785
NORTH EAST LINCOLNSHIRE COUNCIL,http://statistics.data.gov.uk/id/local-authority/00FC,People,Adult Serv & Hlth Improvement,Improved Health Operational,Equip / Furniture / Materials,Health & Safety Supplies,LA116,6/9/2014,284585,3217.5,REVENUE,LISCLARE LTD,101785
NORTH EAST LINCOLNSHIRE COUNCIL,http://statistics.data.gov.uk/id/local-authority/00FC,People,Adult Serv & Hlth Improvement,Improved Health Operational,Equip / Furniture / Materials,Health & Safety Supplies,LA116,6/23/2014,286407,340.68,REVENUE,SIDHIL LTD,101166
NORTH EAST LINCOLNSHIRE COUNCIL,http://statistics.data.gov.uk/id/local-authority/00FC,People,Adult Serv & Hlth Improvement,Improved Health Operational,Equip / Furniture / Materials,Health & Safety Supplies,LA116,6/24/2014,282868,1320,REVENUE,V-M ORTHOTICS LTD,103124
NORTH EAST LINCOLNSHIRE COUNCIL,http://statistics.data.gov.uk/id/local-authority/00FC,People,Adult Serv & Hlth Improvement,Improved Health Operational,Equip / Furniture / Materials,Health & Safety Supplies,LA116,6/19/2014,286962,295,REVENUE,OBAM LIFT SERVICES LTD,112666
NORTH EAST LINCOLNSHIRE COUNCIL,http://statistics.data.gov.uk/id/local-authority/00FC,People,Adult Serv & Hlth Improvement,Improved Health Operational,Equip / Furniture / Materials,Health & Safety Supplies,LA116,6/19/2014,286960,278,REVENUE,OBAM LIFT SERVICES LTD,112666
NORTH EAST LINCOLNSHIRE COUNCIL,http://statistics.data.gov.uk/id/local-authority/00FC,People,Adult Serv & Hlth Improvement,Improved Health Operational,Equip / Furniture / Materials,Health & Safety Supplies,LA116,6/19/2014,286954,545,REVENUE,OBAM LIFT SERVICES LTD,112666
NORTH EAST LINCOLNSHIRE COUNCIL,http://statistics.data.gov.uk/id/local-authority/00FC,People,Adult Serv & Hlth Improvement,Improved Health Operational,Equip / Furniture / Materials,Health & Safety Supplies,LA116,6/18/2014,286052,1140,REVENUE,KAROMED LTD,111508
NORTH EAST LINCOLNSHIRE COUNCIL,http://statistics.data.gov.uk/id/local-authority/00FC,People,Adult Serv & Hlth Improvement,Improved Health Operational,Equip / Furniture / Materials,Health & Safety Supplies,LA116,6/3/2014,283703,-34.65,REVENUE,PRISM MEDICAL UK,119507
NORTH EAST LINCOLNSHIRE COUNCIL,http://statistics.data.gov.uk/id/local-authority/00FC,People,Adult Serv & Hlth Improvement,Improved Health Operational,Equip / Furniture / Materials,Health & Safety Supplies,LA116,6/9/2014,281558,321.5,REVENUE,PRISM MEDICAL UK,119507
NORTH EAST LINCOLNSHIRE COUNCIL,http://statistics.data.gov.uk/id/local-authority/00FC,People,Adult Serv & Hlth Improvement,Improved Health Operational,Equip / Furniture / Materials,Health & Safety Supplies,LA116,6/9/2014,284897,5000,REVENUE,THERAPOSTURE LTD,103613
NORTH EAST LINCOLNSHIRE COUNCIL,http://statistics.data.gov.uk/id/local-authority/00FC,People,Adult Serv & Hlth Improvement,Improved Health Operational,Equip / Furniture / Materials,Health & Safety Supplies,LA116,6/9/2014,284898,5445,REVENUE,THERAPOSTURE LTD,103613
NORTH EAST LINCOLNSHIRE COUNCIL,http://statistics.data.gov.uk/id/local-authority/00FC,People,Adult Serv & Hlth Improvement,Improved Health Operational,Equip / Furniture / Materials,Health & Safety Supplies,LA116,6/26/2014,288877,550,REVENUE,KEY MOBILITY,101985
NORTH EAST LINCOLNSHIRE COUNCIL,http://statistics.data.gov.uk/id/local-authority/00FC,People,Adult Serv & Hlth Improvement,Improved Health Operational,Equip / Furniture / Materials,Health & Safety Supplies,LA116,6/26/2014,288879,2968.99,REVENUE,KEY MOBILITY,101985
NORTH EAST LINCOLNSHIRE COUNCIL,http://statistics.data.gov.uk/id/local-authority/00FC,People,Adult Serv & Hlth Improvement,Improved Health Operational,Equip / Furniture / Materials,Health & Safety Supplies,LA116,6/24/2014,288680,341.56,REVENUE,KEY MOBILITY,101985
NORTH EAST LINCOLNSHIRE COUNCIL,http://statistics.data.gov.uk/id/local-authority/00FC,People,Adult Serv & Hlth Improvement,Improved Health Operational,Equip / Furniture / Materials,Health & Safety Supplies,LA116,6/26/2014,288878,701.75,REVENUE,KEY MOBILITY,101985
NORTH EAST LINCOLNSHIRE COUNCIL,http://statistics.data.gov.uk/id/local-authority/00FC,People,Adult Serv & Hlth Improvement,Improved Health Operational,Equip / Furniture / Materials,Health & Safety Supplies,LA116,6/9/2014,284019,1346,REVENUE,GREEN OF LINCOLN,100533
NORTH EAST LINCOLNSHIRE COUNCIL,http://statistics.data.gov.uk/id/local-authority/00FC,People,Adult Serv & Hlth Improvement,Improved Health Operational,Equip / Furniture / Materials,Health & Safety Supplies,LA116,6/30/2014,289455,2915,REVENUE,GREEN OF LINCOLN,100533
NORTH EAST LINCOLNSHIRE COUNCIL,http://statistics.data.gov.uk/id/local-authority/00FC,People,Adult Serv & Hlth Improvement,Improved Health Operational,Equip / Furniture / Materials,Health & Safety Supplies,LA116,6/5/2014,284395,1516,REVENUE,JAMES LECKEY DESIGN LIMITED,100949
NORTH EAST LINCOLNSHIRE COUNCIL,http://statistics.data.gov.uk/id/local-authority/00FC,People,Adult Serv & Hlth Improvement,Improved Health Operational,Equip / Furniture / Materials,Health & Safety Supplies,LA116,6/24/2014,288220,716,REVENUE,VIKING HARDWARE LTD,101792
NORTH EAST LINCOLNSHIRE COUNCIL,http://statistics.data.gov.uk/id/local-authority/00FC,People,Adult Serv & Hlth Improvement,Improved Health Operational,Equip / Furniture / Materials,Health & Safety Supplies,LA116,6/23/2014,287694,317,REVENUE,R82 UK LTD,101710
NORTH EAST LINCOLNSHIRE COUNCIL,http://statistics.data.gov.uk/id/local-authority/00FC,People,Adult Serv & Hlth Improvement,Improved Health Operational,Equip / Furniture / Materials,Health & Safety Supplies,LA116,6/24/2014,288211,445,REVENUE,MOUNTWAY LTD,101232
NORTH EAST LINCOLNSHIRE COUNCIL,http://statistics.data.gov.uk/id/local-authority/00FC,People,Adult Serv & Hlth Improvement,Improved Health Operational,Equip / Furniture / Materials,Health & Safety Supplies,LA116,6/5/2014,280746,445,REVENUE,MOUNTWAY LTD,101232
NORTH EAST LINCOLNSHIRE COUNCIL,http://statistics.data.gov.uk/id/local-authority/00FC,People,Adult Serv & Hlth Improvement,Improved Health Operational,Equip / Furniture / Materials,Health & Safety Supplies,LA116,6/5/2014,280746,890,REVENUE,MOUNTWAY LTD,101232
NORTH EAST LINCOLNSHIRE COUNCIL,http://statistics.data.gov.uk/id/local-authority/00FC,People,Adult Serv & Hlth Improvement,Improved Health Operational,Equip / Furniture / Materials,Health & Safety Supplies,LA116,6/24/2014,287407,905.27,REVENUE,PICKERINGS EUROPE LIMITED,100897
NORTH EAST LINCOLNSHIRE COUNCIL,http://statistics.data.gov.uk/id/local-authority/00FC,People,Adult Serv & Hlth Improvement,Improved Health Operational,Equip / Furniture / Materials,Health & Safety Supplies,LA116,6/24/2014,287246,623.17,REVENUE,ARJO MED AB LTD,103268
NORTH EAST LINCOLNSHIRE COUNCIL,http://statistics.data.gov.uk/id/local-authority/00FC,People,Adult Serv & Hlth Improvement,Improved Health Operational,Equip / Furniture / Materials,Health & Safety Supplies,LA116,6/30/2014,282881,570,REVENUE,HOSPITAL DIRECT,101267
NORTH EAST LINCOLNSHIRE COUNCIL,http://statistics.data.gov.uk/id/local-authority/00FC,People,Adult Serv & Hlth Improvement,Improved Health Operational,Equip / Furniture / Materials,Health & Safety Supplies,LA116,6/4/2014,284025,525,REVENUE,DISABLED LIVING FOUNDATION,125909
NORTH EAST LINCOLNSHIRE COUNCIL,http://statistics.data.gov.uk/id/local-authority/00FC,People,Adult Serv & Hlth Improvement,Improved Health Operational,Equip / Furniture / Materials,Health & Safety Supplies,LA116,6/3/2014,283606,2750,REVENUE,ULTIMATE CARE GROUP LTD,103469
NORTH EAST LINCOLNSHIRE COUNCIL,http://statistics.data.gov.uk/id/local-authority/00FC,People,Adult Serv & Hlth Improvement,Improved Health Operational,Equip / Furniture / Materials,Health & Safety Supplies,LA116,6/4/2014,283609,2750,REVENUE,ULTIMATE CARE GROUP LTD,103469
NORTH EAST LINCOLNSHIRE COUNCIL,http://statistics.data.gov.uk/id/local-authority/00FC,People,Adult Serv & Hlth Improvement,Improved Health Operational,Equip / Furniture / Materials,Health & Safety Supplies,LA116,6/18/2014,286049,310,REVENUE,KAROMED LTD,111508
NORTH EAST LINCOLNSHIRE COUNCIL,http://statistics.data.gov.uk/id/local-authority/00FC,People,Adult Serv & Hlth Improvement,Improved Health Operational,Equip / Furniture / Materials,Health & Safety Supplies,LA116,6/3/2014,283605,330,REVENUE,ULTIMATE CARE GROUP LTD,103469
NORTH EAST LINCOLNSHIRE COUNCIL,http://statistics.data.gov.uk/id/local-authority/00FC,People,Adult Serv & Hlth Improvement,Improved Health Operational,Equip / Furniture / Materials,Health & Safety Supplies,LA116,6/26/2014,288706,404.7,REVENUE,ULTIMATE CARE GROUP LTD,103469
NORTH EAST LINCOLNSHIRE COUNCIL,http://statistics.data.gov.uk/id/local-authority/00FC,People,Adult Serv & Hlth Improvement,Improved Health Operational,Equip / Furniture / Materials,Health & Safety Supplies,LA116,6/26/2014,288879,593.8,REVENUE,KEY MOBILITY,101985
NORTH EAST LINCOLNSHIRE COUNCIL,http://statistics.data.gov.uk/id/local-authority/00FC,People,Adult Serv & Hlth Improvement,Improved Health Operational,Equip / Furniture / Materials,Health & Safety Supplies,LA116,6/12/2014,284015,255,REVENUE,AIDAPT BATHROOMS LTD,101164
NORTH EAST LINCOLNSHIRE COUNCIL,http://statistics.data.gov.uk/id/local-authority/00FC,People,Adult Serv & Hlth Improvement,Improved Health Operational,Equip / Furniture / Materials,Health & Safety Supplies,LA116,6/20/2014,287332,-69,REVENUE,DRIVE MEDICAL,101627
NORTH EAST LINCOLNSHIRE COUNCIL,http://statistics.data.gov.uk/id/local-authority/00FC,People,Adult Serv & Hlth Improvement,Improved Health Operational,Equip / Furniture / Materials,Health & Safety Supplies,LA116,6/20/2014,287330,-46,REVENUE,DRIVE MEDICAL,101627
NORTH EAST LINCOLNSHIRE COUNCIL,http://statistics.data.gov.uk/id/local-authority/00FC,People,Adult Serv & Hlth Improvement,Improved Health Operational,Indirect Employee Expenses,Staff Training,EB122,6/4/2014,283680,695,REVENUE,UNIVERSITY OF LEEDS,121956
NORTH EAST LINCOLNSHIRE COUNCIL,http://statistics.data.gov.uk/id/local-authority/00FC,People,Adult Serv & Hlth Improvement,Prevention And Wellbeing,Health Authorities,Third Pp - Health Auth,PD101,6/26/2014,288880,28009.25,REVENUE,NORTH BANK FORUM,120031
NORTH EAST LINCOLNSHIRE COUNCIL,http://statistics.data.gov.uk/id/local-authority/00FC,People,Adult Serv & Hlth Improvement,Prevention And Wellbeing,Private Contractors,Third Party Prov - Private,PH101,6/26/2014,288882,1179.54,REVENUE,MP CONSULTING (UK) LTD,123037
NORTH EAST LINCOLNSHIRE COUNCIL,http://statistics.data.gov.uk/id/local-authority/00FC,People,Adult Serv & Hlth Improvement,Developing Healthier Comm,Contributions To Provisions,Contributions - Communities,LK101,6/19/2014,287505,1000,REVENUE,YMCA HUMBER,126273
NORTH EAST LINCOLNSHIRE COUNCIL,http://statistics.data.gov.uk/id/local-authority/00FC,People,Adult Serv & Hlth Improvement,Developing Healthier Comm,Contributions To Provisions,Contributions - Communities,LK101,6/17/2014,286508,1000,REVENUE,CANON PETER HALL C OF E PRIMARY SCHOOL,107995
NORTH EAST LINCOLNSHIRE COUNCIL,http://statistics.data.gov.uk/id/local-authority/00FC,People,Adult Serv & Hlth Improvement,Developing Healthier Comm,Contributions To Provisions,Contributions - Communities,LK101,6/26/2014,288910,1000,REVENUE,POSITIVE ACTIVITIES,126463
NORTH EAST LINCOLNSHIRE COUNCIL,http://statistics.data.gov.uk/id/local-authority/00FC,People,Adult Serv & Hlth Improvement,Developing Healthier Comm,Contributions To Provisions,Contributions - Communities,LK101,6/2/2014,283454,1010,REVENUE,MACAULAY PRIMARY ACADEMY,112680
NORTH EAST LINCOLNSHIRE COUNCIL,http://statistics.data.gov.uk/id/local-authority/00FC,People,Adult Serv & Hlth Improvement,Developing Healthier Comm,Contributions To Provisions,Contributions - Communities,LK101,6/5/2014,283453,568.05,REVENUE,STRAND PRIMARY ACADEMY,126063
NORTH EAST LINCOLNSHIRE COUNCIL,http://statistics.data.gov.uk/id/local-authority/00FC,People,Adult Serv & Hlth Improvement,Developing Healthier Comm,Contributions To Provisions,Contributions - Communities,LK101,6/5/2014,283456,980,REVENUE,GREEN FUTURES GRIMSBY,107564
NORTH EAST LINCOLNSHIRE COUNCIL,http://statistics.data.gov.uk/id/local-authority/00FC,People,Adult Serv & Hlth Improvement,Developing Healthier Comm,Private Contractors,Third Party Prov - Private,PH101,6/12/2014,285317,3024.12,REVENUE,PCC HUMBERSIDE,120398
NORTH EAST LINCOLNSHIRE COUNCIL,http://statistics.data.gov.uk/id/local-authority/00FC,People,Childrens Services,School Access Governor Student,Grants And Subscriptions,Subscriptions,LJ101,6/20/2014,287312,530,REVENUE,LEXISNEXIS UK,101447
NORTH EAST LINCOLNSHIRE COUNCIL,http://statistics.data.gov.uk/id/local-authority/00FC,People,Childrens Services,School Access Governor Student,Contract Hire-Operating Leases,Vehicles - Contract Hire,JC101,6/30/2014,289010,REDACTED COMMERCIALLY SENSITIVE,REVENUE,REDACTED PERSONAL INFORMATION,REDACTED PERSONAL INFORMATION
NORTH EAST LINCOLNSHIRE COUNCIL,http://statistics.data.gov.uk/id/local-authority/00FC,People,Childrens Services,School Access Governor Student,Contract Hire-Operating Leases,Vehicles - Contract Hire,JC101,6/18/2014,286536,REDACTED COMMERCIALLY SENSITIVE,REVENUE,LINKS TAXIS,100546
NORTH EAST LINCOLNSHIRE COUNCIL,http://statistics.data.gov.uk/id/local-authority/00FC,People,Childrens Services,School Access Governor Student,Contract Hire-Operating Leases,Vehicles - Contract Hire,JC101,6/18/2014,286535,REDACTED COMMERCIALLY SENSITIVE,REVENUE,LINKS TAXIS,100546
NORTH EAST LINCOLNSHIRE COUNCIL,http://statistics.data.gov.uk/id/local-authority/00FC,People,Childrens Services,School Access Governor Student,Contract Hire-Operating Leases,Vehicles - Contract Hire,JC101,6/18/2014,286544,REDACTED COMMERCIALLY SENSITIVE,REVENUE,LINKS TAXIS,100546
NORTH EAST LINCOLNSHIRE COUNCIL,http://statistics.data.gov.uk/id/local-authority/00FC,People,Childrens Services,School Access Governor Student,Contract Hire-Operating Leases,Vehicles - Contract Hire,JC101,6/9/2014,284564,REDACTED COMMERCIALLY SENSITIVE,REVENUE,AMVALE LIMITED,101030
NORTH EAST LINCOLNSHIRE COUNCIL,http://statistics.data.gov.uk/id/local-authority/00FC,People,Childrens Services,School Access Governor Student,Contract Hire-Operating Leases,Vehicles - Contract Hire,JC101,6/20/2014,287666,REDACTED COMMERCIALLY SENSITIVE,REVENUE,REVELLS TAXIS (ED/SOC SERV),100559
NORTH EAST LINCOLNSHIRE COUNCIL,http://statistics.data.gov.uk/id/local-authority/00FC,People,Childrens Services,School Access Governor Student,Contract Hire-Operating Leases,Vehicles - Contract Hire,JC101,6/18/2014,286334,REDACTED COMMERCIALLY SENSITIVE,REVENUE,COUNTRY CABS,101999
NORTH EAST LINCOLNSHIRE COUNCIL,http://statistics.data.gov.uk/id/local-authority/00FC,People,Childrens Services,School Access Governor Student,Contract Hire-Operating Leases,Vehicles - Contract Hire,JC101,6/9/2014,284933,REDACTED COMMERCIALLY SENSITIVE,REVENUE,COXONS CARS LIMITED,100578
NORTH EAST LINCOLNSHIRE COUNCIL,http://statistics.data.gov.uk/id/local-authority/00FC,People,Childrens Services,School Access Governor Student,Contract Hire-Operating Leases,Vehicles - Contract Hire,JC101,6/19/2014,286333,REDACTED COMMERCIALLY SENSITIVE,REVENUE,COUNTRY CABS,101999
NORTH EAST LINCOLNSHIRE COUNCIL,http://statistics.data.gov.uk/id/local-authority/00FC,People,Childrens Services,School Access Governor Student,Contract Hire-Operating Leases,Vehicles - Contract Hire,JC101,6/17/2014,286239,REDACTED COMMERCIALLY SENSITIVE,REVENUE,LINKS TAXIS,100546
NORTH EAST LINCOLNSHIRE COUNCIL,http://statistics.data.gov.uk/id/local-authority/00FC,People,Childrens Services,School Access Governor Student,Contract Hire-Operating Leases,Vehicles - Contract Hire,JC101,6/23/2014,287668,REDACTED COMMERCIALLY SENSITIVE,REVENUE,REVELLS TAXIS (ED/SOC SERV),100559
NORTH EAST LINCOLNSHIRE COUNCIL,http://statistics.data.gov.uk/id/local-authority/00FC,People,Childrens Services,School Access Governor Student,Contract Hire-Operating Leases,Vehicles - Contract Hire,JC101,6/5/2014,269973,REDACTED COMMERCIALLY SENSITIVE,REVENUE,COUNTRY CABS,101999
NORTH EAST LINCOLNSHIRE COUNCIL,http://statistics.data.gov.uk/id/local-authority/00FC,People,Childrens Services,School Access Governor Student,Contract Hire-Operating Leases,Vehicles - Contract Hire,JC101,6/5/2014,269976,REDACTED COMMERCIALLY SENSITIVE,REVENUE,COXONS CARS LIMITED,100578
NORTH EAST LINCOLNSHIRE COUNCIL,http://statistics.data.gov.uk/id/local-authority/00FC,People,Childrens Services,School Access Governor Student,Contract Hire-Operating Leases,Vehicles - Contract Hire,JC101,6/5/2014,269975,REDACTED COMMERCIALLY SENSITIVE,REVENUE,COUNTRY CABS,101999
NORTH EAST LINCOLNSHIRE COUNCIL,http://statistics.data.gov.uk/id/local-authority/00FC,People,Childrens Services,School Access Governor Student,Contract Hire-Operating Leases,Vehicles - Contract Hire,JC101,6/5/2014,269970,REDACTED COMMERCIALLY SENSITIVE,REVENUE,COXONS CARS LIMITED,100578
NORTH EAST LINCOLNSHIRE COUNCIL,http://statistics.data.gov.uk/id/local-authority/00FC,People,Childrens Services,School Access Governor Student,Contract Hire-Operating Leases,Vehicles - Contract Hire,JC101,6/16/2014,284950,REDACTED COMMERCIALLY SENSITIVE,REVENUE,COXONS CARS LIMITED,100578
NORTH EAST LINCOLNSHIRE COUNCIL,http://statistics.data.gov.uk/id/local-authority/00FC,People,Childrens Services,School Access Governor Student,Contract Hire-Operating Leases,Vehicles - Contract Hire,JC101,6/11/2014,284639,REDACTED COMMERCIALLY SENSITIVE,REVENUE,REVELLS TAXIS (ED/SOC SERV),100559
NORTH EAST LINCOLNSHIRE COUNCIL,http://statistics.data.gov.uk/id/local-authority/00FC,People,Childrens Services,School Access Governor Student,Contract Hire-Operating Leases,Vehicles - Contract Hire,JC101,6/20/2014,287670,REDACTED COMMERCIALLY SENSITIVE,REVENUE,REVELLS TAXIS (ED/SOC SERV),100559
NORTH EAST LINCOLNSHIRE COUNCIL,http://statistics.data.gov.uk/id/local-authority/00FC,People,Childrens Services,School Access Governor Student,Contract Hire-Operating Leases,Vehicles - Contract Hire,JC101,6/9/2014,285008,REDACTED COMMERCIALLY SENSITIVE,REVENUE,COXONS CARS LIMITED,100578
NORTH EAST LINCOLNSHIRE COUNCIL,http://statistics.data.gov.uk/id/local-authority/00FC,People,Childrens Services,School Access Governor Student,Contract Hire-Operating Leases,Vehicles - Contract Hire,JC101,6/5/2014,270064,REDACTED COMMERCIALLY SENSITIVE,REVENUE,COXONS CARS LIMITED,100578
NORTH EAST LINCOLNSHIRE COUNCIL,http://statistics.data.gov.uk/id/local-authority/00FC,People,Childrens Services,School Access Governor Student,Contract Hire-Operating Leases,Vehicles - Contract Hire,JC101,6/20/2014,287422,REDACTED COMMERCIALLY SENSITIVE,REVENUE,COXONS CARS LIMITED,100578
NORTH EAST LINCOLNSHIRE COUNCIL,http://statistics.data.gov.uk/id/local-authority/00FC,People,Childrens Services,School Access Governor Student,Contract Hire-Operating Leases,Vehicles - Contract Hire,JC101,6/5/2014,269974,REDACTED COMMERCIALLY SENSITIVE,REVENUE,COUNTRY CABS,101999
NORTH EAST LINCOLNSHIRE COUNCIL,http://statistics.data.gov.uk/id/local-authority/00FC,People,Childrens Services,School Access Governor Student,Contract Hire-Operating Leases,Vehicles - Contract Hire,JC101,6/3/2014,283491,REDACTED COMMERCIALLY SENSITIVE,REVENUE,COXONS CARS LIMITED,100578
NORTH EAST LINCOLNSHIRE COUNCIL,http://statistics.data.gov.uk/id/local-authority/00FC,People,Childrens Services,School Access Governor Student,Contract Hire-Operating Leases,Vehicles - Contract Hire,JC101,6/20/2014,287669,REDACTED COMMERCIALLY SENSITIVE,REVENUE,REVELLS TAXIS (ED/SOC SERV),100559
NORTH EAST LINCOLNSHIRE COUNCIL,http://statistics.data.gov.uk/id/local-authority/00FC,People,Childrens Services,School Access Governor Student,Contract Hire-Operating Leases,Vehicles - Contract Hire,JC101,6/19/2014,287001,REDACTED COMMERCIALLY SENSITIVE,REVENUE,LINKS TAXIS,100546
NORTH EAST LINCOLNSHIRE COUNCIL,http://statistics.data.gov.uk/id/local-authority/00FC,People,Childrens Services,School Access Governor Student,Contract Hire-Operating Leases,Vehicles - Contract Hire,JC101,6/18/2014,286308,REDACTED COMMERCIALLY SENSITIVE,REVENUE,COUNTRY CABS,101999
NORTH EAST LINCOLNSHIRE COUNCIL,http://statistics.data.gov.uk/id/local-authority/00FC,People,Childrens Services,School Access Governor Student,Contract Hire-Operating Leases,Vehicles - Contract Hire,JC101,6/16/2014,285118,REDACTED COMMERCIALLY SENSITIVE,REVENUE,COXONS CARS LIMITED,100578
NORTH EAST LINCOLNSHIRE COUNCIL,http://statistics.data.gov.uk/id/local-authority/00FC,People,Childrens Services,School Access Governor Student,Contract Hire-Operating Leases,Vehicles - Contract Hire,JC101,6/9/2014,285006,REDACTED COMMERCIALLY SENSITIVE,REVENUE,COXONS CARS LIMITED,100578
NORTH EAST LINCOLNSHIRE COUNCIL,http://statistics.data.gov.uk/id/local-authority/00FC,People,Childrens Services,School Access Governor Student,Contract Hire-Operating Leases,Vehicles - Contract Hire,JC101,6/19/2014,286331,REDACTED COMMERCIALLY SENSITIVE,REVENUE,LINKS TAXIS,100546
NORTH EAST LINCOLNSHIRE COUNCIL,http://statistics.data.gov.uk/id/local-authority/00FC,People,Childrens Services,School Access Governor Student,Contract Hire-Operating Leases,Vehicles - Contract Hire,JC101,6/19/2014,287231,REDACTED COMMERCIALLY SENSITIVE,REVENUE,LINKS TAXIS,100546
NORTH EAST LINCOLNSHIRE COUNCIL,http://statistics.data.gov.uk/id/local-authority/00FC,People,Childrens Services,School Access Governor Student,Contract Hire-Operating Leases,Vehicles - Contract Hire,JC101,6/20/2014,287004,REDACTED COMMERCIALLY SENSITIVE,REVENUE,LINKS TAXIS,100546
NORTH EAST LINCOLNSHIRE COUNCIL,http://statistics.data.gov.uk/id/local-authority/00FC,People,Childrens Services,School Access Governor Student,Contract Hire-Operating Leases,Vehicles - Contract Hire,JC101,6/9/2014,284935,REDACTED COMMERCIALLY SENSITIVE,REVENUE,COXONS CARS LIMITED,100578
NORTH EAST LINCOLNSHIRE COUNCIL,http://statistics.data.gov.uk/id/local-authority/00FC,People,Childrens Services,School Access Governor Student,Contract Hire-Operating Leases,Vehicles - Contract Hire,JC101,6/20/2014,287494,REDACTED COMMERCIALLY SENSITIVE,REVENUE,LINKS TAXIS,100546
NORTH EAST LINCOLNSHIRE COUNCIL,http://statistics.data.gov.uk/id/local-authority/00FC,People,Childrens Services,School Access Governor Student,Contract Hire-Operating Leases,Vehicles - Contract Hire,JC101,6/3/2014,283490,REDACTED COMMERCIALLY SENSITIVE,REVENUE,COXONS CARS LIMITED,100578
NORTH EAST LINCOLNSHIRE COUNCIL,http://statistics.data.gov.uk/id/local-authority/00FC,People,Childrens Services,School Access Governor Student,Private Contractors,Concessionary Fares,PH104,6/4/2014,282604,REDACTED COMMERCIALLY SENSITIVE,REVENUE,STAGECOACH SERVICES,101404
NORTH EAST LINCOLNSHIRE COUNCIL,http://statistics.data.gov.uk/id/local-authority/00FC,People,Childrens Services,School Access Governor Student,Private Contractors,Concessionary Fares,PH104,6/11/2014,284555,REDACTED COMMERCIALLY SENSITIVE,REVENUE,STAGECOACH SERVICES,101404
NORTH EAST LINCOLNSHIRE COUNCIL,http://statistics.data.gov.uk/id/local-authority/00FC,People,Childrens Services,School Access Governor Student,Contract Hire-Operating Leases,Vehicles - Contract Hire,JC101,6/18/2014,286453,REDACTED COMMERCIALLY SENSITIVE,REVENUE,AA RADIO CARS LTD,101222
NORTH EAST LINCOLNSHIRE COUNCIL,http://statistics.data.gov.uk/id/local-authority/00FC,People,Childrens Services,School Access Governor Student,Contract Hire-Operating Leases,Vehicles - Contract Hire,JC101,6/16/2014,286063,REDACTED COMMERCIALLY SENSITIVE,REVENUE,MINICABS CLEETHORPES (LINCS) LTD,102124
NORTH EAST LINCOLNSHIRE COUNCIL,http://statistics.data.gov.uk/id/local-authority/00FC,People,Childrens Services,School Access Governor Student,Contract Hire-Operating Leases,Vehicles - Contract Hire,JC101,6/16/2014,286057,REDACTED COMMERCIALLY SENSITIVE,REVENUE,MINICABS CLEETHORPES (LINCS) LTD,102124
NORTH EAST LINCOLNSHIRE COUNCIL,http://statistics.data.gov.uk/id/local-authority/00FC,People,Childrens Services,School Access Governor Student,Contract Hire-Operating Leases,Vehicles - Contract Hire,JC101,6/11/2014,284569,REDACTED COMMERCIALLY SENSITIVE,REVENUE,AMVALE LIMITED,101030
NORTH EAST LINCOLNSHIRE COUNCIL,http://statistics.data.gov.uk/id/local-authority/00FC,People,Childrens Services,School Access Governor Student,Contract Hire-Operating Leases,Vehicles - Contract Hire,JC101,6/16/2014,284531,REDACTED COMMERCIALLY SENSITIVE,REVENUE,AMVALE LIMITED,101030
NORTH EAST LINCOLNSHIRE COUNCIL,http://statistics.data.gov.uk/id/local-authority/00FC,People,Childrens Services,School Access Governor Student,Contract Hire-Operating Leases,Vehicles - Contract Hire,JC101,6/9/2014,284530,REDACTED COMMERCIALLY SENSITIVE,REVENUE,AMVALE LIMITED,101030
NORTH EAST LINCOLNSHIRE COUNCIL,http://statistics.data.gov.uk/id/local-authority/00FC,People,Childrens Services,School Access Governor Student,Contract Hire-Operating Leases,Vehicles - Contract Hire,JC101,6/16/2014,286070,REDACTED COMMERCIALLY SENSITIVE,REVENUE,REDACTED PERSONAL INFORMATION,REDACTED PERSONAL INFORMATION
NORTH EAST LINCOLNSHIRE COUNCIL,http://statistics.data.gov.uk/id/local-authority/00FC,People,Childrens Services,School Access Governor Student,Contract Hire-Operating Leases,Vehicles - Contract Hire,JC101,6/18/2014,286450,REDACTED COMMERCIALLY SENSITIVE,REVENUE,FISHERS OF GRIMSBY,111965
NORTH EAST LINCOLNSHIRE COUNCIL,http://statistics.data.gov.uk/id/local-authority/00FC,People,Childrens Services,School Access Governor Student,Contract Hire-Operating Leases,Vehicles - Contract Hire,JC101,6/5/2014,269968,REDACTED COMMERCIALLY SENSITIVE,REVENUE,COOPERS TOURS (LINCS) LTD,111878
NORTH EAST LINCOLNSHIRE COUNCIL,http://statistics.data.gov.uk/id/local-authority/00FC,People,Childrens Services,School Access Governor Student,Contract Hire-Operating Leases,Vehicles - Contract Hire,JC101,6/5/2014,270090,REDACTED COMMERCIALLY SENSITIVE,REVENUE,COXONS CARS LIMITED,100578
NORTH EAST LINCOLNSHIRE COUNCIL,http://statistics.data.gov.uk/id/local-authority/00FC,People,Childrens Services,School Access Governor Student,Contract Hire-Operating Leases,Vehicles - Contract Hire,JC101,6/9/2014,284943,REDACTED COMMERCIALLY SENSITIVE,REVENUE,REDACTED PERSONAL INFORMATION,REDACTED PERSONAL INFORMATION
NORTH EAST LINCOLNSHIRE COUNCIL,http://statistics.data.gov.uk/id/local-authority/00FC,People,Childrens Services,School Access Governor Student,Contract Hire-Operating Leases,Vehicles - Contract Hire,JC101,6/16/2014,286064,REDACTED COMMERCIALLY SENSITIVE,REVENUE,SHERWOOD TRAVEL,100868
NORTH EAST LINCOLNSHIRE COUNCIL,http://statistics.data.gov.uk/id/local-authority/00FC,People,Childrens Services,School Access Governor Student,Contract Hire-Operating Leases,Vehicles - Contract Hire,JC101,6/18/2014,286447,REDACTED COMMERCIALLY SENSITIVE,REVENUE,FISHERS OF GRIMSBY,111965
NORTH EAST LINCOLNSHIRE COUNCIL,http://statistics.data.gov.uk/id/local-authority/00FC,People,Childrens Services,School Access Governor Student,Contract Hire-Operating Leases,Vehicles - Contract Hire,JC101,6/9/2014,284566,REDACTED COMMERCIALLY SENSITIVE,REVENUE,AMVALE LIMITED,101030
NORTH EAST LINCOLNSHIRE COUNCIL,http://statistics.data.gov.uk/id/local-authority/00FC,People,Childrens Services,School Access Governor Student,Contract Hire-Operating Leases,Vehicles - Contract Hire,JC101,6/18/2014,286336,REDACTED COMMERCIALLY SENSITIVE,REVENUE,COOPERS TOURS (LINCS) LTD,111878
NORTH EAST LINCOLNSHIRE COUNCIL,http://statistics.data.gov.uk/id/local-authority/00FC,People,Childrens Services,School Access Governor Student,Contract Hire-Operating Leases,Vehicles - Contract Hire,JC101,6/11/2014,284565,REDACTED COMMERCIALLY SENSITIVE,REVENUE,AMVALE LIMITED,101030
NORTH EAST LINCOLNSHIRE COUNCIL,http://statistics.data.gov.uk/id/local-authority/00FC,People,Childrens Services,School Access Governor Student,Contract Hire-Operating Leases,Vehicles - Contract Hire,JC101,6/18/2014,286223,REDACTED COMMERCIALLY SENSITIVE,REVENUE,LINKS TAXIS,100546
NORTH EAST LINCOLNSHIRE COUNCIL,http://statistics.data.gov.uk/id/local-authority/00FC,People,Childrens Services,School Access Governor Student,Contract Hire-Operating Leases,Vehicles - Contract Hire,JC101,6/9/2014,285017,REDACTED COMMERCIALLY SENSITIVE,REVENUE,COXONS CARS LIMITED,100578
NORTH EAST LINCOLNSHIRE COUNCIL,http://statistics.data.gov.uk/id/local-authority/00FC,People,Childrens Services,School Access Governor Student,Contract Hire-Operating Leases,Vehicles - Contract Hire,JC101,6/16/2014,286058,REDACTED COMMERCIALLY SENSITIVE,REVENUE,MILLMAN COACHES,100700
NORTH EAST LINCOLNSHIRE COUNCIL,http://statistics.data.gov.uk/id/local-authority/00FC,People,Childrens Services,School Access Governor Student,Contract Hire-Operating Leases,Vehicles - Contract Hire,JC101,6/9/2014,285014,REDACTED COMMERCIALLY SENSITIVE,REVENUE,COXONS CARS LIMITED,100578
NORTH EAST LINCOLNSHIRE COUNCIL,http://statistics.data.gov.uk/id/local-authority/00FC,People,Childrens Services,School Access Governor Student,Contract Hire-Operating Leases,Vehicles - Contract Hire,JC101,6/5/2014,270273,REDACTED COMMERCIALLY SENSITIVE,REVENUE,COXONS CARS LIMITED,100578
NORTH EAST LINCOLNSHIRE COUNCIL,http://statistics.data.gov.uk/id/local-authority/00FC,People,Childrens Services,School Access Governor Student,Private Contractors,Concessionary Fares,PH104,6/11/2014,284555,REDACTED COMMERCIALLY SENSITIVE,REVENUE,STAGECOACH SERVICES,101404
NORTH EAST LINCOLNSHIRE COUNCIL,http://statistics.data.gov.uk/id/local-authority/00FC,People,Childrens Services,School Access Governor Student,Contract Hire-Operating Leases,Vehicles - Contract Hire,JC101,6/5/2014,270045,REDACTED COMMERCIALLY SENSITIVE,REVENUE,COXONS CARS LIMITED,100578
NORTH EAST LINCOLNSHIRE COUNCIL,http://statistics.data.gov.uk/id/local-authority/00FC,People,Childrens Services,School Access Governor Student,Contract Hire-Operating Leases,Vehicles - Contract Hire,JC101,6/5/2014,270062,REDACTED COMMERCIALLY SENSITIVE,REVENUE,COXONS CARS LIMITED,100578
NORTH EAST LINCOLNSHIRE COUNCIL,http://statistics.data.gov.uk/id/local-authority/00FC,People,Childrens Services,School Access Governor Student,Contract Hire-Operating Leases,Vehicles - Contract Hire,JC101,6/11/2014,284568,REDACTED COMMERCIALLY SENSITIVE,REVENUE,AMVALE LIMITED,101030
NORTH EAST LINCOLNSHIRE COUNCIL,http://statistics.data.gov.uk/id/local-authority/00FC,People,Childrens Services,School Access Governor Student,Contract Hire-Operating Leases,Vehicles - Contract Hire,JC101,6/4/2014,277915,REDACTED COMMERCIALLY SENSITIVE,REVENUE,AMVALE LIMITED,101030
NORTH EAST LINCOLNSHIRE COUNCIL,http://statistics.data.gov.uk/id/local-authority/00FC,People,Childrens Services,School Access Governor Student,Contract Hire-Operating Leases,Vehicles - Contract Hire,JC101,6/5/2014,270054,REDACTED COMMERCIALLY SENSITIVE,REVENUE,COXONS CARS LIMITED,100578
NORTH EAST LINCOLNSHIRE COUNCIL,http://statistics.data.gov.uk/id/local-authority/00FC,People,Childrens Services,School Access Governor Student,Contract Hire-Operating Leases,Vehicles - Contract Hire,JC101,6/11/2014,284640,REDACTED COMMERCIALLY SENSITIVE,REVENUE,REVELLS TAXIS (ED/SOC SERV),100559
NORTH EAST LINCOLNSHIRE COUNCIL,http://statistics.data.gov.uk/id/local-authority/00FC,People,Childrens Services,School Access Governor Student,Contract Hire-Operating Leases,Vehicles - Contract Hire,JC101,6/5/2014,269971,REDACTED COMMERCIALLY SENSITIVE,REVENUE,COXONS CARS LIMITED,100578
NORTH EAST LINCOLNSHIRE COUNCIL,http://statistics.data.gov.uk/id/local-authority/00FC,People,Childrens Services,School Access Governor Student,Contract Hire-Operating Leases,Vehicles - Contract Hire,JC101,6/17/2014,286329,REDACTED COMMERCIALLY SENSITIVE,REVENUE,LINKS TAXIS,100546
NORTH EAST LINCOLNSHIRE COUNCIL,http://statistics.data.gov.uk/id/local-authority/00FC,People,Childrens Services,School Access Governor Student,Contract Hire-Operating Leases,Vehicles - Contract Hire,JC101,6/18/2014,286225,REDACTED COMMERCIALLY SENSITIVE,REVENUE,LINKS TAXIS,100546
NORTH EAST LINCOLNSHIRE COUNCIL,http://statistics.data.gov.uk/id/local-authority/00FC,People,Childrens Services,School Access Governor Student,Contract Hire-Operating Leases,Vehicles - Contract Hire,JC101,6/16/2014,286071,REDACTED COMMERCIALLY SENSITIVE,REVENUE,REDACTED PERSONAL INFORMATION,REDACTED PERSONAL INFORMATION
NORTH EAST LINCOLNSHIRE COUNCIL,http://statistics.data.gov.uk/id/local-authority/00FC,People,Childrens Services,School Access Governor Student,Contract Hire-Operating Leases,Vehicles - Contract Hire,JC101,6/20/2014,287411,REDACTED COMMERCIALLY SENSITIVE,REVENUE,LINKS TAXIS,100546
NORTH EAST LINCOLNSHIRE COUNCIL,http://statistics.data.gov.uk/id/local-authority/00FC,People,Childrens Services,School Access Governor Student,Contract Hire-Operating Leases,Vehicles - Contract Hire,JC101,6/20/2014,287414,REDACTED COMMERCIALLY SENSITIVE,REVENUE,LINKS TAXIS,100546
NORTH EAST LINCOLNSHIRE COUNCIL,http://statistics.data.gov.uk/id/local-authority/00FC,People,Childrens Services,School Access Governor Student,Contract Hire-Operating Leases,Vehicles - Contract Hire,JC101,6/3/2014,283411,REDACTED COMMERCIALLY SENSITIVE,REVENUE,LINCOLNSHIRE COUNTY COUNCIL,100389
